Organisation name,Organisation Code,Effective date,Directorate / service where expenditure incurred,Service Category label,Service category URI,Supplier (Beneficiary) name,Local supplier (beneficiary) internal reference,Supplier,Supplier registered charity number,VCSE grant,Payment date - G/L Date,Transaction number,Net Amount,Irrecoverable VAT,purpose_of_spend,Procurement classification / merchant category: Council�s procurement category name,Procurement classification / merchant category: CPV label,Procurement classification / merchant category: CPV code,Procurement classification / merchant category: Proclass label,Procurement classification / merchant category: Proclass code,card_transaction
The Royal Borough of Kensington and Chelsea,RBKC,,Adult Social Care,Director Integrated Commissioning,,Medequip Assistive Technology Ltd ,1234994,,,,19/10/2020,2200126766,"108,737.05",,Hired and Contracted Services,,,,,,No
The Royal Borough of Kensington and Chelsea,RBKC,,Adult Social Care,Director Integrated Commissioning,,Medequip Assistive Technology Ltd ,1234994,,,,20/11/2020,2200133643,"91,687.61",,Hired and Contracted Services,,,,,,No
The Royal Borough of Kensington and Chelsea,RBKC,,Adult Social Care,Director Integrated Commissioning,,Medequip Assistive Technology Ltd ,1234994,,,,22/12/2020,2200139866,675.00,,Hired and Contracted Services,,,,,,No
The Royal Borough of Kensington and Chelsea,RBKC,,Adult Social Care,Director Integrated Commissioning,,Medequip Assistive Technology Ltd ,1234994,,,,22/12/2020,2200139868,"138,781.96",,Hired and Contracted Services,,,,,,No
The Royal Borough of Kensington and Chelsea,RBKC,,Adult Social Care,Director Adult Social Care,,Red Alert Ltd ,1231238,,,,19/10/2020,2200126676,700.00,,Payments to Voluntary bodies,,,,,,No
The Royal Borough of Kensington and Chelsea,RBKC,,Adult Social Care,Director Adult Social Care,,Red Alert Ltd ,1231238,,,,02/12/2020,2200136038,"2,100.00",,Payments to Voluntary bodies,,,,,,No
The Royal Borough of Kensington and Chelsea,RBKC,,Adult Social Care,Director Adult Social Care,,Tunstall Healthcare (UK) Ltd (Use 3012996),1235586,,,,06/11/2020,2200130774,"1,873.50",,Payments to Voluntary bodies,,,,,,No
The Royal Borough of Kensington and Chelsea,RBKC,,Adult Social Care,Director Adult Social Care,,Tunstall Response Ltd ,1235587,,,,23/10/2020,2200127693,"11,184.16",,Domestic Supplies,,,,,,No
The Royal Borough of Kensington and Chelsea,RBKC,,Environment & Communities,Planning and Place,,London Borough Of Islington,1231814,,,,22/10/2020,2200127421,"1,840.00",,Fees,,,,,,No
The Royal Borough of Kensington and Chelsea,RBKC,,Environment & Communities,Planning and Place,,London Borough Of Tower Hamlets,1231824,,,,04/12/2020,2200136452,"1,255.00",,Payments to Other Local Authorities,,,,,,No
The Royal Borough of Kensington and Chelsea,RBKC,,Environment & Communities,Planning and Place,,Cadline Limited,1260950,,,,11/12/2020,2200137934,"6,250.00",,Creditors Control : AP GRIR,,,,,,No
The Royal Borough of Kensington and Chelsea,RBKC,,Environment & Communities,Planning and Place,,Chartered Association ,1252686,,,,19/11/2020,2200133352,758.33,,Training related expenditure,,,,,,No
The Royal Borough of Kensington and Chelsea,RBKC,,Environment & Communities,Planning and Place,,Seventy Eight Ltd,1266384,,,,06/11/2020,2200130684,900.00,,Service Charges : Premises,,,,,,No
The Royal Borough of Kensington and Chelsea,RBKC,,Environment & Communities,Planning and Place,,University of Westminster,1231907,,,,14/10/2020,2200125921,"6,000.00",,Training related expenditure,,,,,,No
The Royal Borough of Kensington and Chelsea,RBKC,,Environment & Communities,Planning and Place,,Wates Living Space (Maintenance) Ltd,1231445,,,,08/10/2020,2200124512,"30,755.08",,Payments to Private Contractors,,,,,,No
The Royal Borough of Kensington and Chelsea,RBKC,,Environment & Communities,Planning and Place,,Wates Living Space (Maintenance) Ltd,1231445,,,,23/12/2020,2200139993,"3,976.47",,Service Charges : Premises,,,,,,No
The Royal Borough of Kensington and Chelsea,RBKC,,Environment & Communities,Streets and Regulatory Services,,Redact Details,D000000023,,,,12/10/2020,3110229966,"3,921.67",,Income from costs charged to outside bodies,,,,,,No
The Royal Borough of Kensington and Chelsea,RBKC,,Environment & Communities,Streets and Regulatory Services,,Redact Details,D000000023,,,,16/10/2020,3110232894,"3,921.67",,Income from costs charged to outside bodies,,,,,,No
The Royal Borough of Kensington and Chelsea,RBKC,,Environment & Communities,"Cleaner, Greener and Cultural Services",,C J Jordan & Son Ltd ,1233031,,,,30/10/2020,2200129123,703.84,,Creditors Control : AP GRIR,,,,,,No
The Royal Borough of Kensington and Chelsea,RBKC,,Environment & Communities,"Cleaner, Greener and Cultural Services",,C J Jordan & Son Ltd ,1233031,,,,30/10/2020,2200129129,601.76,,Creditors Control : AP GRIR,,,,,,No
The Royal Borough of Kensington and Chelsea,RBKC,,Environment & Communities,"Cleaner, Greener and Cultural Services",,C J Jordan & Son Ltd ,1233031,,,,30/10/2020,2200129137,513.78,,Creditors Control : AP GRIR,,,,,,No
The Royal Borough of Kensington and Chelsea,RBKC,,Environment & Communities,"Cleaner, Greener and Cultural Services",,C J Jordan & Son Ltd ,1233031,,,,26/11/2020,2200134648,601.76,,Creditors Control : AP GRIR,,,,,,No
The Royal Borough of Kensington and Chelsea,RBKC,,Environment & Communities,"Cleaner, Greener and Cultural Services",,C J Jordan & Son Ltd ,1233031,,,,26/11/2020,2200134677,703.84,,Creditors Control : AP GRIR,,,,,,No
The Royal Borough of Kensington and Chelsea,RBKC,,Environment & Communities,"Cleaner, Greener and Cultural Services",,C J Jordan & Son Ltd ,1233031,,,,21/12/2020,2200139586,"1,527.24",,Creditors Control : AP GRIR,,,,,,No
The Royal Borough of Kensington and Chelsea,RBKC,,Environment & Communities,"Cleaner, Greener and Cultural Services",,C J Jordan & Son Ltd ,1233031,,,,21/12/2020,2200139591,551.39,,Creditors Control : AP GRIR,,,,,,No
The Royal Borough of Kensington and Chelsea,RBKC,,Environment & Communities,"Cleaner, Greener and Cultural Services",,C J Jordan & Son Ltd ,1233031,,,,23/12/2020,2200140028,703.84,,Creditors Control : AP GRIR,,,,,,No
The Royal Borough of Kensington and Chelsea,RBKC,,Environment & Communities,"Cleaner, Greener and Cultural Services",,Redact Details,1234806,,,,22/12/2020,2200139878,880.00,,Creditors Control : AP GRIR,,,,,,No
The Royal Borough of Kensington and Chelsea,RBKC,,Environment & Communities,"Cleaner, Greener and Cultural Services",,Quadron Services Ltd T/A Idverde ,1231423,,,,08/10/2020,2200124493,"38,185.24",,Creditors Control : AP GRIR,,,,,,No
The Royal Borough of Kensington and Chelsea,RBKC,,Environment & Communities,"Cleaner, Greener and Cultural Services",,Quadron Services Ltd T/A Idverde ,1231423,,,,04/11/2020,2200130099,"38,185.24",,Creditors Control : AP GRIR,,,,,,No
The Royal Borough of Kensington and Chelsea,RBKC,,Environment & Communities,"Cleaner, Greener and Cultural Services",,Quadron Services Ltd T/A Idverde ,1231423,,,,19/11/2020,2200133420,"10,631.00",,Creditors Control : AP GRIR,,,,,,No
The Royal Borough of Kensington and Chelsea,RBKC,,Environment & Communities,"Cleaner, Greener and Cultural Services",,Quadron Services Ltd T/A Idverde ,1231423,,,,04/12/2020,2200136449,"38,185.24",,Creditors Control : AP GRIR,,,,,,No
The Royal Borough of Kensington and Chelsea,RBKC,,Resources and Customer Delivery,Customer Delivery,,London Borough Of Hounslow ,1231811,,,,23/12/2020,3110252836,"28,809.84",,Uniform Business Rates,,,,,,No
The Royal Borough of Kensington and Chelsea,RBKC,,Environment & Communities,Communities,,City Of Westminster ,1231771,,,,06/11/2020,2200130762,"61,207.00",,Payments to Other Local Authorities,,,,,,No
The Royal Borough of Kensington and Chelsea,RBKC,,Environment & Communities,Communities,,Losberger De Boer UK Ltd,D000000023,,,,30/10/2020,3110236723,"11,498.52",,Hired and Contracted Services,,,,,,No
The Royal Borough of Kensington and Chelsea,RBKC,,Capital,Capital,,24 Seven Companies Ltd,1260952,,,,23/10/2020,2200127790,"1,000.00",,Special Maintenance,,,,,,No
The Royal Borough of Kensington and Chelsea,RBKC,,Capital,Capital,,3Bm Ltd ,1232075,,,,16/10/2020,2200126418,"7,887.95",,Payments to main contractor,,,,,,No
The Royal Borough of Kensington and Chelsea,RBKC,,Capital,Capital,,3Bm Ltd ,1232075,,,,16/10/2020,2200126419,"113,638.92",,Payments to main contractor,,,,,,No
The Royal Borough of Kensington and Chelsea,RBKC,,Capital,Capital,,3Bm Ltd ,1232075,,,,16/10/2020,2200126429,"29,498.00",,Payments to main contractor,,,,,,No
The Royal Borough of Kensington and Chelsea,RBKC,,Capital,Capital,,3Bm Ltd ,1232075,,,,16/10/2020,2200126436,"27,713.50",,Payments to main contractor,,,,,,No
The Royal Borough of Kensington and Chelsea,RBKC,,Capital,Capital,,3Bm Ltd ,1232075,,,,20/10/2020,2200126848,"1,797.50",,Creditors Control : AP GRIR,,,,,,No
The Royal Borough of Kensington and Chelsea,RBKC,,Capital,Capital,,3Bm Ltd ,1232075,,,,20/10/2020,2200126849,933.33,,Creditors Control : AP GRIR,,,,,,No
The Royal Borough of Kensington and Chelsea,RBKC,,Capital,Capital,,3Bm Ltd ,1232075,,,,20/10/2020,2200126850,598.65,,Creditors Control : AP GRIR,,,,,,No
The Royal Borough of Kensington and Chelsea,RBKC,,Capital,Capital,,3Bm Ltd ,1232075,,,,20/10/2020,2200126850,"7,982.00",,Creditors Control : AP GRIR,,,,,,No
The Royal Borough of Kensington and Chelsea,RBKC,,Capital,Capital,,3Bm Ltd ,1232075,,,,20/10/2020,2200126851,"1,000.00",,Creditors Control : AP GRIR,,,,,,No
The Royal Borough of Kensington and Chelsea,RBKC,,Capital,Capital,,3Bm Ltd ,1232075,,,,20/10/2020,2200126852,"12,823.00",,Creditors Control : AP GRIR,,,,,,No
The Royal Borough of Kensington and Chelsea,RBKC,,Capital,Capital,,3Bm Ltd ,1232075,,,,20/10/2020,2200126852,961.73,,Creditors Control : AP GRIR,,,,,,No
The Royal Borough of Kensington and Chelsea,RBKC,,Capital,Capital,,3Bm Ltd ,1232075,,,,27/10/2020,2200128497,"2,687.50",,Payments to main contractor,,,,,,No
The Royal Borough of Kensington and Chelsea,RBKC,,Capital,Capital,,3Bm Ltd ,1232075,,,,28/10/2020,2200128585,"4,250.00",,Creditors Control : AP GRIR,,,,,,No
The Royal Borough of Kensington and Chelsea,RBKC,,Capital,Capital,,3Bm Ltd ,1232075,,,,17/11/2020,2200132789,"1,075.00",,Payments to main contractor,,,,,,No
The Royal Borough of Kensington and Chelsea,RBKC,,Capital,Capital,,3Bm Ltd ,1232075,,,,18/11/2020,2200133165,"2,000.00",,Payments to main contractor,,,,,,No
The Royal Borough of Kensington and Chelsea,RBKC,,Capital,Capital,,3Bm Ltd ,1232075,,,,18/11/2020,2200133167,"2,000.00",,Payments to main contractor,,,,,,No
The Royal Borough of Kensington and Chelsea,RBKC,,Capital,Capital,,3Bm Ltd ,1232075,,,,19/11/2020,2200133440,"1,000.00",,Payments to main contractor,,,,,,No
The Royal Borough of Kensington and Chelsea,RBKC,,Capital,Capital,,3Bm Ltd ,1232075,,,,25/11/2020,2200134483,"6,554.00",,Creditors Control : AP GRIR,,,,,,No
The Royal Borough of Kensington and Chelsea,RBKC,,Capital,Capital,,3Bm Ltd ,1232075,,,,25/11/2020,2200134483,656.00,,Creditors Control : AP GRIR,,,,,,No
The Royal Borough of Kensington and Chelsea,RBKC,,Capital,Capital,,3Bm Ltd ,1232075,,,,25/11/2020,2200134484,"3,043.00",,Creditors Control : AP GRIR,,,,,,No
The Royal Borough of Kensington and Chelsea,RBKC,,Capital,Capital,,3Bm Ltd ,1232075,,,,25/11/2020,2200134484,"30,424.00",,Creditors Control : AP GRIR,,,,,,No
The Royal Borough of Kensington and Chelsea,RBKC,,Capital,Capital,,3Bm Ltd ,1232075,,,,30/11/2020,2200135237,"1,506.00",,Creditors Control : AP GRIR,,,,,,No
The Royal Borough of Kensington and Chelsea,RBKC,,Capital,Capital,,3Bm Ltd ,1232075,,,,30/11/2020,2200135242,"4,450.00",,Payments to main contractor,,,,,,No
The Royal Borough of Kensington and Chelsea,RBKC,,Capital,Capital,,3Bm Ltd ,1232075,,,,30/11/2020,2200135243,"4,125.00",,Payments to main contractor,,,,,,No
The Royal Borough of Kensington and Chelsea,RBKC,,Capital,Capital,,3Bm Ltd ,1232075,,,,30/11/2020,2200135244,"1,850.00",,Payments to main contractor,,,,,,No
The Royal Borough of Kensington and Chelsea,RBKC,,Capital,Capital,,3Bm Ltd ,1232075,,,,30/11/2020,2200135245,"3,000.00",,Payments to main contractor,,,,,,No
The Royal Borough of Kensington and Chelsea,RBKC,,Capital,Capital,,3Bm Ltd ,1232075,,,,30/11/2020,2200135246,"3,000.00",,Payments to main contractor,,,,,,No
The Royal Borough of Kensington and Chelsea,RBKC,,Capital,Capital,,3Bm Ltd ,1232075,,,,30/11/2020,2200135247,"1,300.00",,Payments to main contractor,,,,,,No
The Royal Borough of Kensington and Chelsea,RBKC,,Capital,Capital,,3Bm Ltd ,1232075,,,,30/11/2020,2200135248,"3,000.00",,Payments to main contractor,,,,,,No
The Royal Borough of Kensington and Chelsea,RBKC,,Capital,Capital,,3Bm Ltd ,1232075,,,,01/12/2020,2200135645,806.25,,Creditors Control : AP GRIR,,,,,,No
The Royal Borough of Kensington and Chelsea,RBKC,,Capital,Capital,,3Bm Ltd ,1232075,,,,10/12/2020,2200137848,"9,950.00",,Payments to main contractor,,,,,,No
The Royal Borough of Kensington and Chelsea,RBKC,,Capital,Capital,,3Bm Ltd ,1232075,,,,21/12/2020,2200139458,"2,000.00",,Payments to main contractor,,,,,,No
The Royal Borough of Kensington and Chelsea,RBKC,,Capital,Capital,,3Bm Ltd ,1232075,,,,22/12/2020,2200139787,"6,275.25",,Payments to main contractor,,,,,,No
The Royal Borough of Kensington and Chelsea,RBKC,,Capital,Capital,,4i Solutions Ltd,1232084,,,,22/12/2020,2200139714,"5,200.00",,Other Consultants,,,,,,No
The Royal Borough of Kensington and Chelsea,RBKC,,Capital,Capital,,99 Structural Engineers,1274678,,,,25/11/2020,2200134510,"1,500.00",,Professional Fees : Non Legal,,,,,,No
The Royal Borough of Kensington and Chelsea,RBKC,,Capital,Capital,,99 Structural Engineers,1274678,,,,21/12/2020,2200139392,"1,100.00",,Construction : enhancements,,,,,,No
The Royal Borough of Kensington and Chelsea,RBKC,,Capital,Capital,,A N Contract Service Ltd ,1232095,,,,12/10/2020,2200125180,"12,761.00",,Planned Maintenance (CM),,,,,,No
The Royal Borough of Kensington and Chelsea,RBKC,,Capital,Capital,,A N Contract Service Ltd ,1232095,,,,12/10/2020,2200125181,"8,000.00",,Planned Maintenance (CM),,,,,,No
The Royal Borough of Kensington and Chelsea,RBKC,,Capital,Capital,,A N Contract Service Ltd ,1232095,,,,12/10/2020,2200125183,"49,125.00",,Planned Maintenance (CM),,,,,,No
The Royal Borough of Kensington and Chelsea,RBKC,,Capital,Capital,,A N Contract Service Ltd ,1232095,,,,12/10/2020,2200125184,"7,568.00",,Planned Maintenance (CM),,,,,,No
The Royal Borough of Kensington and Chelsea,RBKC,,Capital,Capital,,A N Contract Service Ltd ,1232095,,,,12/10/2020,2200125185,"14,568.00",,Planned Maintenance (CM),,,,,,No
The Royal Borough of Kensington and Chelsea,RBKC,,Capital,Capital,,A N Contract Service Ltd ,1232095,,,,19/11/2020,2200133451,"4,448.00",,Planned Maintenance (CM),,,,,,No
The Royal Borough of Kensington and Chelsea,RBKC,,Capital,Capital,,A N Contract Service Ltd ,1232095,,,,19/11/2020,2200133452,"10,208.00",,Planned Maintenance (CM),,,,,,No
The Royal Borough of Kensington and Chelsea,RBKC,,Capital,Capital,,A N Contract Service Ltd ,1232095,,,,19/11/2020,2200133454,"1,344.00",,Planned Maintenance (CM),,,,,,No
The Royal Borough of Kensington and Chelsea,RBKC,,Capital,Capital,,A N Contract Service Ltd ,1232095,,,,20/11/2020,2200133730,"8,732.00",,Creditors Control : AP GRIR,,,,,,No
The Royal Borough of Kensington and Chelsea,RBKC,,Capital,Capital,,A N Contract Service Ltd ,1232095,,,,15/12/2020,2200138337,"7,808.00",,Planned Maintenance (CM),,,,,,No
The Royal Borough of Kensington and Chelsea,RBKC,,Capital,Capital,,A N Contract Service Ltd ,1232095,,,,15/12/2020,2200138417,"27,192.00",,Planned Maintenance (CM),,,,,,No
The Royal Borough of Kensington and Chelsea,RBKC,,Capital,Capital,,A N Contract Service Ltd ,1232095,,,,15/12/2020,2200138418,"22,743.00",,Planned Maintenance (CM),,,,,,No
The Royal Borough of Kensington and Chelsea,RBKC,,Capital,Capital,,A N Contract Service Ltd ,1232095,,,,15/12/2020,2200138450,564.00,,Creditors Control : AP GRIR,,,,,,No
The Royal Borough of Kensington and Chelsea,RBKC,,Capital,Capital,,ABCA Systems LTD ,1252858,,,,14/10/2020,2200125902,"8,870.00",,Payments to main contractor,,,,,,No
The Royal Borough of Kensington and Chelsea,RBKC,,Capital,Capital,,ABCA Systems LTD ,1252858,,,,16/10/2020,2200126489,"186,554.00",,Payments to main contractor,,,,,,No
The Royal Borough of Kensington and Chelsea,RBKC,,Capital,Capital,,ABCA Systems LTD ,1252858,,,,13/11/2020,2200132171,"171,664.98",,Payments to main contractor,,,,,,No
The Royal Borough of Kensington and Chelsea,RBKC,,Capital,Capital,,ABCA Systems LTD ,1252858,,,,21/12/2020,2200139533,"11,056.10",,Payments to main contractor,,,,,,No
The Royal Borough of Kensington and Chelsea,RBKC,,Capital,Capital,,AJ Mobility Ltd,1258634,,,,29/10/2020,2200128846,648.00,,Payments to main contractor,,,,,,No
The Royal Borough of Kensington and Chelsea,RBKC,,Capital,Capital,,AJ Mobility Ltd,1258634,,,,05/11/2020,2200130366,624.00,,Payments to main contractor,,,,,,No
The Royal Borough of Kensington and Chelsea,RBKC,,Capital,Capital,,Ans Group Ltd,1265384,,,,03/11/2020,2200129763,"47,712.50",,Computer Software,,,,,,No
The Royal Borough of Kensington and Chelsea,RBKC,,Capital,Capital,,Ans Group Ltd,1265384,,,,10/11/2020,2200131483,"8,250.00",,Computer Software,,,,,,No
The Royal Borough of Kensington and Chelsea,RBKC,,Capital,Capital,,Abc Building & Maintenance Contractors,1231156,,,,23/12/2020,2200140137,"3,923.00",,Payments to main contractor,,,,,,No
The Royal Borough of Kensington and Chelsea,RBKC,,Capital,Capital,,Abc Building & Maintenance Contractors,1231156,,,,23/12/2020,2200140139,"7,000.00",,Payments to main contractor,,,,,,No
The Royal Borough of Kensington and Chelsea,RBKC,,Capital,Capital,,Abc Building & Maintenance Contractors,1231156,,,,23/12/2020,2200140144,"6,463.00",,Payments to main contractor,,,,,,No
The Royal Borough of Kensington and Chelsea,RBKC,,Capital,Capital,,Absolute Audio Visual Sol,1265383,,,,19/10/2020,2200126689,"2,715.98",,Professional Fees : Non Legal,,,,,,No
The Royal Borough of Kensington and Chelsea,RBKC,,Capital,Capital,,Absolute Audio Visual Sol,1265383,,,,19/10/2020,2200126690,"2,916.22",,Professional Fees : Non Legal,,,,,,No
The Royal Borough of Kensington and Chelsea,RBKC,,Capital,Capital,,Academy Consulting Solutions Ltd ,1232117,,,,12/10/2020,2200125360,750.00,,Site Works,,,,,,No
The Royal Borough of Kensington and Chelsea,RBKC,,Capital,Capital,,Academy Consulting Solutions Ltd ,1232117,,,,21/10/2020,2200127344,"3,200.00",,Site Works,,,,,,No
The Royal Borough of Kensington and Chelsea,RBKC,,Capital,Capital,,Academy Consulting Solutions Ltd ,1232117,,,,22/10/2020,2200127422,"3,000.00",,Payments to sub contractor,,,,,,No
The Royal Borough of Kensington and Chelsea,RBKC,,Capital,Capital,,Academy Consulting Solutions Ltd ,1232117,,,,23/10/2020,2200127686,"4,200.00",,Site Works,,,,,,No
The Royal Borough of Kensington and Chelsea,RBKC,,Capital,Capital,,Academy Consulting Solutions Ltd ,1232117,,,,13/11/2020,2200132168,"1,000.00",,Other Consultants,,,,,,No
The Royal Borough of Kensington and Chelsea,RBKC,,Capital,Capital,,Academy Consulting Solutions Ltd ,1232117,,,,07/12/2020,2200136795,"1,500.00",,Other Consultants,,,,,,No
The Royal Borough of Kensington and Chelsea,RBKC,,Capital,Capital,,Academy Consulting Solutions Ltd ,1232117,,,,18/12/2020,2200139086,"4,800.00",,Payments to main contractor,,,,,,No
The Royal Borough of Kensington and Chelsea,RBKC,,Capital,Capital,,Adam Architecture Ltd ,1232322,,,,05/11/2020,2200130441,"1,422.00",,Site Works,,,,,,No
The Royal Borough of Kensington and Chelsea,RBKC,,Capital,Capital,,Redact Details,1273174,,,,16/11/2020,2200132587,"1,750.00",,Payments to sub contractor,,,,,,No
The Royal Borough of Kensington and Chelsea,RBKC,,Capital,Capital,,Alasdair Cameron Ltd,1232356,,,,25/11/2020,2200134489,"2,356.45",,Payments to main contractor,,,,,,No
The Royal Borough of Kensington and Chelsea,RBKC,,Capital,Capital,,Alasdair Cameron Ltd,1232356,,,,30/12/2020,2200140586,785.48,,Payments to main contractor,,,,,,No
The Royal Borough of Kensington and Chelsea,RBKC,,Capital,Capital,,Allies & Morrison LLP ,1232371,,,,07/12/2020,2200136818,"9,570.00",,Payments to sub contractor,,,,,,No
The Royal Borough of Kensington and Chelsea,RBKC,,Capital,Capital,,Allies & Morrison LLP ,1232371,,,,07/12/2020,2200136819,"8,489.25",,Payments to sub contractor,,,,,,No
The Royal Borough of Kensington and Chelsea,RBKC,,Capital,Capital,,Ambush Security Systems ,1232385,,,,04/12/2020,2200136504,"1,730.00",,Creditors Control : AP GRIR,,,,,,No
The Royal Borough of Kensington and Chelsea,RBKC,,Capital,Capital,,Amwell Construction Ltd ,1231169,,,,19/10/2020,2200126754,"7,810.00",,Payments to main contractor,,,,,,No
The Royal Borough of Kensington and Chelsea,RBKC,,Capital,Capital,,Angus Fire Ltd ,1256067,,,,07/10/2020,2200124325,"5,672.00",,Payments to main contractor,,,,,,No
The Royal Borough of Kensington and Chelsea,RBKC,,Capital,Capital,,Aqua Environemntal Services Ltd,1261585,,,,17/11/2020,2200132747,"2,106.00",,Payments to sub contractor,,,,,,No
The Royal Borough of Kensington and Chelsea,RBKC,,Capital,Capital,,Aqua Environemntal Services Ltd,1261585,,,,17/11/2020,2200132748,"2,106.00",,Site Works,,,,,,No
The Royal Borough of Kensington and Chelsea,RBKC,,Capital,Capital,,Aquaneed Ltd,1260944,,,,03/11/2020,2200129923,"7,433.65",,Payments to main contractor,,,,,,No
The Royal Borough of Kensington and Chelsea,RBKC,,Capital,Capital,,Aquaneed Ltd,1260944,,,,03/11/2020,2200129925,"6,500.00",,Payments to main contractor,,,,,,No
The Royal Borough of Kensington and Chelsea,RBKC,,Capital,Capital,,Arcadis Consulting (UK) Ltd ,1232429,,,,19/11/2020,2200133404,"6,502.00",,Construction : enhancements,,,,,,No
The Royal Borough of Kensington and Chelsea,RBKC,,Capital,Capital,,Arcadis Llp ,1232430,,,,22/10/2020,2200127424,"6,900.00",,Site Works,,,,,,No
The Royal Borough of Kensington and Chelsea,RBKC,,Capital,Capital,,Arcadis Llp ,1232430,,,,30/10/2020,2200129272,"31,363.00",,Construction : enhancements,,,,,,No
The Royal Borough of Kensington and Chelsea,RBKC,,Capital,Capital,,Arcadis Llp ,1232430,,,,09/11/2020,2200131298,"5,000.00",,Other Consultants,,,,,,No
The Royal Borough of Kensington and Chelsea,RBKC,,Capital,Capital,,Arcadis Llp ,1232430,,,,09/11/2020,2200131299,"5,000.00",,Other Consultants,,,,,,No
The Royal Borough of Kensington and Chelsea,RBKC,,Capital,Capital,,Arcadis Llp ,1232430,,,,23/11/2020,2200133944,"2,390.00",,Payments to main contractor,,,,,,No
The Royal Borough of Kensington and Chelsea,RBKC,,Capital,Capital,,Architecture PLB ,1232434,,,,05/11/2020,2200130369,"3,112.50",,Construction : enhancements,,,,,,No
The Royal Borough of Kensington and Chelsea,RBKC,,Capital,Capital,,Ark Build Plc ,1231173,,,,22/10/2020,2200127426,"234,433.01",,Site Works,,,,,,No
The Royal Borough of Kensington and Chelsea,RBKC,,Capital,Capital,,Ark Build Plc ,1231173,,,,12/11/2020,2200131969,"100,268.98",,Construction : new asset,,,,,,No
The Royal Borough of Kensington and Chelsea,RBKC,,Capital,Capital,,Ark Build Plc ,1231173,,,,24/11/2020,2200134172,"70,755.11",,Construction : new asset,,,,,,No
The Royal Borough of Kensington and Chelsea,RBKC,,Capital,Capital,,Ark Build Plc ,1231173,,,,16/12/2020,2200138763,"170,690.79",,Site Works,,,,,,No
The Royal Borough of Kensington and Chelsea,RBKC,,Capital,Capital,,Ark Build Plc ,1231173,,,,21/12/2020,2200139391,"117,957.39",,Construction : enhancements,,,,,,No
The Royal Borough of Kensington and Chelsea,RBKC,,Capital,Capital,,Artelia Projects UK Ltd T/A Artelia UK,1232443,,,,01/12/2020,2200135616,"1,000.00",,Payments to sub contractor,,,,,,No
The Royal Borough of Kensington and Chelsea,RBKC,,Capital,Capital,,Ascendit Lifts Ltd ,1231174,,,,23/12/2020,2200140140,"5,800.00",,Payments to main contractor,,,,,,No
The Royal Borough of Kensington and Chelsea,RBKC,,Capital,Capital,,Ascendit Lifts Ltd ,1231174,,,,23/12/2020,2200140141,"6,950.00",,Payments to main contractor,,,,,,No
The Royal Borough of Kensington and Chelsea,RBKC,,Capital,Capital,,Ashburnham Community School ,1236058,,,,10/12/2020,2200137849,"24,639.00",,Payments to main contractor,,,,,,No
The Royal Borough of Kensington and Chelsea,RBKC,,Capital,Capital,,Ashfords Llp ,1232627,,,,01/10/2020,2200123179,"1,144.00",,Professional Fees : Non Legal,,,,,,No
The Royal Borough of Kensington and Chelsea,RBKC,,Capital,Capital,,Ashfords Llp ,1232627,,,,05/10/2020,2200123705,842.00,,Construction : enhancements,,,,,,No
The Royal Borough of Kensington and Chelsea,RBKC,,Capital,Capital,,Ashfords Llp ,1232627,,,,04/11/2020,2200130252,944.00,,Payments to main contractor,,,,,,No
The Royal Borough of Kensington and Chelsea,RBKC,,Capital,Capital,,Ashfords Llp ,1232627,,,,17/11/2020,2200132921,"5,550.00",,Professional Fees : Non Legal,,,,,,No
The Royal Borough of Kensington and Chelsea,RBKC,,Capital,Capital,,Ashfords Llp ,1232627,,,,30/11/2020,2200135302,"6,210.00",,Professional Fees : Non Legal,,,,,,No
The Royal Borough of Kensington and Chelsea,RBKC,,Capital,Capital,,Ashfords Llp ,1232627,,,,03/12/2020,2200136282,656.00,,Payments to main contractor,,,,,,No
The Royal Borough of Kensington and Chelsea,RBKC,,Capital,Capital,,Ashfords Llp ,1232627,,,,04/12/2020,2200136463,"1,750.00",,Legal Fees & expenses,,,,,,No
The Royal Borough of Kensington and Chelsea,RBKC,,Capital,Capital,,BT Global Services ,1233001,,,,13/11/2020,2200132211,"265,268.10",,Other capital equipment,,,,,,No
The Royal Borough of Kensington and Chelsea,RBKC,,Capital,Capital,,BT Global Services ,1233001,,,,20/11/2020,2200133720,"12,575.00",,Creditors Control : AP GRIR,,,,,,No
The Royal Borough of Kensington and Chelsea,RBKC,,Capital,Capital,,Baily Garner LLP ,1232685,,,,09/11/2020,2200131064,"14,309.20",,Professional Fees : Non Legal,,,,,,No
The Royal Borough of Kensington and Chelsea,RBKC,,Capital,Capital,,Bell Decorating & Building Ltd ,1232723,,,,16/10/2020,2200126453,"113,093.00",,Construction : enhancements,,,,,,No
The Royal Borough of Kensington and Chelsea,RBKC,,Capital,Capital,,Bell Decorating & Building Ltd ,1232723,,,,11/11/2020,2200131715,"5,399.42",,Other Consultants,,,,,,No
The Royal Borough of Kensington and Chelsea,RBKC,,Capital,Capital,,Bell Decorating & Building Ltd ,1232723,,,,16/12/2020,2200138679,"1,385.00",,Special Maintenance,,,,,,No
The Royal Borough of Kensington and Chelsea,RBKC,,Capital,Capital,,Bell Decorating & Building Ltd ,1232723,,,,16/12/2020,2200138680,"3,960.00",,Special Maintenance,,,,,,No
The Royal Borough of Kensington and Chelsea,RBKC,,Capital,Capital,,Bellrock Property & Facilities Man ,1255450,,,,04/11/2020,2200130164,"40,186.67",,Construction : enhancements,,,,,,No
The Royal Borough of Kensington and Chelsea,RBKC,,Capital,Capital,,Bellrock Property & Facilities Man ,1255450,,,,04/11/2020,2200130170,"1,737.99",,Creditors Control : AP GRIR,,,,,,No
The Royal Borough of Kensington and Chelsea,RBKC,,Capital,Capital,,Bellrock Property & Facilities Man ,1255450,,,,17/11/2020,2200132872,"77,592.90",,Planned Maintenance (CM),,,,,,No
The Royal Borough of Kensington and Chelsea,RBKC,,Capital,Capital,,Bellrock Property & Facilities Man ,1255450,,,,22/12/2020,2200139816,"21,216.00",,Planned Maintenance (CM),,,,,,No
The Royal Borough of Kensington and Chelsea,RBKC,,Capital,Capital,,Bellrock Property & Facilities Man ,1255450,,,,22/12/2020,2200139818,"42,432.00",,Planned Maintenance (CM),,,,,,No
The Royal Borough of Kensington and Chelsea,RBKC,,Capital,Capital,,Bellrock Property & Facilities Man ,1255450,,,,22/12/2020,2200139907,"8,486.40",,Creditors Control : AP GRIR,,,,,,No
The Royal Borough of Kensington and Chelsea,RBKC,,Capital,Capital,,Bellrock Property & Facilities Man ,1255450,,,,22/12/2020,2200139908,"12,729.60",,Creditors Control : AP GRIR,,,,,,No
The Royal Borough of Kensington and Chelsea,RBKC,,Capital,Capital,,Bellrock Property & Facilities Man ,1255450,,,,24/12/2020,2200140243,"47,736.00",,Planned Maintenance (CM),,,,,,No
The Royal Borough of Kensington and Chelsea,RBKC,,Capital,Capital,,Benchmarx Kitchens and Joinery Ltd,1270136,,,,22/12/2020,2200139884,"2,464.80",,Special Maintenance,,,,,,No
The Royal Borough of Kensington and Chelsea,RBKC,,Capital,Capital,,Bestoutcome Limited,1273135,,,,27/10/2020,2200128311,"10,350.00",,Payments to main contractor,,,,,,No
The Royal Borough of Kensington and Chelsea,RBKC,,Capital,Capital,,London Letterbox Marketing ,1234938,,,,02/11/2020,2200129567,"1,050.09",,Site Works,,,,,,No
The Royal Borough of Kensington and Chelsea,RBKC,,Capital,Capital,,London Letterbox Marketing ,1234938,,,,10/11/2020,2200131506,"1,050.09",,Site Works,,,,,,No
The Royal Borough of Kensington and Chelsea,RBKC,,Capital,Capital,,London Letterbox Marketing ,1234938,,,,01/12/2020,2200135583,734.87,,Site Works,,,,,,No
The Royal Borough of Kensington and Chelsea,RBKC,,Capital,Capital,,London Letterbox Marketing ,1234938,,,,01/12/2020,2200135587,977.52,,Site Works,,,,,,No
The Royal Borough of Kensington and Chelsea,RBKC,,Capital,Capital,,Bevington Primary School ,1236065,,,,08/12/2020,2200137241,"2,132.13",,Payments to main contractor,,,,,,No
The Royal Borough of Kensington and Chelsea,RBKC,,Capital,Capital,,Bishop Creighton House Care & Repair Clients Account,1232751,,,,08/10/2020,2200124702,"1,022.25",,Payments to main contractor,,,,,,No
The Royal Borough of Kensington and Chelsea,RBKC,,Capital,Capital,,Bishop Creighton House Care & Repair Clients Account,1232751,,,,21/10/2020,2200127355,"4,711.00",,Payments to main contractor,,,,,,No
The Royal Borough of Kensington and Chelsea,RBKC,,Capital,Capital,,Bishop Creighton House Care & Repair Clients Account,1232751,,,,21/10/2020,2200127357,"8,080.00",,Payments to main contractor,,,,,,No
The Royal Borough of Kensington and Chelsea,RBKC,,Capital,Capital,,Bishop Creighton House Care & Repair Clients Account,1232751,,,,22/10/2020,2200127499,"1,017.60",,Payments to main contractor,,,,,,No
The Royal Borough of Kensington and Chelsea,RBKC,,Capital,Capital,,Bishop Creighton House Care & Repair Clients Account,1232751,,,,22/10/2020,2200127500,"6,764.00",,Payments to main contractor,,,,,,No
The Royal Borough of Kensington and Chelsea,RBKC,,Capital,Capital,,Bishop Creighton House Care & Repair Clients Account,1232751,,,,03/11/2020,2200129926,"14,295.00",,Payments to main contractor,,,,,,No
The Royal Borough of Kensington and Chelsea,RBKC,,Capital,Capital,,Bishop Creighton House Care & Repair Clients Account,1232751,,,,10/11/2020,2200131484,"6,327.00",,Payments to main contractor,,,,,,No
The Royal Borough of Kensington and Chelsea,RBKC,,Capital,Capital,,Bishop Creighton House Care & Repair Clients Account,1232751,,,,20/11/2020,2200133715,507.00,,Payments to main contractor,,,,,,No
The Royal Borough of Kensington and Chelsea,RBKC,,Capital,Capital,,Bishop Creighton House Care & Repair Clients Account,1232751,,,,01/12/2020,2200135529,709.65,,Payments to main contractor,,,,,,No
The Royal Borough of Kensington and Chelsea,RBKC,,Capital,Capital,,Bishop Creighton House Care & Repair Clients Account,1232751,,,,01/12/2020,2200135530,952.05,,Payments to main contractor,,,,,,No
The Royal Borough of Kensington and Chelsea,RBKC,,Capital,Capital,,Bloom Procurement Services Ltd,1269893,,,,22/10/2020,2200127598,"7,480.00",,Professional Fees : Non Legal,,,,,,No
The Royal Borough of Kensington and Chelsea,RBKC,,Capital,Capital,,Bloom Procurement Services Ltd,1269893,,,,25/11/2020,2200134577,"29,920.00",,Professional Fees : Non Legal,,,,,,No
The Royal Borough of Kensington and Chelsea,RBKC,,Capital,Capital,,Bloom Procurement Services Ltd,1269893,,,,30/11/2020,2200135277,"61,725.00",,Professional Fees : Non Legal,,,,,,No
The Royal Borough of Kensington and Chelsea,RBKC,,Capital,Capital,,British Telecom (Openreach) ,1231183,,,,30/10/2020,2200129212,"2,381.67",,Payments to main contractor,,,,,,No
The Royal Borough of Kensington and Chelsea,RBKC,,Capital,Capital,,Brown & Co Planning LTD,1258884,,,,08/12/2020,2200137086,617.50,,Payments to main contractor,,,,,,No
The Royal Borough of Kensington and Chelsea,RBKC,,Capital,Capital,,Redact Details,1260368,,,,17/11/2020,2200132873,"3,360.00",,Surveyors,,,,,,No
The Royal Borough of Kensington and Chelsea,RBKC,,Capital,Capital,,Redact Details,1260368,,,,16/12/2020,2200138536,"1,500.00",,Planned Maintenance (CM),,,,,,No
The Royal Borough of Kensington and Chelsea,RBKC,,Capital,Capital,,Building Design Partnership Ltd ,1233009,,,,05/10/2020,2200123811,"9,000.00",,Other Consultants,,,,,,No
The Royal Borough of Kensington and Chelsea,RBKC,,Capital,Capital,,Building Design Partnership Ltd ,1233009,,,,15/10/2020,2200126132,"10,975.00",,Payments to sub contractor,,,,,,No
The Royal Borough of Kensington and Chelsea,RBKC,,Capital,Capital,,Building Design Partnership Ltd ,1233009,,,,04/11/2020,2200130251,"9,000.00",,Other Consultants,,,,,,No
The Royal Borough of Kensington and Chelsea,RBKC,,Capital,Capital,,Building Design Partnership Ltd ,1233009,,,,31/12/2020,2200140813,"9,000.00",,Other Consultants,,,,,,No
The Royal Borough of Kensington and Chelsea,RBKC,,Capital,Capital,,Butler & Young Services Ltd,1272888,,,,23/10/2020,2200127858,"9,900.00",,Professional Fees : Non Legal,,,,,,No
The Royal Borough of Kensington and Chelsea,RBKC,,Capital,Capital,,Butler & Young Services Ltd,1272888,,,,19/11/2020,2200133448,"17,490.90",,Professional Fees : Non Legal,,,,,,No
The Royal Borough of Kensington and Chelsea,RBKC,,Capital,Capital,,CBRE Capital Advisors,1233314,,,,02/10/2020,2200123476,"2,500.00",,Professional Fees : Non Legal,,,,,,No
The Royal Borough of Kensington and Chelsea,RBKC,,Capital,Capital,,CBRE Capital Advisors,1233314,,,,05/10/2020,2200123714,"2,500.00",,Professional Fees : Non Legal,,,,,,No
The Royal Borough of Kensington and Chelsea,RBKC,,Capital,Capital,,CBRE Capital Advisors,1233314,,,,13/10/2020,2200125666,"30,500.00",,Professional Fees : Non Legal,,,,,,No
The Royal Borough of Kensington and Chelsea,RBKC,,Capital,Capital,,CBRE Capital Advisors,1233314,,,,18/12/2020,2200139216,"10,000.00",,Payments to sub contractor,,,,,,No
The Royal Borough of Kensington and Chelsea,RBKC,,Capital,Capital,,CBRE Capital Advisors,1233314,,,,21/12/2020,2200139585,"17,500.00",,Payments to main contractor,,,,,,No
The Royal Borough of Kensington and Chelsea,RBKC,,Capital,Capital,,Clm Fireproofing Limited,1268719,,,,04/11/2020,2200130167,"19,638.23",,Payments to main contractor,,,,,,No
The Royal Borough of Kensington and Chelsea,RBKC,,Capital,Capital,,Clm Fireproofing Limited,1268719,,,,19/11/2020,2200133455,"3,850.00",,Payments to main contractor,,,,,,No
The Royal Borough of Kensington and Chelsea,RBKC,,Capital,Capital,,Clm Fireproofing Limited,1268719,,,,10/12/2020,2200137831,"32,033.24",,Payments to main contractor,,,,,,No
The Royal Borough of Kensington and Chelsea,RBKC,,Capital,Capital,,Cablesheer (Asbestos) Limited,1273893,,,,21/12/2020,2200139383,"26,617.65",,Payments to main contractor,,,,,,No
The Royal Borough of Kensington and Chelsea,RBKC,,Capital,Capital,,Cablesheer (Asbestos) Limited,1273893,,,,21/12/2020,2200139615,"1,000.00",,Payments to main contractor,,,,,,No
The Royal Borough of Kensington and Chelsea,RBKC,,Capital,Capital,,Cablesheer (Asbestos) Limited,1273893,,,,21/12/2020,2200139616,"2,017.30",,Payments to main contractor,,,,,,No
The Royal Borough of Kensington and Chelsea,RBKC,,Capital,Capital,,Cadent Gas Ltd,1233038,,,,26/10/2020,2200128046,"42,463.94",,Construction : enhancements,,,,,,No
The Royal Borough of Kensington and Chelsea,RBKC,,Capital,Capital,,Cadent Gas Ltd,1233038,,,,10/12/2020,2200137798,577.00,,Construction : enhancements,,,,,,No
The Royal Borough of Kensington and Chelsea,RBKC,,Capital,Capital,,Cadent Gas Ltd,1233038,,,,23/12/2020,3110252835,"46,068.65",,Construction : enhancements,,,,,,No
The Royal Borough of Kensington and Chelsea,RBKC,,Capital,Capital,,Calford Seadon (Health & Safety) Ltd,1233044,,,,21/10/2020,2200127360,"13,726.50",,Professional Fees : Non Legal,,,,,,No
The Royal Borough of Kensington and Chelsea,RBKC,,Capital,Capital,,Calford Seadon (Health & Safety) Ltd,1233044,,,,02/11/2020,2200129596,"1,007.94",,Professional Fees : Non Legal,,,,,,No
The Royal Borough of Kensington and Chelsea,RBKC,,Capital,Capital,,Calford Seadon (Health & Safety) Ltd,1233044,,,,02/11/2020,2200129597,850.00,,Professional Fees : Non Legal,,,,,,No
The Royal Borough of Kensington and Chelsea,RBKC,,Capital,Capital,,Calford Seadon (Health & Safety) Ltd,1233044,,,,11/11/2020,2200131637,"4,755.67",,Payments to main contractor,,,,,,No
The Royal Borough of Kensington and Chelsea,RBKC,,Capital,Capital,,Calford Seadon (Health & Safety) Ltd,1233044,,,,11/11/2020,2200131700,"1,007.94",,Professional Fees : Non Legal,,,,,,No
The Royal Borough of Kensington and Chelsea,RBKC,,Capital,Capital,,Calford Seadon (Health & Safety) Ltd,1233044,,,,11/11/2020,2200131701,800.00,,Professional Fees : Non Legal,,,,,,No
The Royal Borough of Kensington and Chelsea,RBKC,,Capital,Capital,,Calford Seadon (Health & Safety) Ltd,1233044,,,,19/11/2020,2200133342,540.00,,Professional Fees : Non Legal,,,,,,No
The Royal Borough of Kensington and Chelsea,RBKC,,Capital,Capital,,Calford Seadon (Health & Safety) Ltd,1233044,,,,01/12/2020,2200135668,"32,643.03",,Professional Fees : Non Legal,,,,,,No
The Royal Borough of Kensington and Chelsea,RBKC,,Capital,Capital,,Calford Seadon (Health & Safety) Ltd,1233044,,,,08/12/2020,2200137319,"1,007.94",,Professional Fees : Non Legal,,,,,,No
The Royal Borough of Kensington and Chelsea,RBKC,,Capital,Capital,,Calford Seadon (Health & Safety) Ltd,1233044,,,,23/12/2020,2200140146,850.00,,Professional Fees : Non Legal,,,,,,No
The Royal Borough of Kensington and Chelsea,RBKC,,Capital,Capital,,Calford Seadon (Health & Safety) Ltd,1233044,,,,23/12/2020,2200140147,"1,007.94",,Professional Fees : Non Legal,,,,,,No
The Royal Borough of Kensington and Chelsea,RBKC,,Capital,Capital,,Calford Seadon (Health & Safety) Ltd,1233044,,,,23/12/2020,2200140148,"32,643.03",,Professional Fees : Non Legal,,,,,,No
The Royal Borough of Kensington and Chelsea,RBKC,,Capital,Capital,,Capital Property & Construction ,1256857,,,,27/10/2020,2200128236,"3,060.00",,Professional Fees : Non Legal,,,,,,No
The Royal Borough of Kensington and Chelsea,RBKC,,Capital,Capital,,Capital Property & Construction ,1256857,,,,29/10/2020,2200128903,"19,554.00",,Professional Fees : Non Legal,,,,,,No
The Royal Borough of Kensington and Chelsea,RBKC,,Capital,Capital,,Capital Property & Construction ,1256857,,,,02/11/2020,2200129678,"30,000.00",,Professional Fees : Non Legal,,,,,,No
The Royal Borough of Kensington and Chelsea,RBKC,,Capital,Capital,,Capital Property & Construction ,1256857,,,,25/11/2020,2200134538,"81,000.00",,Professional Fees : Non Legal,,,,,,No
The Royal Borough of Kensington and Chelsea,RBKC,,Capital,Capital,,Cappagh Contractors Construction (London) Ltd,1233084,,,,10/11/2020,2200131455,"33,595.41",,Construction : enhancements,,,,,,No
The Royal Borough of Kensington and Chelsea,RBKC,,Capital,Capital,,Cavendish Construction LTD,1267193,,,,26/11/2020,2200134676,"19,512.68",,Safety Fence & Barriers,,,,,,No
The Royal Borough of Kensington and Chelsea,RBKC,,Capital,Capital,,Cavendish Construction LTD,1267193,,,,08/12/2020,2200137313,"7,303.32",,Special Maintenance,,,,,,No
The Royal Borough of Kensington and Chelsea,RBKC,,Capital,Capital,,Chapmanbdsp Limited,1270766,,,,11/12/2020,2200137970,"2,103.62",,Payments to main contractor,,,,,,No
The Royal Borough of Kensington and Chelsea,RBKC,,Capital,Capital,,Chapmanbdsp Limited,1270766,,,,15/12/2020,2200138395,"1,013.00",,Payments to main contractor,,,,,,No
The Royal Borough of Kensington and Chelsea,RBKC,,Capital,Capital,,Chapmanbdsp Limited,1270766,,,,18/12/2020,2200139070,"2,025.00",,Payments to main contractor,,,,,,No
The Royal Borough of Kensington and Chelsea,RBKC,,Capital,Capital,,Charles Marsden-Smedley Ltd ,1233339,,,,10/12/2020,2200137812,"1,250.00",,Other Consultants,,,,,,No
The Royal Borough of Kensington and Chelsea,RBKC,,Capital,Capital,,Chris Edge Tree Care Ltd ,1233369,,,,12/10/2020,2200125345,"11,970.00",,Payments to main contractor,,,,,,No
The Royal Borough of Kensington and Chelsea,RBKC,,Capital,Capital,,Chris Edge Tree Care Ltd ,1233369,,,,24/11/2020,2200134339,"7,400.00",,Payments to main contractor,,,,,,No
The Royal Borough of Kensington and Chelsea,RBKC,,Capital,Capital,,City Electrical Factors,1263373,,,,08/10/2020,2200124545,"1,079.08",,Special Maintenance,,,,,,No
The Royal Borough of Kensington and Chelsea,RBKC,,Capital,Capital,,City Electrical Factors,1263373,,,,03/11/2020,2200129819,"2,349.68",,Special Maintenance,,,,,,No
The Royal Borough of Kensington and Chelsea,RBKC,,Capital,Capital,,City Electrical Factors,1263373,,,,03/11/2020,2200129821,"1,850.80",,Special Maintenance,,,,,,No
The Royal Borough of Kensington and Chelsea,RBKC,,Capital,Capital,,City Electrical Factors,1263373,,,,08/12/2020,2200137261,"1,469.19",,Special Maintenance,,,,,,No
The Royal Borough of Kensington and Chelsea,RBKC,,Capital,Capital,,City Of Westminster ,1231771,,,,13/10/2020,2200125612,"1,025,722.95",,Creditors Control : AP GRIR,,,,,,No
The Royal Borough of Kensington and Chelsea,RBKC,,Capital,Capital,,Clean and Serene Ltd ,1233399,,,,30/10/2020,2200129301,655.00,,Payments to main contractor,,,,,,No
The Royal Borough of Kensington and Chelsea,RBKC,,Capital,Capital,,Clockwork Removals ,1233410,,,,21/12/2020,2200139500,"6,141.78",,Creditors Control : AP GRIR,,,,,,No
The Royal Borough of Kensington and Chelsea,RBKC,,Capital,Capital,,Cloud Booking Ltd ,1233413,,,,06/10/2020,2200123940,"1,620.00",,Construction : enhancements,,,,,,No
The Royal Borough of Kensington and Chelsea,RBKC,,Capital,Capital,,Cloud Booking Ltd ,1233413,,,,08/10/2020,2200124706,"50,550.00",,Construction : enhancements,,,,,,No
The Royal Borough of Kensington and Chelsea,RBKC,,Capital,Capital,,Commercial Services Uk Ltd,1269853,,,,29/10/2020,2200128844,"79,800.00",,Payments to main contractor,,,,,,No
The Royal Borough of Kensington and Chelsea,RBKC,,Capital,Capital,,Connect Survey Services Ltd ,1233656,,,,18/12/2020,2200139135,500.00,,Payments to main contractor,,,,,,No
The Royal Borough of Kensington and Chelsea,RBKC,,Capital,Capital,,Connect Survey Services Ltd ,1233656,,,,22/12/2020,2200139693,500.00,,Payments to main contractor,,,,,,No
The Royal Borough of Kensington and Chelsea,RBKC,,Capital,Capital,,Connect Survey Services Ltd ,1233656,,,,22/12/2020,2200139695,500.00,,Payments to main contractor,,,,,,No
The Royal Borough of Kensington and Chelsea,RBKC,,Capital,Capital,,Coopers Fire Ltd ,1231192,,,,19/11/2020,2200133402,"6,750.00",,Payments to main contractor,,,,,,No
The Royal Borough of Kensington and Chelsea,RBKC,,Capital,Capital,,Coopers Fire Ltd ,1231192,,,,24/11/2020,2200134365,"11,375.00",,Payments to main contractor,,,,,,No
The Royal Borough of Kensington and Chelsea,RBKC,,Capital,Capital,,Core Projects Ltd ,1233682,,,,07/12/2020,2200136796,"1,932.00",,Payments to main contractor,,,,,,No
The Royal Borough of Kensington and Chelsea,RBKC,,Capital,Capital,,Currie & Brown UK Ltd ,1233738,,,,27/10/2020,2200128305,"5,059.88",,Site Works,,,,,,No
The Royal Borough of Kensington and Chelsea,RBKC,,Capital,Capital,,Currie & Brown UK Ltd ,1233738,,,,27/10/2020,2200128309,"1,465.00",,Payments to main contractor,,,,,,No
The Royal Borough of Kensington and Chelsea,RBKC,,Capital,Capital,,Currie & Brown UK Ltd ,1233738,,,,24/11/2020,2200134134,"1,465.00",,Payments to main contractor,,,,,,No
The Royal Borough of Kensington and Chelsea,RBKC,,Capital,Capital,,Currie & Brown UK Ltd ,1233738,,,,24/11/2020,2200134136,"5,059.88",,Site Works,,,,,,No
The Royal Borough of Kensington and Chelsea,RBKC,,Capital,Capital,,Currie & Brown UK Ltd ,1233738,,,,24/11/2020,2200134138,"1,063.75",,Payments to sub contractor,,,,,,No
The Royal Borough of Kensington and Chelsea,RBKC,,Capital,Capital,,Currie & Brown UK Ltd ,1233738,,,,18/12/2020,2200139213,"5,059.88",,Site Works,,,,,,No
The Royal Borough of Kensington and Chelsea,RBKC,,Capital,Capital,,Currie & Brown UK Ltd ,1233738,,,,18/12/2020,2200139215,"1,465.00",,Payments to main contractor,,,,,,No
The Royal Borough of Kensington and Chelsea,RBKC,,Capital,Capital,,Cushman & Wakefield LLP ,1233739,,,,02/10/2020,2200123534,"3,000.00",,Site Works,,,,,,No
The Royal Borough of Kensington and Chelsea,RBKC,,Capital,Capital,,Cushman & Wakefield LLP ,1233739,,,,05/10/2020,2200123848,"5,250.00",,Payments to main contractor,,,,,,No
The Royal Borough of Kensington and Chelsea,RBKC,,Capital,Capital,,Cushman & Wakefield LLP ,1233739,,,,20/11/2020,2200133657,"3,750.00",,Site Works,,,,,,No
The Royal Borough of Kensington and Chelsea,RBKC,,Capital,Capital,,Cushman & Wakefield LLP ,1233739,,,,20/11/2020,2200133658,"5,250.00",,Site Works,,,,,,No
The Royal Borough of Kensington and Chelsea,RBKC,,Capital,Capital,,Cushman & Wakefield LLP ,1233739,,,,14/12/2020,2200138149,"3,000.00",,Payments to sub contractor,,,,,,No
The Royal Borough of Kensington and Chelsea,RBKC,,Capital,Capital,,Cushman & Wakefield LLP ,1233739,,,,15/12/2020,2200138378,"5,250.00",,Site Works,,,,,,No
The Royal Borough of Kensington and Chelsea,RBKC,,Capital,Capital,,Cushman & Wakefield LLP ,1233739,,,,16/12/2020,2200138735,"5,250.00",,Payments to main contractor,,,,,,No
The Royal Borough of Kensington and Chelsea,RBKC,,Capital,Capital,,Cuttle Construction Limited,1274914,,,,04/12/2020,2200136464,"46,313.56",,Payments to main contractor,,,,,,No
The Royal Borough of Kensington and Chelsea,RBKC,,Capital,Capital,,Cuttle Construction Limited,1274914,,,,10/12/2020,2200137672,"34,660.00",,Payments to main contractor,,,,,,No
The Royal Borough of Kensington and Chelsea,RBKC,,Capital,Capital,,DBR & Associates Ltd ,1233969,,,,09/11/2020,2200131233,"4,872.50",,Planned Maintenance (CM),,,,,,No
The Royal Borough of Kensington and Chelsea,RBKC,,Capital,Capital,,DBR & Associates Ltd ,1233969,,,,09/11/2020,2200131235,"5,183.00",,Planned Maintenance (CM),,,,,,No
The Royal Borough of Kensington and Chelsea,RBKC,,Capital,Capital,,Danacom Ltd,1262818,,,,26/10/2020,2200128037,"31,277.04",,Special Maintenance,,,,,,No
The Royal Borough of Kensington and Chelsea,RBKC,,Capital,Capital,,Danacom Ltd,1262818,,,,26/10/2020,2200128038,"27,913.61",,Special Maintenance,,,,,,No
The Royal Borough of Kensington and Chelsea,RBKC,,Capital,Capital,,Danacom Ltd,1262818,,,,22/12/2020,2200139767,"58,083.09",,Special Maintenance,,,,,,No
The Royal Borough of Kensington and Chelsea,RBKC,,Capital,Capital,,Delva Patman Redler LLP,1271465,,,,03/11/2020,2200129769,"3,645.59",,Payments to main contractor,,,,,,No
The Royal Borough of Kensington and Chelsea,RBKC,,Capital,Capital,,Derisk (UK) Limited ,1233980,,,,22/12/2020,2200139890,"2,300.00",,Payments to main contractor,,,,,,No
The Royal Borough of Kensington and Chelsea,RBKC,,Capital,Capital,,Derisk (UK) Limited ,1233980,,,,22/12/2020,2200139892,"2,300.00",,Payments to main contractor,,,,,,No
The Royal Borough of Kensington and Chelsea,RBKC,,Capital,Capital,,ECD Architects Ltd,1234067,,,,02/12/2020,2200136089,"10,500.00",,Payments to main contractor,,,,,,No
The Royal Borough of Kensington and Chelsea,RBKC,,Capital,Capital,,ECD Architects Ltd,1234067,,,,02/12/2020,2200136096,"10,500.00",,Payments to main contractor,,,,,,No
The Royal Borough of Kensington and Chelsea,RBKC,,Capital,Capital,,ECD Architects Ltd,1234067,,,,18/12/2020,2200139082,"10,500.00",,Payments to main contractor,,,,,,No
The Royal Borough of Kensington and Chelsea,RBKC,,Capital,Capital,,ECD Architects Ltd,1234067,,,,18/12/2020,2200139083,"10,500.00",,Payments to main contractor,,,,,,No
The Royal Borough of Kensington and Chelsea,RBKC,,Capital,Capital,,ETEC Associates LTD,1269170,,,,02/10/2020,2200123431,"3,575.00",,Payments to main contractor,,,,,,No
The Royal Borough of Kensington and Chelsea,RBKC,,Capital,Capital,,ETEC Associates LTD,1269170,,,,01/12/2020,2200135611,"4,450.00",,Construction : enhancements,,,,,,No
The Royal Borough of Kensington and Chelsea,RBKC,,Capital,Capital,,ETEC Associates LTD,1269170,,,,01/12/2020,2200135612,"2,420.00",,Construction : enhancements,,,,,,No
The Royal Borough of Kensington and Chelsea,RBKC,,Capital,Capital,,ETEC Associates LTD,1269170,,,,01/12/2020,2200135613,"6,230.00",,Construction : enhancements,,,,,,No
The Royal Borough of Kensington and Chelsea,RBKC,,Capital,Capital,,ETEC Associates LTD,1269170,,,,01/12/2020,2200135614,"6,850.00",,Construction : enhancements,,,,,,No
The Royal Borough of Kensington and Chelsea,RBKC,,Capital,Capital,,ETEC Associates LTD,1269170,,,,01/12/2020,2200135615,"2,437.50",,Construction : enhancements,,,,,,No
The Royal Borough of Kensington and Chelsea,RBKC,,Capital,Capital,,ETEC Associates LTD,1269170,,,,01/12/2020,2200135673,"13,000.00",,Payments to main contractor,,,,,,No
The Royal Borough of Kensington and Chelsea,RBKC,,Capital,Capital,,Ecovolt Environment Ltd,1272751,,,,02/10/2020,2200123562,"11,825.00",,Special Maintenance,,,,,,No
The Royal Borough of Kensington and Chelsea,RBKC,,Capital,Capital,,Ecovolt Environment Ltd,1272751,,,,05/11/2020,2200130356,"7,095.00",,Special Maintenance,,,,,,No
The Royal Borough of Kensington and Chelsea,RBKC,,Capital,Capital,,Edmundson Electrical,1261331,,,,02/12/2020,2200136105,529.98,,Payments to main contractor,,,,,,No
The Royal Borough of Kensington and Chelsea,RBKC,,Capital,Capital,,Edmundson Electrical,1261331,,,,02/12/2020,2200136106,"2,424.00",,Payments to main contractor,,,,,,No
The Royal Borough of Kensington and Chelsea,RBKC,,Capital,Capital,,Edmundson Electrical,1261331,,,,08/12/2020,2200137324,"1,214.26",,Payments to main contractor,,,,,,No
The Royal Borough of Kensington and Chelsea,RBKC,,Capital,Capital,,Emisphere Ltd ,1231200,,,,05/10/2020,2200123777,"7,085.00",,Payments to main contractor,,,,,,No
The Royal Borough of Kensington and Chelsea,RBKC,,Capital,Capital,,Emisphere Ltd ,1231200,,,,20/10/2020,2200127124,"6,670.00",,Payments to main contractor,,,,,,No
The Royal Borough of Kensington and Chelsea,RBKC,,Capital,Capital,,Emisphere Ltd ,1231200,,,,20/10/2020,2200127125,"6,600.00",,Payments to main contractor,,,,,,No
The Royal Borough of Kensington and Chelsea,RBKC,,Capital,Capital,,Emisphere Ltd ,1231200,,,,04/12/2020,2200136424,"5,935.00",,Payments to main contractor,,,,,,No
The Royal Borough of Kensington and Chelsea,RBKC,,Capital,Capital,,Emisphere Ltd ,1231200,,,,23/12/2020,2200140142,"6,440.00",,Payments to main contractor,,,,,,No
The Royal Borough of Kensington and Chelsea,RBKC,,Capital,Capital,,Emisphere Ltd ,1231200,,,,23/12/2020,2200140143,"5,380.00",,Payments to main contractor,,,,,,No
The Royal Borough of Kensington and Chelsea,RBKC,,Capital,Capital,,Engie Urban Energy Group Ltd ,1231202,,,,16/10/2020,2200126430,"9,580.40",,Payments to main contractor,,,,,,No
The Royal Borough of Kensington and Chelsea,RBKC,,Capital,Capital,,Engie Urban Energy Group Ltd ,1231202,,,,16/10/2020,2200126441,"4,699.90",,Payments to main contractor,,,,,,No
The Royal Borough of Kensington and Chelsea,RBKC,,Capital,Capital,,Engie Urban Energy Group Ltd ,1231202,,,,23/11/2020,2200134039,"5,981.25",,Payments to sub contractor,,,,,,No
The Royal Borough of Kensington and Chelsea,RBKC,,Capital,Capital,,Engie Urban Energy Group Ltd ,1231202,,,,27/11/2020,2200135016,"9,498.70",,Payments to main contractor,,,,,,No
The Royal Borough of Kensington and Chelsea,RBKC,,Capital,Capital,,Engie Urban Energy Group Ltd ,1231202,,,,14/12/2020,2200138152,"29,430.00",,Site Works,,,,,,No
The Royal Borough of Kensington and Chelsea,RBKC,,Capital,Capital,,English Architectural Glazing Limit,1272155,,,,03/12/2020,2200136171,"19,000.00",,Payments to sub contractor,,,,,,No
The Royal Borough of Kensington and Chelsea,RBKC,,Capital,Capital,,Enviro Technology Services Plc,1234322,,,,15/10/2020,2200126115,"17,102.25",,Creditors Control : AP GRIR,,,,,,No
The Royal Borough of Kensington and Chelsea,RBKC,,Capital,Capital,,Express Environmental ,1256411,,,,14/10/2020,2200125873,"2,360.16",,Payments to main contractor,,,,,,No
The Royal Borough of Kensington and Chelsea,RBKC,,Capital,Capital,,Express Environmental ,1256411,,,,14/10/2020,2200125882,"3,492.48",,Payments to main contractor,,,,,,No
The Royal Borough of Kensington and Chelsea,RBKC,,Capital,Capital,,Express Environmental ,1256411,,,,14/10/2020,2200125886,"2,753.28",,Payments to main contractor,,,,,,No
The Royal Borough of Kensington and Chelsea,RBKC,,Capital,Capital,,Express Environmental ,1256411,,,,14/10/2020,2200125889,"4,990.08",,Payments to main contractor,,,,,,No
The Royal Borough of Kensington and Chelsea,RBKC,,Capital,Capital,,Express Environmental ,1256411,,,,14/10/2020,2200125891,"6,091.20",,Payments to main contractor,,,,,,No
The Royal Borough of Kensington and Chelsea,RBKC,,Capital,Capital,,Express Environmental ,1256411,,,,14/10/2020,2200125893,"1,274.88",,Payments to main contractor,,,,,,No
The Royal Borough of Kensington and Chelsea,RBKC,,Capital,Capital,,Express Environmental ,1256411,,,,14/10/2020,2200125894,"2,234.24",,Payments to main contractor,,,,,,No
The Royal Borough of Kensington and Chelsea,RBKC,,Capital,Capital,,Express Environmental ,1256411,,,,14/10/2020,2200125895,"5,970.24",,Payments to main contractor,,,,,,No
The Royal Borough of Kensington and Chelsea,RBKC,,Capital,Capital,,Express Environmental ,1256411,,,,14/10/2020,2200125897,"4,706.88",,Payments to main contractor,,,,,,No
The Royal Borough of Kensington and Chelsea,RBKC,,Capital,Capital,,Express Environmental ,1256411,,,,14/10/2020,2200125898,"6,507.20",,Payments to main contractor,,,,,,No
The Royal Borough of Kensington and Chelsea,RBKC,,Capital,Capital,,Express Environmental ,1256411,,,,14/10/2020,2200125901,"3,337.92",,Payments to main contractor,,,,,,No
The Royal Borough of Kensington and Chelsea,RBKC,,Capital,Capital,,Express Environmental ,1256411,,,,20/11/2020,2200133538,"4,327.60",,Payments to main contractor,,,,,,No
The Royal Borough of Kensington and Chelsea,RBKC,,Capital,Capital,,Express Environmental ,1256411,,,,20/11/2020,2200133539,"2,961.60",,Payments to main contractor,,,,,,No
The Royal Borough of Kensington and Chelsea,RBKC,,Capital,Capital,,Express Environmental ,1256411,,,,20/11/2020,2200133543,"3,004.64",,Payments to main contractor,,,,,,No
The Royal Borough of Kensington and Chelsea,RBKC,,Capital,Capital,,Express Environmental ,1256411,,,,20/11/2020,2200133544,"2,719.68",,Payments to main contractor,,,,,,No
The Royal Borough of Kensington and Chelsea,RBKC,,Capital,Capital,,Express Environmental ,1256411,,,,20/11/2020,2200133545,"3,250.58",,Payments to main contractor,,,,,,No
The Royal Borough of Kensington and Chelsea,RBKC,,Capital,Capital,,Express Environmental ,1256411,,,,20/11/2020,2200133546,"2,907.84",,Payments to main contractor,,,,,,No
The Royal Borough of Kensington and Chelsea,RBKC,,Capital,Capital,,Express Environmental ,1256411,,,,20/11/2020,2200133547,"3,384.96",,Payments to main contractor,,,,,,No
The Royal Borough of Kensington and Chelsea,RBKC,,Capital,Capital,,Express Environmental ,1256411,,,,20/11/2020,2200133550,"2,202.24",,Payments to main contractor,,,,,,No
The Royal Borough of Kensington and Chelsea,RBKC,,Capital,Capital,,Express Environmental ,1256411,,,,24/11/2020,2200134147,"5,594.08",,Payments to main contractor,,,,,,No
The Royal Borough of Kensington and Chelsea,RBKC,,Capital,Capital,,Express Environmental ,1256411,,,,24/11/2020,2200134149,"1,288.32",,Payments to main contractor,,,,,,No
The Royal Borough of Kensington and Chelsea,RBKC,,Capital,Capital,,Express Environmental ,1256411,,,,27/11/2020,2200134810,"5,506.56",,Payments to main contractor,,,,,,No
The Royal Borough of Kensington and Chelsea,RBKC,,Capital,Capital,,Express Environmental ,1256411,,,,27/11/2020,2200135008,"5,277.68",,Payments to main contractor,,,,,,No
The Royal Borough of Kensington and Chelsea,RBKC,,Capital,Capital,,Express Environmental ,1256411,,,,27/11/2020,2200135009,"3,102.32",,Payments to main contractor,,,,,,No
The Royal Borough of Kensington and Chelsea,RBKC,,Capital,Capital,,Express Environmental ,1256411,,,,27/11/2020,2200135010,"6,312.96",,Payments to main contractor,,,,,,No
The Royal Borough of Kensington and Chelsea,RBKC,,Capital,Capital,,Express Environmental ,1256411,,,,27/11/2020,2200135011,"2,486.72",,Payments to main contractor,,,,,,No
The Royal Borough of Kensington and Chelsea,RBKC,,Capital,Capital,,Express Environmental ,1256411,,,,27/11/2020,2200135012,"2,551.68",,Payments to main contractor,,,,,,No
The Royal Borough of Kensington and Chelsea,RBKC,,Capital,Capital,,Express Environmental ,1256411,,,,27/11/2020,2200135014,791.50,,Payments to main contractor,,,,,,No
The Royal Borough of Kensington and Chelsea,RBKC,,Capital,Capital,,Express Environmental ,1256411,,,,27/11/2020,2200135015,"2,894.40",,Payments to main contractor,,,,,,No
The Royal Borough of Kensington and Chelsea,RBKC,,Capital,Capital,,Express Environmental ,1256411,,,,27/11/2020,2200135017,739.20,,Payments to main contractor,,,,,,No
The Royal Borough of Kensington and Chelsea,RBKC,,Capital,Capital,,Express Environmental ,1256411,,,,27/11/2020,2200135018,500.00,,Payments to main contractor,,,,,,No
The Royal Borough of Kensington and Chelsea,RBKC,,Capital,Capital,,Express Environmental ,1256411,,,,27/11/2020,2200135019,500.00,,Payments to main contractor,,,,,,No
The Royal Borough of Kensington and Chelsea,RBKC,,Capital,Capital,,Express Environmental ,1256411,,,,27/11/2020,2200135022,"2,140.80",,Payments to main contractor,,,,,,No
The Royal Borough of Kensington and Chelsea,RBKC,,Capital,Capital,,Express Environmental ,1256411,,,,27/11/2020,2200135023,624.00,,Payments to main contractor,,,,,,No
The Royal Borough of Kensington and Chelsea,RBKC,,Capital,Capital,,Express Environmental ,1256411,,,,02/12/2020,2200135837,500.00,,Payments to main contractor,,,,,,No
The Royal Borough of Kensington and Chelsea,RBKC,,Capital,Capital,,Express Environmental ,1256411,,,,02/12/2020,2200135843,"2,085.00",,Payments to main contractor,,,,,,No
The Royal Borough of Kensington and Chelsea,RBKC,,Capital,Capital,,Express Environmental ,1256411,,,,02/12/2020,2200135851,"4,457.60",,Payments to main contractor,,,,,,No
The Royal Borough of Kensington and Chelsea,RBKC,,Capital,Capital,,Express Environmental ,1256411,,,,02/12/2020,2200135859,500.00,,Payments to main contractor,,,,,,No
The Royal Borough of Kensington and Chelsea,RBKC,,Capital,Capital,,Express Environmental ,1256411,,,,02/12/2020,2200135873,"1,128.00",,Payments to main contractor,,,,,,No
The Royal Borough of Kensington and Chelsea,RBKC,,Capital,Capital,,Express Environmental ,1256411,,,,18/12/2020,2200139141,739.20,,Payments to main contractor,,,,,,No
The Royal Borough of Kensington and Chelsea,RBKC,,Capital,Capital,,F.M Conway Ltd ,1231208,,,,08/10/2020,2200124709,"21,116.27",,Payments to main contractor,,,,,,No
The Royal Borough of Kensington and Chelsea,RBKC,,Capital,Capital,,F.M Conway Ltd ,1231208,,,,22/10/2020,2200127456,"2,871.64",,Construction : enhancements,,,,,,No
The Royal Borough of Kensington and Chelsea,RBKC,,Capital,Capital,,F.M Conway Ltd ,1231208,,,,27/10/2020,2200128298,"152,819.78",,Construction : enhancements,,,,,,No
The Royal Borough of Kensington and Chelsea,RBKC,,Capital,Capital,,F.M Conway Ltd ,1231208,,,,29/10/2020,2200128819,"54,778.13",,Construction : enhancements,,,,,,No
The Royal Borough of Kensington and Chelsea,RBKC,,Capital,Capital,,F.M Conway Ltd ,1231208,,,,29/10/2020,2200128919,820.81,,Construction : enhancements,,,,,,No
The Royal Borough of Kensington and Chelsea,RBKC,,Capital,Capital,,F.M Conway Ltd ,1231208,,,,29/10/2020,2200128921,"10,696.57",,Construction : enhancements,,,,,,No
The Royal Borough of Kensington and Chelsea,RBKC,,Capital,Capital,,F.M Conway Ltd ,1231208,,,,30/10/2020,2200129269,"11,765.30",,Professional Fees : Non Legal,,,,,,No
The Royal Borough of Kensington and Chelsea,RBKC,,Capital,Capital,,F.M Conway Ltd ,1231208,,,,01/11/2020,2200129443,"3,103.65",,Traffic sign & white lines,,,,,,No
The Royal Borough of Kensington and Chelsea,RBKC,,Capital,Capital,,F.M Conway Ltd ,1231208,,,,02/11/2020,2200129545,"120,000.00",,Construction : enhancements,,,,,,No
The Royal Borough of Kensington and Chelsea,RBKC,,Capital,Capital,,F.M Conway Ltd ,1231208,,,,02/11/2020,2200129558,"12,329.10",,Construction : enhancements,,,,,,No
The Royal Borough of Kensington and Chelsea,RBKC,,Capital,Capital,,F.M Conway Ltd ,1231208,,,,04/11/2020,2200130092,"1,644.30",,Construction : enhancements,,,,,,No
The Royal Borough of Kensington and Chelsea,RBKC,,Capital,Capital,,F.M Conway Ltd ,1231208,,,,04/11/2020,2200130159,"106,987.24",,Design Consultant,,,,,,No
The Royal Borough of Kensington and Chelsea,RBKC,,Capital,Capital,,F.M Conway Ltd ,1231208,,,,05/11/2020,2200130446,"15,285.43",,Payments to main contractor,,,,,,No
The Royal Borough of Kensington and Chelsea,RBKC,,Capital,Capital,,F.M Conway Ltd ,1231208,,,,06/11/2020,2200130630,"1,541.31",,Payments to main contractor,,,,,,No
The Royal Borough of Kensington and Chelsea,RBKC,,Capital,Capital,,F.M Conway Ltd ,1231208,,,,12/11/2020,2200132007,"15,882.57",,Site Works,,,,,,No
The Royal Borough of Kensington and Chelsea,RBKC,,Capital,Capital,,F.M Conway Ltd ,1231208,,,,25/11/2020,2200134564,"68,144.08",,Construction : enhancements,,,,,,No
The Royal Borough of Kensington and Chelsea,RBKC,,Capital,Capital,,F.M Conway Ltd ,1231208,,,,02/12/2020,2200136024,"26,077.20",,Traffic sign & white lines,,,,,,No
The Royal Borough of Kensington and Chelsea,RBKC,,Capital,Capital,,F.M Conway Ltd ,1231208,,,,07/12/2020,2200136804,"73,107.67",,Payments to main contractor,,,,,,No
The Royal Borough of Kensington and Chelsea,RBKC,,Capital,Capital,,F.M Conway Ltd ,1231208,,,,08/12/2020,2200137044,"6,426.00",,Construction : enhancements,,,,,,No
The Royal Borough of Kensington and Chelsea,RBKC,,Capital,Capital,,F.M Conway Ltd ,1231208,,,,08/12/2020,2200137048,"1,115.29",,Construction : enhancements,,,,,,No
The Royal Borough of Kensington and Chelsea,RBKC,,Capital,Capital,,F.M Conway Ltd ,1231208,,,,15/12/2020,2200138420,"1,650.00",,Construction : enhancements,,,,,,No
The Royal Borough of Kensington and Chelsea,RBKC,,Capital,Capital,,F.M Conway Ltd ,1231208,,,,17/12/2020,2200138835,"4,121.10",,Traffic sign & white lines,,,,,,No
The Royal Borough of Kensington and Chelsea,RBKC,,Capital,Capital,,F.M Conway Ltd ,1231208,,,,17/12/2020,2200138845,"3,193.75",,Payments to main contractor,,,,,,No
The Royal Borough of Kensington and Chelsea,RBKC,,Capital,Capital,,F.M Conway Ltd ,1231208,,,,23/12/2020,2200140102,"50,000.00",,Construction : enhancements,,,,,,No
The Royal Borough of Kensington and Chelsea,RBKC,,Capital,Capital,,Faithful and Gould Limited,1234387,,,,14/10/2020,2200125846,"81,300.00",,Professional Fees : Non Legal,,,,,,No
The Royal Borough of Kensington and Chelsea,RBKC,,Capital,Capital,,Faithful and Gould Limited,1234387,,,,12/11/2020,2200131984,"1,500.00",,Professional Fees : Non Legal,,,,,,No
The Royal Borough of Kensington and Chelsea,RBKC,,Capital,Capital,,Frame Projects Ltd,1269840,,,,24/11/2020,2200134206,"4,500.00",,Professional Fees : Non Legal,,,,,,No
The Royal Borough of Kensington and Chelsea,RBKC,,Capital,Capital,,Frame Projects Ltd,1269840,,,,24/11/2020,2200134208,"4,500.00",,Payments to main contractor,,,,,,No
The Royal Borough of Kensington and Chelsea,RBKC,,Capital,Capital,,Frankham Consultancy Group Ltd ,1234583,,,,27/10/2020,2200128316,"1,200.00",,Payments to main contractor,,,,,,No
The Royal Borough of Kensington and Chelsea,RBKC,,Capital,Capital,,Frankham Consultancy Group Ltd ,1234583,,,,10/11/2020,2200131519,"1,420.00",,Payments to main contractor,,,,,,No
The Royal Borough of Kensington and Chelsea,RBKC,,Capital,Capital,,Frankham Consultancy Group Ltd ,1234583,,,,10/11/2020,2200131551,"1,635.00",,Payments to main contractor,,,,,,No
The Royal Borough of Kensington and Chelsea,RBKC,,Capital,Capital,,Frankham Consultancy Group Ltd ,1234583,,,,10/11/2020,2200131557,675.00,,Payments to main contractor,,,,,,No
The Royal Borough of Kensington and Chelsea,RBKC,,Capital,Capital,,Frankham Consultancy Group Ltd ,1234583,,,,10/11/2020,2200131561,870.00,,Payments to main contractor,,,,,,No
The Royal Borough of Kensington and Chelsea,RBKC,,Capital,Capital,,Frankham Consultancy Group Ltd ,1234583,,,,17/11/2020,2200132867,"3,116.01",,Planned Maintenance (CM),,,,,,No
The Royal Borough of Kensington and Chelsea,RBKC,,Capital,Capital,,Frankham Consultancy Group Ltd ,1234583,,,,18/11/2020,2200133139,790.00,,Payments to main contractor,,,,,,No
The Royal Borough of Kensington and Chelsea,RBKC,,Capital,Capital,,Frankham Consultancy Group Ltd ,1234583,,,,08/12/2020,2200137110,640.00,,Payments to main contractor,,,,,,No
The Royal Borough of Kensington and Chelsea,RBKC,,Capital,Capital,,Freeway Lift Services Ltd ,1231213,,,,22/10/2020,2200127532,"5,340.00",,Payments to main contractor,,,,,,No
The Royal Borough of Kensington and Chelsea,RBKC,,Capital,Capital,,Frost Meadowcroft Ltd ,1234591,,,,27/10/2020,2200128310,750.00,,Payments to sub contractor,,,,,,No
The Royal Borough of Kensington and Chelsea,RBKC,,Capital,Capital,,Fusion Project Management Ltd,1268369,,,,16/10/2020,2200126437,"10,834.00",,Payments to main contractor,,,,,,No
The Royal Borough of Kensington and Chelsea,RBKC,,Capital,Capital,,Fusion Project Management Ltd,1268369,,,,13/11/2020,2200132189,"2,900.00",,Payments to main contractor,,,,,,No
The Royal Borough of Kensington and Chelsea,RBKC,,Capital,Capital,,Fusion Project Management Ltd,1268369,,,,02/12/2020,2200136076,"2,900.00",,Payments to main contractor,,,,,,No
The Royal Borough of Kensington and Chelsea,RBKC,,Capital,Capital,,Fusion Project Management Ltd,1268369,,,,23/12/2020,2200140058,"2,900.00",,Payments to main contractor,,,,,,No
The Royal Borough of Kensington and Chelsea,RBKC,,Capital,Capital,,CGM Hampshire Limited Co,D000000023,,,,09/11/2020,3110238090,"297,636.31",,Acquisition of Land & Buildings,,,,,,No
The Royal Borough of Kensington and Chelsea,RBKC,,Capital,Capital,,Redact Details,D000000023,,,,17/11/2020,3110241944,"970,000.00",,Acquisition of Land & Buildings,,,,,,No
The Royal Borough of Kensington and Chelsea,RBKC,,Capital,Capital,,Muscatt Walker Hayim Solicitors,D000000023,,,,18/11/2020,3110241985,"1,023.00",,Acquisition of Land & Buildings,,,,,,No
The Royal Borough of Kensington and Chelsea,RBKC,,Capital,Capital,,Virgin Media,D000000023,,,,14/12/2020,3110249163,720.00,,Payments to main contractor,,,,,,No
The Royal Borough of Kensington and Chelsea,RBKC,,Capital,Capital,,Cripps LLP,D000000023,,,,21/12/2020,3110250411,"564,915.87",,Acquisition of Land & Buildings,,,,,,No
The Royal Borough of Kensington and Chelsea,RBKC,,Capital,Capital,,GGS Solutions Ltd ,1234644,,,,16/11/2020,2200132606,"10,416.00",,Payments to main contractor,,,,,,No
The Royal Borough of Kensington and Chelsea,RBKC,,Capital,Capital,,GGS Solutions Ltd ,1234644,,,,16/11/2020,2200132607,"10,416.00",,Payments to sub contractor,,,,,,No
The Royal Borough of Kensington and Chelsea,RBKC,,Capital,Capital,,GGS Solutions Ltd ,1234644,,,,15/12/2020,2200138288,"10,080.00",,Construction : enhancements,,,,,,No
The Royal Borough of Kensington and Chelsea,RBKC,,Capital,Capital,,GGS Solutions Ltd ,1234644,,,,15/12/2020,2200138289,"10,080.00",,Construction : enhancements,,,,,,No
The Royal Borough of Kensington and Chelsea,RBKC,,Capital,Capital,,Gardiner & Theobald LLP ,1234613,,,,14/10/2020,2200125896,"2,833.00",,Other Consultants,,,,,,No
The Royal Borough of Kensington and Chelsea,RBKC,,Capital,Capital,,Gardiner & Theobald LLP ,1234613,,,,13/11/2020,2200132153,"4,500.00",,Other Consultants,,,,,,No
The Royal Borough of Kensington and Chelsea,RBKC,,Capital,Capital,,Gardiner & Theobald LLP ,1234613,,,,23/11/2020,2200133945,"7,117.00",,Other Consultants,,,,,,No
The Royal Borough of Kensington and Chelsea,RBKC,,Capital,Capital,,Gardiner & Theobald LLP ,1234613,,,,16/12/2020,2200138745,"4,500.00",,Other Consultants,,,,,,No
The Royal Borough of Kensington and Chelsea,RBKC,,Capital,Capital,,Gardiner & Theobald LLP ,1234613,,,,16/12/2020,2200138747,"4,500.00",,Other Consultants,,,,,,No
The Royal Borough of Kensington and Chelsea,RBKC,,Capital,Capital,,Gardiner & Theobald LLP ,1234613,,,,22/12/2020,2200139688,"4,500.00",,Other Consultants,,,,,,No
The Royal Borough of Kensington and Chelsea,RBKC,,Capital,Capital,,Gardiner & Theobald LLP ,1234613,,,,30/12/2020,2200140552,"7,500.00",,Other Consultants,,,,,,No
The Royal Borough of Kensington and Chelsea,RBKC,,Capital,Capital,,Garvey Bros Builders ,1234614,,,,03/11/2020,2200129927,"6,835.00",,Payments to main contractor,,,,,,No
The Royal Borough of Kensington and Chelsea,RBKC,,Capital,Capital,,Garvey Bros Builders ,1234614,,,,19/11/2020,2200133476,"8,600.00",,Payments to main contractor,,,,,,No
The Royal Borough of Kensington and Chelsea,RBKC,,Capital,Capital,,Garvey Bros Builders ,1234614,,,,19/11/2020,2200133477,"14,056.00",,Payments to main contractor,,,,,,No
The Royal Borough of Kensington and Chelsea,RBKC,,Capital,Capital,,Garvey Bros Builders ,1234614,,,,19/11/2020,2200133478,"8,853.00",,Payments to main contractor,,,,,,No
The Royal Borough of Kensington and Chelsea,RBKC,,Capital,Capital,,Garvey Bros Builders ,1234614,,,,23/12/2020,2200140135,"4,970.00",,Payments to main contractor,,,,,,No
The Royal Borough of Kensington and Chelsea,RBKC,,Capital,Capital,,Geotechnical and Environmental,1234639,,,,16/12/2020,2200138591,"5,906.00",,Payments to main contractor,,,,,,No
The Royal Borough of Kensington and Chelsea,RBKC,,Capital,Capital,,Gerda Security Products Ltd ,1234642,,,,09/10/2020,2200124782,700.00,,Payments to main contractor,,,,,,No
The Royal Borough of Kensington and Chelsea,RBKC,,Capital,Capital,,Gerda Security Products Ltd ,1234642,,,,09/10/2020,2200124784,"2,450.00",,Payments to main contractor,,,,,,No
The Royal Borough of Kensington and Chelsea,RBKC,,Capital,Capital,,Gerda Security Products Ltd ,1234642,,,,09/10/2020,2200124787,"6,340.84",,Payments to main contractor,,,,,,No
The Royal Borough of Kensington and Chelsea,RBKC,,Capital,Capital,,Gerda Security Products Ltd ,1234642,,,,09/10/2020,2200124788,"1,400.00",,Payments to main contractor,,,,,,No
The Royal Borough of Kensington and Chelsea,RBKC,,Capital,Capital,,Gerda Security Products Ltd ,1234642,,,,09/10/2020,2200124789,"3,500.00",,Payments to main contractor,,,,,,No
The Royal Borough of Kensington and Chelsea,RBKC,,Capital,Capital,,Gerda Security Products Ltd ,1234642,,,,09/10/2020,2200124790,"3,500.00",,Payments to main contractor,,,,,,No
The Royal Borough of Kensington and Chelsea,RBKC,,Capital,Capital,,Gerda Security Products Ltd ,1234642,,,,09/10/2020,2200124791,"2,800.00",,Payments to main contractor,,,,,,No
The Royal Borough of Kensington and Chelsea,RBKC,,Capital,Capital,,Gerda Security Products Ltd ,1234642,,,,09/10/2020,2200124792,"1,750.00",,Payments to main contractor,,,,,,No
The Royal Borough of Kensington and Chelsea,RBKC,,Capital,Capital,,Gerda Security Products Ltd ,1234642,,,,09/10/2020,2200124797,670.00,,Payments to main contractor,,,,,,No
The Royal Borough of Kensington and Chelsea,RBKC,,Capital,Capital,,Gerda Security Products Ltd ,1234642,,,,09/10/2020,2200124798,"4,908.74",,Payments to main contractor,,,,,,No
The Royal Borough of Kensington and Chelsea,RBKC,,Capital,Capital,,Gerda Security Products Ltd ,1234642,,,,09/10/2020,2200124799,700.00,,Payments to main contractor,,,,,,No
The Royal Borough of Kensington and Chelsea,RBKC,,Capital,Capital,,Gerda Security Products Ltd ,1234642,,,,09/10/2020,2200124800,700.00,,Payments to main contractor,,,,,,No
The Royal Borough of Kensington and Chelsea,RBKC,,Capital,Capital,,Gerda Security Products Ltd ,1234642,,,,09/10/2020,2200124801,700.00,,Payments to main contractor,,,,,,No
The Royal Borough of Kensington and Chelsea,RBKC,,Capital,Capital,,Gerda Security Products Ltd ,1234642,,,,09/10/2020,2200124803,"7,700.00",,Payments to main contractor,,,,,,No
The Royal Borough of Kensington and Chelsea,RBKC,,Capital,Capital,,Gerda Security Products Ltd ,1234642,,,,09/10/2020,2200124805,"10,850.00",,Payments to main contractor,,,,,,No
The Royal Borough of Kensington and Chelsea,RBKC,,Capital,Capital,,Gerda Security Products Ltd ,1234642,,,,09/10/2020,2200124806,786.00,,Payments to main contractor,,,,,,No
The Royal Borough of Kensington and Chelsea,RBKC,,Capital,Capital,,Gerda Security Products Ltd ,1234642,,,,09/10/2020,2200124811,"1,050.00",,Payments to main contractor,,,,,,No
The Royal Borough of Kensington and Chelsea,RBKC,,Capital,Capital,,Gerda Security Products Ltd ,1234642,,,,12/10/2020,2200125250,"12,492.54",,Payments to main contractor,,,,,,No
The Royal Borough of Kensington and Chelsea,RBKC,,Capital,Capital,,Gerda Security Products Ltd ,1234642,,,,12/10/2020,2200125251,"2,800.00",,Payments to main contractor,,,,,,No
The Royal Borough of Kensington and Chelsea,RBKC,,Capital,Capital,,Gerda Security Products Ltd ,1234642,,,,12/10/2020,2200125258,"1,197.63",,Payments to main contractor,,,,,,No
The Royal Borough of Kensington and Chelsea,RBKC,,Capital,Capital,,Gerda Security Products Ltd ,1234642,,,,12/10/2020,2200125259,"9,577.32",,Payments to main contractor,,,,,,No
The Royal Borough of Kensington and Chelsea,RBKC,,Capital,Capital,,Gerda Security Products Ltd ,1234642,,,,13/10/2020,2200125501,"5,950.00",,Payments to main contractor,,,,,,No
The Royal Borough of Kensington and Chelsea,RBKC,,Capital,Capital,,Gerda Security Products Ltd ,1234642,,,,13/10/2020,2200125502,"26,364.76",,Payments to main contractor,,,,,,No
The Royal Borough of Kensington and Chelsea,RBKC,,Capital,Capital,,Gerda Security Products Ltd ,1234642,,,,16/10/2020,2200126452,"1,180.00",,Construction : enhancements,,,,,,No
The Royal Borough of Kensington and Chelsea,RBKC,,Capital,Capital,,Gerda Security Products Ltd ,1234642,,,,16/10/2020,2200126456,"4,267.46",,Construction : enhancements,,,,,,No
The Royal Borough of Kensington and Chelsea,RBKC,,Capital,Capital,,Gerda Security Products Ltd ,1234642,,,,16/10/2020,2200126458,"1,442.98",,Construction : enhancements,,,,,,No
The Royal Borough of Kensington and Chelsea,RBKC,,Capital,Capital,,Gerda Security Products Ltd ,1234642,,,,16/10/2020,2200126459,"1,050.00",,Construction : enhancements,,,,,,No
The Royal Borough of Kensington and Chelsea,RBKC,,Capital,Capital,,Gerda Security Products Ltd ,1234642,,,,22/10/2020,2200127445,847.85,,Payments to main contractor,,,,,,No
The Royal Borough of Kensington and Chelsea,RBKC,,Capital,Capital,,Gerda Security Products Ltd ,1234642,,,,04/11/2020,2200130064,"4,900.00",,Payments to main contractor,,,,,,No
The Royal Borough of Kensington and Chelsea,RBKC,,Capital,Capital,,Gerda Security Products Ltd ,1234642,,,,04/11/2020,2200130066,"1,050.00",,Payments to main contractor,,,,,,No
The Royal Borough of Kensington and Chelsea,RBKC,,Capital,Capital,,Gerda Security Products Ltd ,1234642,,,,04/11/2020,2200130067,"4,200.00",,Payments to main contractor,,,,,,No
The Royal Borough of Kensington and Chelsea,RBKC,,Capital,Capital,,Gerda Security Products Ltd ,1234642,,,,04/11/2020,2200130068,"2,100.00",,Payments to main contractor,,,,,,No
The Royal Borough of Kensington and Chelsea,RBKC,,Capital,Capital,,Gerda Security Products Ltd ,1234642,,,,04/11/2020,2200130069,"4,900.00",,Payments to main contractor,,,,,,No
The Royal Borough of Kensington and Chelsea,RBKC,,Capital,Capital,,Gerda Security Products Ltd ,1234642,,,,04/11/2020,2200130070,"1,400.00",,Payments to main contractor,,,,,,No
The Royal Borough of Kensington and Chelsea,RBKC,,Capital,Capital,,Gerda Security Products Ltd ,1234642,,,,04/11/2020,2200130072,700.00,,Payments to main contractor,,,,,,No
The Royal Borough of Kensington and Chelsea,RBKC,,Capital,Capital,,Gerda Security Products Ltd ,1234642,,,,04/11/2020,2200130083,"2,100.00",,Payments to main contractor,,,,,,No
The Royal Borough of Kensington and Chelsea,RBKC,,Capital,Capital,,Gerda Security Products Ltd ,1234642,,,,04/11/2020,2200130085,"13,650.00",,Payments to main contractor,,,,,,No
The Royal Borough of Kensington and Chelsea,RBKC,,Capital,Capital,,Gerda Security Products Ltd ,1234642,,,,04/11/2020,2200130086,700.00,,Payments to main contractor,,,,,,No
The Royal Borough of Kensington and Chelsea,RBKC,,Capital,Capital,,Gerda Security Products Ltd ,1234642,,,,04/11/2020,2200130100,"43,425.72",,Payments to main contractor,,,,,,No
The Royal Borough of Kensington and Chelsea,RBKC,,Capital,Capital,,Gerda Security Products Ltd ,1234642,,,,04/11/2020,2200130101,"49,026.73",,Payments to main contractor,,,,,,No
The Royal Borough of Kensington and Chelsea,RBKC,,Capital,Capital,,Gerda Security Products Ltd ,1234642,,,,04/11/2020,2200130102,"49,498.43",,Payments to main contractor,,,,,,No
The Royal Borough of Kensington and Chelsea,RBKC,,Capital,Capital,,Gerda Security Products Ltd ,1234642,,,,04/11/2020,2200130103,"2,100.00",,Payments to main contractor,,,,,,No
The Royal Borough of Kensington and Chelsea,RBKC,,Capital,Capital,,Gerda Security Products Ltd ,1234642,,,,04/11/2020,2200130104,"55,496.83",,Payments to main contractor,,,,,,No
The Royal Borough of Kensington and Chelsea,RBKC,,Capital,Capital,,Gerda Security Products Ltd ,1234642,,,,05/11/2020,2200130442,"29,233.20",,Payments to main contractor,,,,,,No
The Royal Borough of Kensington and Chelsea,RBKC,,Capital,Capital,,Gerda Security Products Ltd ,1234642,,,,05/11/2020,2200130576,761.97,,Payments to main contractor,,,,,,No
The Royal Borough of Kensington and Chelsea,RBKC,,Capital,Capital,,Gerda Security Products Ltd ,1234642,,,,05/11/2020,2200130577,764.54,,Payments to main contractor,,,,,,No
The Royal Borough of Kensington and Chelsea,RBKC,,Capital,Capital,,Gerda Security Products Ltd ,1234642,,,,05/11/2020,2200130578,687.45,,Payments to main contractor,,,,,,No
The Royal Borough of Kensington and Chelsea,RBKC,,Capital,Capital,,Gerda Security Products Ltd ,1234642,,,,06/11/2020,2200130767,"73,779.65",,Payments to main contractor,,,,,,No
The Royal Borough of Kensington and Chelsea,RBKC,,Capital,Capital,,Gerda Security Products Ltd ,1234642,,,,19/11/2020,2200133343,"1,408.66",,Payments to main contractor,,,,,,No
The Royal Borough of Kensington and Chelsea,RBKC,,Capital,Capital,,Gerda Security Products Ltd ,1234642,,,,19/11/2020,2200133344,"8,208.53",,Payments to main contractor,,,,,,No
The Royal Borough of Kensington and Chelsea,RBKC,,Capital,Capital,,Gerda Security Products Ltd ,1234642,,,,24/11/2020,2200134321,700.00,,Payments to main contractor,,,,,,No
The Royal Borough of Kensington and Chelsea,RBKC,,Capital,Capital,,Gerda Security Products Ltd ,1234642,,,,24/11/2020,2200134322,"2,483.72",,Payments to main contractor,,,,,,No
The Royal Borough of Kensington and Chelsea,RBKC,,Capital,Capital,,Gerda Security Products Ltd ,1234642,,,,24/11/2020,2200134324,850.00,,Payments to main contractor,,,,,,No
The Royal Borough of Kensington and Chelsea,RBKC,,Capital,Capital,,Gerda Security Products Ltd ,1234642,,,,24/11/2020,2200134325,"5,550.00",,Payments to main contractor,,,,,,No
The Royal Borough of Kensington and Chelsea,RBKC,,Capital,Capital,,Gerda Security Products Ltd ,1234642,,,,24/11/2020,2200134326,700.00,,Payments to main contractor,,,,,,No
The Royal Borough of Kensington and Chelsea,RBKC,,Capital,Capital,,Gerda Security Products Ltd ,1234642,,,,27/11/2020,2200135098,961.00,,Payments to main contractor,,,,,,No
The Royal Borough of Kensington and Chelsea,RBKC,,Capital,Capital,,Gerda Security Products Ltd ,1234642,,,,27/11/2020,2200135099,847.85,,Payments to main contractor,,,,,,No
The Royal Borough of Kensington and Chelsea,RBKC,,Capital,Capital,,Gerda Security Products Ltd ,1234642,,,,27/11/2020,2200135100,"6,021.84",,Payments to main contractor,,,,,,No
The Royal Borough of Kensington and Chelsea,RBKC,,Capital,Capital,,Gerda Security Products Ltd ,1234642,,,,27/11/2020,2200135101,"1,367.85",,Payments to main contractor,,,,,,No
The Royal Borough of Kensington and Chelsea,RBKC,,Capital,Capital,,Gerda Security Products Ltd ,1234642,,,,27/11/2020,2200135102,"1,451.71",,Payments to main contractor,,,,,,No
The Royal Borough of Kensington and Chelsea,RBKC,,Capital,Capital,,Gerda Security Products Ltd ,1234642,,,,27/11/2020,2200135103,"2,954.01",,Payments to main contractor,,,,,,No
The Royal Borough of Kensington and Chelsea,RBKC,,Capital,Capital,,Gerda Security Products Ltd ,1234642,,,,01/12/2020,2200135689,"1,206.00",,Payments to main contractor,,,,,,No
The Royal Borough of Kensington and Chelsea,RBKC,,Capital,Capital,,Gerda Security Products Ltd ,1234642,,,,01/12/2020,2200135691,"1,749.83",,Payments to main contractor,,,,,,No
The Royal Borough of Kensington and Chelsea,RBKC,,Capital,Capital,,Gerda Security Products Ltd ,1234642,,,,08/12/2020,2200137158,"1,750.00",,Payments to main contractor,,,,,,No
The Royal Borough of Kensington and Chelsea,RBKC,,Capital,Capital,,Gerda Security Products Ltd ,1234642,,,,08/12/2020,2200137159,"7,700.00",,Payments to main contractor,,,,,,No
The Royal Borough of Kensington and Chelsea,RBKC,,Capital,Capital,,Gerda Security Products Ltd ,1234642,,,,08/12/2020,2200137160,"7,350.00",,Payments to main contractor,,,,,,No
The Royal Borough of Kensington and Chelsea,RBKC,,Capital,Capital,,Gerda Security Products Ltd ,1234642,,,,08/12/2020,2200137163,"9,483.15",,Payments to main contractor,,,,,,No
The Royal Borough of Kensington and Chelsea,RBKC,,Capital,Capital,,Gerda Security Products Ltd ,1234642,,,,08/12/2020,2200137164,"5,950.00",,Payments to main contractor,,,,,,No
The Royal Borough of Kensington and Chelsea,RBKC,,Capital,Capital,,Gerda Security Products Ltd ,1234642,,,,08/12/2020,2200137165,700.00,,Payments to main contractor,,,,,,No
The Royal Borough of Kensington and Chelsea,RBKC,,Capital,Capital,,Gerda Security Products Ltd ,1234642,,,,08/12/2020,2200137167,"1,050.00",,Payments to main contractor,,,,,,No
The Royal Borough of Kensington and Chelsea,RBKC,,Capital,Capital,,Gerda Security Products Ltd ,1234642,,,,08/12/2020,2200137169,"1,858.16",,Payments to main contractor,,,,,,No
The Royal Borough of Kensington and Chelsea,RBKC,,Capital,Capital,,Gerda Security Products Ltd ,1234642,,,,08/12/2020,2200137170,"12,600.00",,Payments to main contractor,,,,,,No
The Royal Borough of Kensington and Chelsea,RBKC,,Capital,Capital,,Gerda Security Products Ltd ,1234642,,,,08/12/2020,2200137171,990.43,,Payments to main contractor,,,,,,No
The Royal Borough of Kensington and Chelsea,RBKC,,Capital,Capital,,Gerda Security Products Ltd ,1234642,,,,08/12/2020,2200137173,"1,750.00",,Payments to main contractor,,,,,,No
The Royal Borough of Kensington and Chelsea,RBKC,,Capital,Capital,,Gerda Security Products Ltd ,1234642,,,,08/12/2020,2200137176,700.00,,Payments to main contractor,,,,,,No
The Royal Borough of Kensington and Chelsea,RBKC,,Capital,Capital,,Gerda Security Products Ltd ,1234642,,,,08/12/2020,2200137180,"1,183.49",,Payments to main contractor,,,,,,No
The Royal Borough of Kensington and Chelsea,RBKC,,Capital,Capital,,Gerda Security Products Ltd ,1234642,,,,08/12/2020,2200137182,"2,800.00",,Payments to main contractor,,,,,,No
The Royal Borough of Kensington and Chelsea,RBKC,,Capital,Capital,,Gerda Security Products Ltd ,1234642,,,,08/12/2020,2200137185,"1,836.50",,Payments to main contractor,,,,,,No
The Royal Borough of Kensington and Chelsea,RBKC,,Capital,Capital,,Gerda Security Products Ltd ,1234642,,,,18/12/2020,2200139089,"3,361.98",,Payments to main contractor,,,,,,No
The Royal Borough of Kensington and Chelsea,RBKC,,Capital,Capital,,Gerda Security Products Ltd ,1234642,,,,18/12/2020,2200139090,"10,227.28",,Payments to main contractor,,,,,,No
The Royal Borough of Kensington and Chelsea,RBKC,,Capital,Capital,,Gerda Security Products Ltd ,1234642,,,,18/12/2020,2200139091,"10,423.44",,Payments to main contractor,,,,,,No
The Royal Borough of Kensington and Chelsea,RBKC,,Capital,Capital,,Gerda Security Products Ltd ,1234642,,,,21/12/2020,2200139512,761.97,,Payments to main contractor,,,,,,No
The Royal Borough of Kensington and Chelsea,RBKC,,Capital,Capital,,Gerda Security Products Ltd ,1234642,,,,21/12/2020,2200139519,687.45,,Payments to main contractor,,,,,,No
The Royal Borough of Kensington and Chelsea,RBKC,,Capital,Capital,,Gerda Security Products Ltd ,1234642,,,,21/12/2020,2200139528,"1,365.13",,Payments to main contractor,,,,,,No
The Royal Borough of Kensington and Chelsea,RBKC,,Capital,Capital,,Gerda Security Products Ltd ,1234642,,,,21/12/2020,2200139557,682.57,,Payments to main contractor,,,,,,No
The Royal Borough of Kensington and Chelsea,RBKC,,Capital,Capital,,Gerda Security Products Ltd ,1234642,,,,21/12/2020,2200139560,756.73,,Payments to main contractor,,,,,,No
The Royal Borough of Kensington and Chelsea,RBKC,,Capital,Capital,,Gerda Security Products Ltd ,1234642,,,,21/12/2020,2200139572,"18,004.67",,Payments to main contractor,,,,,,No
The Royal Borough of Kensington and Chelsea,RBKC,,Capital,Capital,,Gerda Security Products Ltd ,1234642,,,,21/12/2020,2200139573,"14,269.51",,Payments to main contractor,,,,,,No
The Royal Borough of Kensington and Chelsea,RBKC,,Capital,Capital,,Gerda Security Products Ltd ,1234642,,,,21/12/2020,2200139574,"61,201.54",,Payments to main contractor,,,,,,No
The Royal Borough of Kensington and Chelsea,RBKC,,Capital,Capital,,Ghyllside Ltd,1231217,,,,01/12/2020,2200135527,"1,112.00",,Payments to main contractor,,,,,,No
The Royal Borough of Kensington and Chelsea,RBKC,,Capital,Capital,,Gleeds Advisory Ltd,1234656,,,,23/12/2020,2200140023,"3,600.00",,Payments to sub contractor,,,,,,No
The Royal Borough of Kensington and Chelsea,RBKC,,Capital,Capital,,Greater London Authority (Main Account),1231780,,,,30/11/2020,2200135254,"10,000.00",,Professional Fees : Non Legal,,,,,,No
The Royal Borough of Kensington and Chelsea,RBKC,,Capital,Capital,,Green Building Design Consultants L,1256002,,,,06/10/2020,2200123932,"1,732.50",,Payments to main contractor,,,,,,No
The Royal Borough of Kensington and Chelsea,RBKC,,Capital,Capital,,Greenacre Recruitment,1258089,,,,09/10/2020,2200124812,"2,625.00",,Capitalised salaries,,,,,,No
The Royal Borough of Kensington and Chelsea,RBKC,,Capital,Capital,,Greenacre Recruitment,1258089,,,,09/10/2020,2200124825,"2,625.00",,Capitalised salaries,,,,,,No
The Royal Borough of Kensington and Chelsea,RBKC,,Capital,Capital,,Greenacre Recruitment,1258089,,,,16/10/2020,2200126377,"2,625.00",,Capitalised salaries,,,,,,No
The Royal Borough of Kensington and Chelsea,RBKC,,Capital,Capital,,Greenacre Recruitment,1258089,,,,27/10/2020,2200128271,"2,100.00",,Capitalised salaries,,,,,,No
The Royal Borough of Kensington and Chelsea,RBKC,,Capital,Capital,,Greenacre Recruitment,1258089,,,,02/11/2020,2200129527,"2,625.00",,Capitalised salaries,,,,,,No
The Royal Borough of Kensington and Chelsea,RBKC,,Capital,Capital,,Greenacre Recruitment,1258089,,,,12/11/2020,2200132035,"2,625.00",,Capitalised salaries,,,,,,No
The Royal Borough of Kensington and Chelsea,RBKC,,Capital,Capital,,Greenacre Recruitment,1258089,,,,17/11/2020,2200132850,"2,625.00",,Capitalised salaries,,,,,,No
The Royal Borough of Kensington and Chelsea,RBKC,,Capital,Capital,,Greenacre Recruitment,1258089,,,,23/11/2020,2200133952,"2,625.00",,Capitalised salaries,,,,,,No
The Royal Borough of Kensington and Chelsea,RBKC,,Capital,Capital,,Greenacre Recruitment,1258089,,,,02/12/2020,2200136010,"2,625.00",,Capitalised salaries,,,,,,No
The Royal Borough of Kensington and Chelsea,RBKC,,Capital,Capital,,Greenacre Recruitment,1258089,,,,04/12/2020,2200136498,"2,625.00",,Capitalised salaries,,,,,,No
The Royal Borough of Kensington and Chelsea,RBKC,,Capital,Capital,,Greenacre Recruitment,1258089,,,,22/12/2020,2200139753,"2,625.00",,Capitalised salaries,,,,,,No
The Royal Borough of Kensington and Chelsea,RBKC,,Capital,Capital,,Greenacre Recruitment,1258089,,,,22/12/2020,2200139754,"2,625.00",,Capitalised salaries,,,,,,No
The Royal Borough of Kensington and Chelsea,RBKC,,Capital,Capital,,Greenacre Recruitment,1258089,,,,23/12/2020,2200139995,"2,625.00",,Capitalised salaries,,,,,,No
The Royal Borough of Kensington and Chelsea,RBKC,,Capital,Capital,,Guarding UK Ltd ,1230372,,,,19/10/2020,2200126761,"11,484.00",,Payments to sub contractor,,,,,,No
The Royal Borough of Kensington and Chelsea,RBKC,,Capital,Capital,,Guarding UK Ltd ,1230372,,,,22/10/2020,2200127540,"2,834.00",,Site Works,,,,,,No
The Royal Borough of Kensington and Chelsea,RBKC,,Capital,Capital,,Guarding UK Ltd ,1230372,,,,11/11/2020,2200131711,"2,834.00",,Site Works,,,,,,No
The Royal Borough of Kensington and Chelsea,RBKC,,Capital,Capital,,Guarding UK Ltd ,1230372,,,,20/11/2020,2200133561,"8,597.05",,Site Works,,,,,,No
The Royal Borough of Kensington and Chelsea,RBKC,,Capital,Capital,,Guarding UK Ltd ,1230372,,,,21/12/2020,2200139588,"3,503.97",,Construction : enhancements,,,,,,No
The Royal Borough of Kensington and Chelsea,RBKC,,Capital,Capital,,Guideline Lift Services Ltd ,1231219,,,,11/11/2020,2200131698,"41,978.75",,Payments to main contractor,,,,,,No
The Royal Borough of Kensington and Chelsea,RBKC,,Capital,Capital,,Guideline Lift Services Ltd ,1231219,,,,11/11/2020,2200131699,"43,415.86",,Payments to main contractor,,,,,,No
The Royal Borough of Kensington and Chelsea,RBKC,,Capital,Capital,,Guideline Lift Services Ltd ,1231219,,,,19/11/2020,2200133449,"80,599.20",,Payments to main contractor,,,,,,No
The Royal Borough of Kensington and Chelsea,RBKC,,Capital,Capital,,Guideline Lift Services Ltd ,1231219,,,,19/11/2020,2200133450,"33,767.89",,Payments to main contractor,,,,,,No
The Royal Borough of Kensington and Chelsea,RBKC,,Capital,Capital,,Guideline Lift Services Ltd ,1231219,,,,09/12/2020,2200137585,"20,149.80",,Payments to main contractor,,,,,,No
The Royal Borough of Kensington and Chelsea,RBKC,,Capital,Capital,,Guideline Lift Services Ltd ,1231219,,,,09/12/2020,2200137586,"9,647.97",,Payments to main contractor,,,,,,No
The Royal Borough of Kensington and Chelsea,RBKC,,Capital,Capital,,HM Revenue & Customs (Stamp duty),1230805,,,,12/10/2020,3110229954,"189,715.37",,Acquisition of Land & Buildings,,,,,,No
The Royal Borough of Kensington and Chelsea,RBKC,,Capital,Capital,,HM Revenue & Customs (Stamp duty),1230805,,,,24/11/2020,3110244262,"8,940.00",,Stamp Duty Liability Tax,,,,,,No
The Royal Borough of Kensington and Chelsea,RBKC,,Capital,Capital,,HM Revenue & Customs (Stamp duty),1230805,,,,30/11/2020,3110245004,"54,850.00",,Stamp Duty Liability Tax,,,,,,No
The Royal Borough of Kensington and Chelsea,RBKC,,Capital,Capital,,Hags - Smp Limited ,1231221,,,,11/11/2020,2200131797,"4,234.50",,Creditors Control : AP GRIR,,,,,,No
The Royal Borough of Kensington and Chelsea,RBKC,,Capital,Capital,,Hags - Smp Limited ,1231221,,,,16/11/2020,2200132569,"2,544.00",,Creditors Control : AP GRIR,,,,,,No
The Royal Borough of Kensington and Chelsea,RBKC,,Capital,Capital,,Harrisons Electrical Services,1272994,,,,23/11/2020,2200133995,657.50,,Payments to sub contractor,,,,,,No
The Royal Borough of Kensington and Chelsea,RBKC,,Capital,Capital,,Haven Memorials,1273974,,,,30/12/2020,2200140555,"6,800.00",,Creditors Control : AP GRIR,,,,,,No
The Royal Borough of Kensington and Chelsea,RBKC,,Capital,Capital,,Hays Specialist Recruitment Ltd ,1234704,,,,30/11/2020,2200135326,908.30,,Capitalised salaries,,,,,,No
The Royal Borough of Kensington and Chelsea,RBKC,,Capital,Capital,,Hays Specialist Recruitment Ltd ,1234704,,,,30/11/2020,2200135334,908.30,,Capitalised salaries,,,,,,No
The Royal Borough of Kensington and Chelsea,RBKC,,Capital,Capital,,Hays Specialist Recruitment Ltd ,1234704,,,,09/12/2020,2200137461,908.30,,Capitalised salaries,,,,,,No
The Royal Borough of Kensington and Chelsea,RBKC,,Capital,Capital,,Hays Specialist Recruitment Ltd ,1234704,,,,16/12/2020,2200138704,908.30,,Capitalised salaries,,,,,,No
The Royal Borough of Kensington and Chelsea,RBKC,,Capital,Capital,,HeliDrone Surveys,1268307,,,,07/10/2020,2200124345,"5,760.00",,Payments to main contractor,,,,,,No
The Royal Borough of Kensington and Chelsea,RBKC,,Capital,Capital,,HeliDrone Surveys,1268307,,,,30/10/2020,2200129287,"5,760.00",,Payments to main contractor,,,,,,No
The Royal Borough of Kensington and Chelsea,RBKC,,Capital,Capital,,HeliDrone Surveys,1268307,,,,02/11/2020,2200129661,"5,760.00",,Payments to main contractor,,,,,,No
The Royal Borough of Kensington and Chelsea,RBKC,,Capital,Capital,,Helix Construct Limited,1270811,,,,12/10/2020,2200125367,"55,022.91",,Site Works,,,,,,No
The Royal Borough of Kensington and Chelsea,RBKC,,Capital,Capital,,Helix Construct Limited,1270811,,,,12/10/2020,2200125376,"138,728.06",,Site Works,,,,,,No
The Royal Borough of Kensington and Chelsea,RBKC,,Capital,Capital,,Helix Construct Limited,1270811,,,,02/11/2020,2200129588,"50,134.57",,Site Works,,,,,,No
The Royal Borough of Kensington and Chelsea,RBKC,,Capital,Capital,,Helix Construct Limited,1270811,,,,03/12/2020,2200136283,"47,849.35",,Site Works,,,,,,No
The Royal Borough of Kensington and Chelsea,RBKC,,Capital,Capital,,Helix Construct Limited,1270811,,,,23/12/2020,2200140033,"33,184.01",,Payments to main contractor,,,,,,No
The Royal Borough of Kensington and Chelsea,RBKC,,Capital,Capital,,Henry Riley LLP ,1230402,,,,04/11/2020,2200130114,"7,500.00",,Other Consultants,,,,,,No
The Royal Borough of Kensington and Chelsea,RBKC,,Capital,Capital,,Higham Flat Roofing Ltd ,1252605,,,,04/11/2020,2200130228,757.73,,Creditors Control : AP GRIR,,,,,,No
The Royal Borough of Kensington and Chelsea,RBKC,,Capital,Capital,,Higham Flat Roofing Ltd ,1252605,,,,09/11/2020,2200131226,"4,731.00",,Planned Maintenance (CM),,,,,,No
The Royal Borough of Kensington and Chelsea,RBKC,,Capital,Capital,,Higham Flat Roofing Ltd ,1252605,,,,10/12/2020,2200137758,"1,120.90",,Creditors Control : AP GRIR,,,,,,No
The Royal Borough of Kensington and Chelsea,RBKC,,Capital,Capital,,Higham Flat Roofing Ltd ,1252605,,,,15/12/2020,2200138413,"46,955.98",,Planned Maintenance (CM),,,,,,No
The Royal Borough of Kensington and Chelsea,RBKC,,Capital,Capital,,Hunters and Partners Ltd ,1254860,,,,12/10/2020,2200125368,590.00,,Other Consultants,,,,,,No
The Royal Borough of Kensington and Chelsea,RBKC,,Capital,Capital,,Hunters and Partners Ltd ,1254860,,,,12/10/2020,2200125369,"2,189.00",,Other Consultants,,,,,,No
The Royal Borough of Kensington and Chelsea,RBKC,,Capital,Capital,,Hunters and Partners Ltd ,1254860,,,,12/10/2020,2200125370,"14,676.55",,Site Works,,,,,,No
The Royal Borough of Kensington and Chelsea,RBKC,,Capital,Capital,,Hunters and Partners Ltd ,1254860,,,,12/10/2020,2200125371,"1,320.00",,Site Works,,,,,,No
The Royal Borough of Kensington and Chelsea,RBKC,,Capital,Capital,,Hunters and Partners Ltd ,1254860,,,,12/10/2020,2200125374,"4,573.55",,Other Consultants,,,,,,No
The Royal Borough of Kensington and Chelsea,RBKC,,Capital,Capital,,Hunters and Partners Ltd ,1254860,,,,12/10/2020,2200125375,"9,691.00",,Other Consultants,,,,,,No
The Royal Borough of Kensington and Chelsea,RBKC,,Capital,Capital,,Hunters and Partners Ltd ,1254860,,,,13/10/2020,2200125593,"7,301.00",,Other Consultants,,,,,,No
The Royal Borough of Kensington and Chelsea,RBKC,,Capital,Capital,,Hunters and Partners Ltd ,1254860,,,,13/10/2020,2200125594,"5,004.00",,Payments to main contractor,,,,,,No
The Royal Borough of Kensington and Chelsea,RBKC,,Capital,Capital,,Hunters and Partners Ltd ,1254860,,,,29/10/2020,2200128892,"1,711.00",,Other Consultants,,,,,,No
The Royal Borough of Kensington and Chelsea,RBKC,,Capital,Capital,,Hunters and Partners Ltd ,1254860,,,,03/11/2020,2200129915,"4,892.15",,Other Consultants,,,,,,No
The Royal Borough of Kensington and Chelsea,RBKC,,Capital,Capital,,Hunters and Partners Ltd ,1254860,,,,04/11/2020,2200130097,"1,650.40",,Payments to sub contractor,,,,,,No
The Royal Borough of Kensington and Chelsea,RBKC,,Capital,Capital,,Hunters and Partners Ltd ,1254860,,,,04/11/2020,2200130132,"2,750.00",,Site Works,,,,,,No
The Royal Borough of Kensington and Chelsea,RBKC,,Capital,Capital,,Hunters and Partners Ltd ,1254860,,,,04/11/2020,2200130231,"1,860.00",,Site Works,,,,,,No
The Royal Borough of Kensington and Chelsea,RBKC,,Capital,Capital,,Hunters and Partners Ltd ,1254860,,,,30/11/2020,2200135399,"1,674.85",,Other Consultants,,,,,,No
The Royal Borough of Kensington and Chelsea,RBKC,,Capital,Capital,,Hunters and Partners Ltd ,1254860,,,,18/12/2020,2200139219,500.00,,Professional Fees : Non Legal,,,,,,No
The Royal Borough of Kensington and Chelsea,RBKC,,Capital,Capital,,INSITE ENERGY LIMITED,1273497,,,,30/11/2020,2200135339,"1,500.00",,Engineering Consultancy Fees,,,,,,No
The Royal Borough of Kensington and Chelsea,RBKC,,Capital,Capital,,Idealcombi Uk Limited,1270224,,,,06/10/2020,3110229452,"4,444.84",,Construction : new asset,,,,,,No
The Royal Borough of Kensington and Chelsea,RBKC,,Capital,Capital,,Idealcombi Uk Limited,1270224,,,,09/10/2020,3110229845,888.97,,Construction : new asset,,,,,,No
The Royal Borough of Kensington and Chelsea,RBKC,,Capital,Capital,,Image Playgrounds Ltd,1267749,,,,26/10/2020,2200128044,"5,805.00",,Payments to main contractor,,,,,,No
The Royal Borough of Kensington and Chelsea,RBKC,,Capital,Capital,,Image Playgrounds Ltd,1267749,,,,27/10/2020,2200128372,"5,805.00",,Payments to main contractor,,,,,,No
The Royal Borough of Kensington and Chelsea,RBKC,,Capital,Capital,,Intelligent Catering Limited,1274043,,,,10/12/2020,2200137811,"2,432.50",,Payments to sub contractor,,,,,,No
The Royal Borough of Kensington and Chelsea,RBKC,,Capital,Capital,,Invicta Building Services Ltd,1231382,,,,05/11/2020,2200130331,"2,444.00",,Professional Fees : Non Legal,,,,,,No
The Royal Borough of Kensington and Chelsea,RBKC,,Capital,Capital,,JH Crawford Security Ltd ,1234817,,,,18/11/2020,2200133120,"1,786.38",,Creditors Control : AP GRIR,,,,,,No
The Royal Borough of Kensington and Chelsea,RBKC,,Capital,Capital,,Jackson Coles LLP ,1230491,,,,05/10/2020,2200123810,785.08,,Other Consultants,,,,,,No
The Royal Borough of Kensington and Chelsea,RBKC,,Capital,Capital,,Jackson Coles LLP ,1230491,,,,28/10/2020,2200128613,"3,189.00",,Other Consultants,,,,,,No
The Royal Borough of Kensington and Chelsea,RBKC,,Capital,Capital,,Jackson Coles LLP ,1230491,,,,03/11/2020,2200129801,785.08,,Other Consultants,,,,,,No
The Royal Borough of Kensington and Chelsea,RBKC,,Capital,Capital,,Jackson Coles LLP ,1230491,,,,30/11/2020,2200135364,"3,189.00",,Other Consultants,,,,,,No
The Royal Borough of Kensington and Chelsea,RBKC,,Capital,Capital,,Jackson Coles LLP ,1230491,,,,30/11/2020,2200135370,"1,500.00",,Other Consultants,,,,,,No
The Royal Borough of Kensington and Chelsea,RBKC,,Capital,Capital,,Jackson Coles LLP ,1230491,,,,03/12/2020,2200136287,785.08,,Other Consultants,,,,,,No
The Royal Borough of Kensington and Chelsea,RBKC,,Capital,Capital,,Jackson Coles LLP ,1230491,,,,22/12/2020,2200139690,785.08,,Other Consultants,,,,,,No
The Royal Borough of Kensington and Chelsea,RBKC,,Capital,Capital,,Jackson Coles LLP ,1230491,,,,24/12/2020,2200140218,"3,189.00",,Other Consultants,,,,,,No
The Royal Borough of Kensington and Chelsea,RBKC,,Capital,Capital,,Jordaya Contracting Ltd,1274186,,,,09/12/2020,2200137420,"41,147.00",,Payments to main contractor,,,,,,No
The Royal Borough of Kensington and Chelsea,RBKC,,Capital,Capital,,K & T Heating Services Ltd ,1231384,,,,07/10/2020,2200124348,"183,687.60",,Payments to main contractor,,,,,,No
The Royal Borough of Kensington and Chelsea,RBKC,,Capital,Capital,,K & T Heating Services Ltd ,1231384,,,,11/11/2020,2200131733,"103,577.00",,Payments to main contractor,,,,,,No
The Royal Borough of Kensington and Chelsea,RBKC,,Capital,Capital,,K & T Heating Services Ltd ,1231384,,,,08/12/2020,2200137314,"65,326.40",,Payments to main contractor,,,,,,No
The Royal Borough of Kensington and Chelsea,RBKC,,Capital,Capital,,Kaner Olette Limited T/a Kaner Olette Architects,1234833,,,,19/10/2020,2200126739,"2,653.50",,Payments to main contractor,,,,,,No
The Royal Borough of Kensington and Chelsea,RBKC,,Capital,Capital,,Kaner Olette Limited T/a Kaner Olette Architects,1234833,,,,19/10/2020,2200126743,"1,516.50",,Payments to main contractor,,,,,,No
The Royal Borough of Kensington and Chelsea,RBKC,,Capital,Capital,,Kaner Olette Limited T/a Kaner Olette Architects,1234833,,,,20/11/2020,2200133762,"4,170.00",,Payments to main contractor,,,,,,No
The Royal Borough of Kensington and Chelsea,RBKC,,Capital,Capital,,Karakusevic Carson Architects LLP,1273973,,,,26/11/2020,2200134673,"150,000.00",,Payments to main contractor,,,,,,No
The Royal Borough of Kensington and Chelsea,RBKC,,Capital,Capital,,LA Metalworks Ltd,1271753,,,,27/10/2020,2200128303,"3,550.00",,Site Works,,,,,,No
The Royal Borough of Kensington and Chelsea,RBKC,,Capital,Capital,,Land Use Consultants Ltd ,1234884,,,,20/11/2020,2200133763,"4,485.00",,Payments to main contractor,,,,,,No
The Royal Borough of Kensington and Chelsea,RBKC,,Capital,Capital,,Lanemark t/a Carebase,1272453,,,,23/10/2020,2200127794,"5,077.80",,Payments to main contractor,,,,,,No
The Royal Borough of Kensington and Chelsea,RBKC,,Capital,Capital,,Lawtech Group Ltd,1273996,,,,07/12/2020,2200136728,"33,388.76",,Professional Fees : Non Legal,,,,,,No
The Royal Borough of Kensington and Chelsea,RBKC,,Capital,Capital,,Lawtech Group Ltd,1273996,,,,07/12/2020,2200136729,"10,000.00",,Professional Fees : Non Legal,,,,,,No
The Royal Borough of Kensington and Chelsea,RBKC,,Capital,Capital,,Redact Details,1231389,,,,18/11/2020,2200133088,"5,925.00",,Payments to main contractor,,,,,,No
The Royal Borough of Kensington and Chelsea,RBKC,,Capital,Capital,,Lend Lease Consulting (Emea) Ltd ,1234899,,,,03/11/2020,2200129761,"8,687.00",,Construction : enhancements,,,,,,No
The Royal Borough of Kensington and Chelsea,RBKC,,Capital,Capital,,Lend Lease Consulting (Emea) Ltd ,1234899,,,,02/12/2020,2200135778,"8,687.00",,Construction : enhancements,,,,,,No
The Royal Borough of Kensington and Chelsea,RBKC,,Capital,Capital,,Lend Lease Consulting (Emea) Ltd ,1234899,,,,22/12/2020,2200139687,"8,687.00",,Construction : enhancements,,,,,,No
The Royal Borough of Kensington and Chelsea,RBKC,,Capital,Capital,,London Borough Of Haringey (General Account),1231804,,,,06/10/2020,2200123982,"15,486.64",,Payments to sub contractor,,,,,,No
The Royal Borough of Kensington and Chelsea,RBKC,,Capital,Capital,,M10 Fire Consultncy Ltd,1273351,,,,30/10/2020,2200129288,"15,000.00",,Professional Fees : Non Legal,,,,,,No
The Royal Borough of Kensington and Chelsea,RBKC,,Capital,Capital,,MDA Consulting Limited ,1234989,,,,02/10/2020,2200123549,616.00,,Site Works,,,,,,No
The Royal Borough of Kensington and Chelsea,RBKC,,Capital,Capital,,MDA Consulting Limited ,1234989,,,,05/10/2020,2200123870,880.00,,Other Consultants,,,,,,No
The Royal Borough of Kensington and Chelsea,RBKC,,Capital,Capital,,MDA Consulting Limited ,1234989,,,,06/10/2020,2200123957,990.00,,Professional Fees : Non Legal,,,,,,No
The Royal Borough of Kensington and Chelsea,RBKC,,Capital,Capital,,MDA Consulting Limited ,1234989,,,,06/10/2020,2200124066,"1,210.00",,Professional Fees : Non Legal,,,,,,No
The Royal Borough of Kensington and Chelsea,RBKC,,Capital,Capital,,MDA Consulting Limited ,1234989,,,,12/10/2020,2200125322,990.00,,Other Consultants,,,,,,No
The Royal Borough of Kensington and Chelsea,RBKC,,Capital,Capital,,MDA Consulting Limited ,1234989,,,,03/11/2020,2200129789,880.00,,Other Consultants,,,,,,No
The Royal Borough of Kensington and Chelsea,RBKC,,Capital,Capital,,MDA Consulting Limited ,1234989,,,,03/11/2020,2200129812,770.00,,Site Works,,,,,,No
The Royal Borough of Kensington and Chelsea,RBKC,,Capital,Capital,,MDA Consulting Limited ,1234989,,,,03/11/2020,2200129913,"1,320.00",,Professional Fees : Non Legal,,,,,,No
The Royal Borough of Kensington and Chelsea,RBKC,,Capital,Capital,,MDA Consulting Limited ,1234989,,,,30/11/2020,2200135231,880.00,,Other Consultants,,,,,,No
The Royal Borough of Kensington and Chelsea,RBKC,,Capital,Capital,,MDA Consulting Limited ,1234989,,,,02/12/2020,2200136057,572.00,,Professional Fees : Non Legal,,,,,,No
The Royal Borough of Kensington and Chelsea,RBKC,,Capital,Capital,,MDA Consulting Limited ,1234989,,,,17/12/2020,2200138987,880.00,,Other Consultants,,,,,,No
The Royal Borough of Kensington and Chelsea,RBKC,,Capital,Capital,,MEC London Ltd ,1231398,,,,09/11/2020,2200131225,"2,140.00",,Pipework Replacement (Gas & Water) : CM,,,,,,No
The Royal Borough of Kensington and Chelsea,RBKC,,Capital,Capital,,MEC London Ltd ,1231398,,,,09/11/2020,2200131227,"20,000.00",,Planned Maintenance (CM),,,,,,No
The Royal Borough of Kensington and Chelsea,RBKC,,Capital,Capital,,MMM Architects Ltd,1259041,,,,12/10/2020,2200125359,"1,500.00",,Payments to sub contractor,,,,,,No
The Royal Borough of Kensington and Chelsea,RBKC,,Capital,Capital,,MMM Architects Ltd,1259041,,,,03/11/2020,2200129916,"1,500.00",,Payments to sub contractor,,,,,,No
The Royal Borough of Kensington and Chelsea,RBKC,,Capital,Capital,,MMM Architects Ltd,1259041,,,,07/12/2020,2200136797,"1,500.00",,Payments to sub contractor,,,,,,No
The Royal Borough of Kensington and Chelsea,RBKC,,Capital,Capital,,MMM Architects Ltd,1259041,,,,30/12/2020,2200140562,"1,500.00",,Payments to sub contractor,,,,,,No
The Royal Borough of Kensington and Chelsea,RBKC,,Capital,Capital,,Mti Technology Limited,1230721,,,,30/11/2020,2200135268,"38,030.00",,Creditors Control : AP GRIR,,,,,,No
The Royal Borough of Kensington and Chelsea,RBKC,,Capital,Capital,,Maccreanor Lavington Ltd,1262735,,,,30/12/2020,2200140563,"4,000.00",,Construction : enhancements,,,,,,No
The Royal Borough of Kensington and Chelsea,RBKC,,Capital,Capital,,Mace Limited ,1230643,,,,20/10/2020,2200126925,"1,835,193.36",,Construction : enhancements,,,,,,No
The Royal Borough of Kensington and Chelsea,RBKC,,Capital,Capital,,Mace Limited ,1230643,,,,10/11/2020,2200131516,"1,644,532.11",,Construction : enhancements,,,,,,No
The Royal Borough of Kensington and Chelsea,RBKC,,Capital,Capital,,Mace Limited ,1230643,,,,08/12/2020,2200137103,"2,190,536.04",,Construction : enhancements,,,,,,No
The Royal Borough of Kensington and Chelsea,RBKC,,Capital,Capital,,Maracom Limited ,1255577,,,,17/11/2020,2200132869,"3,557.00",,Creditors Control : AP GRIR,,,,,,No
The Royal Borough of Kensington and Chelsea,RBKC,,Capital,Capital,,Marks Consulting Partners Limited,1274728,,,,25/11/2020,2200134576,"1,125.00",,Capitalised salaries,,,,,,No
The Royal Borough of Kensington and Chelsea,RBKC,,Capital,Capital,,Marks Consulting Partners Limited,1274728,,,,02/12/2020,2200136065,960.00,,Capitalised salaries,,,,,,No
The Royal Borough of Kensington and Chelsea,RBKC,,Capital,Capital,,Marks Consulting Partners Limited,1274728,,,,09/12/2020,2200137504,"1,440.00",,Capitalised salaries,,,,,,No
The Royal Borough of Kensington and Chelsea,RBKC,,Capital,Capital,,Marks Consulting Partners Limited,1274728,,,,16/12/2020,2200138677,"1,200.00",,Capitalised salaries,,,,,,No
The Royal Borough of Kensington and Chelsea,RBKC,,Capital,Capital,,Marks Consulting Partners Limited,1274728,,,,22/12/2020,2200139856,"1,200.00",,Capitalised salaries,,,,,,No
The Royal Borough of Kensington and Chelsea,RBKC,,Capital,Capital,,Master Locking Systems Ltd,1262396,,,,04/11/2020,2200130246,872.50,,Creditors Control : AP GRIR,,,,,,No
The Royal Borough of Kensington and Chelsea,RBKC,,Capital,Capital,,Master Locking Systems Ltd,1262396,,,,18/11/2020,2200133207,"4,103.20",,Creditors Control : AP GRIR,,,,,,No
The Royal Borough of Kensington and Chelsea,RBKC,,Capital,Capital,,Master Locking Systems Ltd,1262396,,,,18/11/2020,2200133210,"1,900.00",,Creditors Control : AP GRIR,,,,,,No
The Royal Borough of Kensington and Chelsea,RBKC,,Capital,Capital,,Master Locking Systems Ltd,1262396,,,,17/12/2020,2200138871,"1,900.00",,Creditors Control : AP GRIR,,,,,,No
The Royal Borough of Kensington and Chelsea,RBKC,,Capital,Capital,,Maxilla Nursery School -Golborne Childrens Centre,1232814,,,,13/11/2020,2200132184,"11,250.00",,Payments to main contractor,,,,,,No
The Royal Borough of Kensington and Chelsea,RBKC,,Capital,Capital,,Maxilla Nursery School -Golborne Childrens Centre,1232814,,,,13/11/2020,2200132185,600.00,,Payments to main contractor,,,,,,No
The Royal Borough of Kensington and Chelsea,RBKC,,Capital,Capital,,Maxilla Nursery School -Golborne Childrens Centre,1232814,,,,13/11/2020,2200132186,720.00,,Payments to main contractor,,,,,,No
The Royal Borough of Kensington and Chelsea,RBKC,,Capital,Capital,,Maxilla Nursery School -Golborne Childrens Centre,1232814,,,,19/11/2020,2200133441,"18,027.00",,Payments to main contractor,,,,,,No
The Royal Borough of Kensington and Chelsea,RBKC,,Capital,Capital,,Meristem Design Limited,1259153,,,,15/10/2020,2200126186,"4,800.00",,Special Maintenance,,,,,,No
The Royal Borough of Kensington and Chelsea,RBKC,,Capital,Capital,,Michael Page International Recruitment Ltd,1235002,,,,08/10/2020,2200124531,729.68,,Payments to main contractor,,,,,,No
The Royal Borough of Kensington and Chelsea,RBKC,,Capital,Capital,,Michael Page International Recruitment Ltd,1235002,,,,13/10/2020,2200125529,807.86,,Payments to main contractor,,,,,,No
The Royal Borough of Kensington and Chelsea,RBKC,,Capital,Capital,,Michael Page International Recruitment Ltd,1235002,,,,15/10/2020,2200126171,886.04,,Payments to main contractor,,,,,,No
The Royal Borough of Kensington and Chelsea,RBKC,,Capital,Capital,,Michael Page International Recruitment Ltd,1235002,,,,21/10/2020,2200127257,938.16,,Payments to main contractor,,,,,,No
The Royal Borough of Kensington and Chelsea,RBKC,,Capital,Capital,,Michael Page International Recruitment Ltd,1235002,,,,05/11/2020,2200130359,938.16,,Payments to main contractor,,,,,,No
The Royal Borough of Kensington and Chelsea,RBKC,,Capital,Capital,,Michael Page International Recruitment Ltd,1235002,,,,10/11/2020,2200131571,521.20,,Payments to main contractor,,,,,,No
The Royal Borough of Kensington and Chelsea,RBKC,,Capital,Capital,,Michael Page International Recruitment Ltd,1235002,,,,17/11/2020,2200132870,729.68,,Payments to main contractor,,,,,,No
The Royal Borough of Kensington and Chelsea,RBKC,,Capital,Capital,,Michael Page International Recruitment Ltd,1235002,,,,25/11/2020,2200134491,938.16,,Payments to main contractor,,,,,,No
The Royal Borough of Kensington and Chelsea,RBKC,,Capital,Capital,,Michael Page International Recruitment Ltd,1235002,,,,08/12/2020,2200137149,938.16,,Payments to main contractor,,,,,,No
The Royal Borough of Kensington and Chelsea,RBKC,,Capital,Capital,,Michael Page International Recruitment Ltd,1235002,,,,08/12/2020,2200137257,833.92,,Payments to main contractor,,,,,,No
The Royal Borough of Kensington and Chelsea,RBKC,,Capital,Capital,,Michael Page International Recruitment Ltd,1235002,,,,15/12/2020,2200138400,755.74,,Payments to main contractor,,,,,,No
The Royal Borough of Kensington and Chelsea,RBKC,,Capital,Capital,,Michael Page International Recruitment Ltd,1235002,,,,22/12/2020,2200139881,781.80,,Payments to main contractor,,,,,,No
The Royal Borough of Kensington and Chelsea,RBKC,,Capital,Capital,,Millwood Servicing Ltd ,1253373,,,,22/10/2020,2200127518,"52,121.75",,Payments to main contractor,,,,,,No
The Royal Borough of Kensington and Chelsea,RBKC,,Capital,Capital,,Morgan Sindall Construction,1260362,,,,17/12/2020,2200138982,"28,456.00",,Other Consultants,,,,,,No
The Royal Borough of Kensington and Chelsea,RBKC,,Capital,Capital,,Morgan Sindall Construction,1260362,,,,17/12/2020,2200138983,"26,637.67",,Other Consultants,,,,,,No
The Royal Borough of Kensington and Chelsea,RBKC,,Capital,Capital,,Morgan Sindall Construction,1260362,,,,17/12/2020,2200138989,"8,519.00",,Other Consultants,,,,,,No
The Royal Borough of Kensington and Chelsea,RBKC,,Capital,Capital,,Morgan Sindall Construction,1260362,,,,22/12/2020,2200139756,"47,530.30",,Payments to main contractor,,,,,,No
The Royal Borough of Kensington and Chelsea,RBKC,,Capital,Capital,,Redact Details,1235948,,,,11/12/2020,2200137957,"1,950.00",,Legal Fees & expenses,,,,,,No
The Royal Borough of Kensington and Chelsea,RBKC,,Capital,Capital,,Mulalley & Company Ltd ,1231403,,,,30/11/2020,2200135276,"69,980.49",,Payments to main contractor,,,,,,No
The Royal Borough of Kensington and Chelsea,RBKC,,Capital,Capital,,NCW Associates Ltd T/A SVM Associates,1230750,,,,15/12/2020,2200138406,"6,260.00",,Planned Maintenance (CM),,,,,,No
The Royal Borough of Kensington and Chelsea,RBKC,,Capital,Capital,,NPS Property Consultants Ltd ,1235087,,,,02/10/2020,2200123554,"5,100.00",,Site Works,,,,,,No
The Royal Borough of Kensington and Chelsea,RBKC,,Capital,Capital,,NPS Property Consultants Ltd ,1235087,,,,02/10/2020,2200123555,"1,000.00",,Site Works,,,,,,No
The Royal Borough of Kensington and Chelsea,RBKC,,Capital,Capital,,NPS Property Consultants Ltd ,1235087,,,,03/11/2020,2200129917,"5,535.00",,Site Works,,,,,,No
The Royal Borough of Kensington and Chelsea,RBKC,,Capital,Capital,,NPS Property Consultants Ltd ,1235087,,,,11/12/2020,2200137964,"4,575.00",,Payments to sub contractor,,,,,,No
The Royal Borough of Kensington and Chelsea,RBKC,,Capital,Capital,,Nathaniel Lichfields and Partners,1265397,,,,13/10/2020,2200125704,"1,270.00",,Professional Fees : Non Legal,,,,,,No
The Royal Borough of Kensington and Chelsea,RBKC,,Capital,Capital,,Nicholls Countryside Construction L,1273948,,,,20/11/2020,2200133558,720.00,,Payments to main contractor,,,,,,No
The Royal Borough of Kensington and Chelsea,RBKC,,Capital,Capital,,Nisbets,1230771,,,,12/10/2020,2200125321,567.12,,Creditors Control : AP GRIR,,,,,,No
The Royal Borough of Kensington and Chelsea,RBKC,,Capital,Capital,,Norman Rourke Pryme Limited ,1230778,,,,19/10/2020,2200126742,"1,000.00",,Payments to main contractor,,,,,,No
The Royal Borough of Kensington and Chelsea,RBKC,,Capital,Capital,,Norman Rourke Pryme Limited ,1230778,,,,09/11/2020,2200131320,"1,000.00",,Payments to main contractor,,,,,,No
The Royal Borough of Kensington and Chelsea,RBKC,,Capital,Capital,,Octavia Housing (Main Account) ,1230955,,,,01/12/2020,2200135528,"5,590.00",,Payments to main contractor,,,,,,No
The Royal Borough of Kensington and Chelsea,RBKC,,Capital,Capital,,Osborn Associates Ltd,1262963,,,,06/10/2020,2200123981,"3,450.00",,Site Works,,,,,,No
The Royal Borough of Kensington and Chelsea,RBKC,,Capital,Capital,,Osborn Associates Ltd,1262963,,,,12/10/2020,2200125338,500.00,,Payments to main contractor,,,,,,No
The Royal Borough of Kensington and Chelsea,RBKC,,Capital,Capital,,Osborn Associates Ltd,1262963,,,,16/10/2020,2200126449,900.00,,Engineering Consultancy Fees,,,,,,No
The Royal Borough of Kensington and Chelsea,RBKC,,Capital,Capital,,Osborn Associates Ltd,1262963,,,,20/10/2020,2200126938,"2,100.00",,Payments to main contractor,,,,,,No
The Royal Borough of Kensington and Chelsea,RBKC,,Capital,Capital,,Osborn Associates Ltd,1262963,,,,20/10/2020,2200127079,"1,700.00",,Payments to sub contractor,,,,,,No
The Royal Borough of Kensington and Chelsea,RBKC,,Capital,Capital,,Osborn Associates Ltd,1262963,,,,20/10/2020,2200127080,"3,250.00",,Site Works,,,,,,No
The Royal Borough of Kensington and Chelsea,RBKC,,Capital,Capital,,Osborn Associates Ltd,1262963,,,,20/10/2020,2200127081,"3,250.00",,Site Works,,,,,,No
The Royal Borough of Kensington and Chelsea,RBKC,,Capital,Capital,,Osborn Associates Ltd,1262963,,,,20/10/2020,2200127084,"3,250.00",,Site Works,,,,,,No
The Royal Borough of Kensington and Chelsea,RBKC,,Capital,Capital,,Osborn Associates Ltd,1262963,,,,23/10/2020,2200127748,"7,950.00",,Other Consultants,,,,,,No
The Royal Borough of Kensington and Chelsea,RBKC,,Capital,Capital,,Osborn Associates Ltd,1262963,,,,23/10/2020,2200127749,"4,600.00",,Other Consultants,,,,,,No
The Royal Borough of Kensington and Chelsea,RBKC,,Capital,Capital,,Osborn Associates Ltd,1262963,,,,28/10/2020,2200128703,"7,950.00",,Other Consultants,,,,,,No
The Royal Borough of Kensington and Chelsea,RBKC,,Capital,Capital,,Osborn Associates Ltd,1262963,,,,02/11/2020,2200129645,"3,500.00",,Engineering Consultancy Fees,,,,,,No
The Royal Borough of Kensington and Chelsea,RBKC,,Capital,Capital,,Osborn Associates Ltd,1262963,,,,18/11/2020,2200133220,"4,900.00",,Payments to main contractor,,,,,,No
The Royal Borough of Kensington and Chelsea,RBKC,,Capital,Capital,,Osborne Thomas Ltd,1261917,,,,12/10/2020,2200125372,"17,536.20",,Other Consultants,,,,,,No
The Royal Borough of Kensington and Chelsea,RBKC,,Capital,Capital,,Osborne Thomas Ltd,1261917,,,,12/11/2020,2200132071,"15,789.95",,Other Consultants,,,,,,No
The Royal Borough of Kensington and Chelsea,RBKC,,Capital,Capital,,Osborne Thomas Ltd,1261917,,,,07/12/2020,2200136587,"13,200.00",,Other Consultants,,,,,,No
The Royal Borough of Kensington and Chelsea,RBKC,,Capital,Capital,,Oxford Gardens Primary School ,1232822,,,,16/10/2020,2200126420,"100,000.00",,Payments to main contractor,,,,,,No
The Royal Borough of Kensington and Chelsea,RBKC,,Capital,Capital,,Oxford Gardens Primary School ,1232822,,,,16/10/2020,2200126421,"8,102.00",,Payments to main contractor,,,,,,No
The Royal Borough of Kensington and Chelsea,RBKC,,Capital,Capital,,Oxford Gardens Primary School ,1232822,,,,17/11/2020,2200132875,"2,909.91",,Payments to main contractor,,,,,,No
The Royal Borough of Kensington and Chelsea,RBKC,,Capital,Capital,,PAYE Stonework & Restoration Ltd,1257732,,,,01/10/2020,2200123210,"3,750.00",,Payments to main contractor,,,,,,No
The Royal Borough of Kensington and Chelsea,RBKC,,Capital,Capital,,Pders Key Lifts ,1231418,,,,08/10/2020,2200124601,"5,482.91",,Payments to main contractor,,,,,,No
The Royal Borough of Kensington and Chelsea,RBKC,,Capital,Capital,,Pders Key Lifts ,1231418,,,,08/10/2020,2200124603,"3,124.80",,Payments to main contractor,,,,,,No
The Royal Borough of Kensington and Chelsea,RBKC,,Capital,Capital,,Pders Key Lifts ,1231418,,,,08/10/2020,2200124604,"1,362.04",,Payments to main contractor,,,,,,No
The Royal Borough of Kensington and Chelsea,RBKC,,Capital,Capital,,Pders Key Lifts ,1231418,,,,08/10/2020,2200124605,"2,753.38",,Payments to main contractor,,,,,,No
The Royal Borough of Kensington and Chelsea,RBKC,,Capital,Capital,,Pders Key Lifts ,1231418,,,,08/10/2020,2200124608,"24,800.00",,Payments to main contractor,,,,,,No
The Royal Borough of Kensington and Chelsea,RBKC,,Capital,Capital,,Pders Key Lifts ,1231418,,,,08/10/2020,2200124609,"5,482.91",,Payments to main contractor,,,,,,No
The Royal Borough of Kensington and Chelsea,RBKC,,Capital,Capital,,Pders Key Lifts ,1231418,,,,08/10/2020,2200124611,"1,747.61",,Payments to main contractor,,,,,,No
The Royal Borough of Kensington and Chelsea,RBKC,,Capital,Capital,,Pders Key Lifts ,1231418,,,,08/10/2020,2200124612,"1,747.61",,Payments to main contractor,,,,,,No
The Royal Borough of Kensington and Chelsea,RBKC,,Capital,Capital,,Pders Key Lifts ,1231418,,,,08/10/2020,2200124614,"1,377.38",,Payments to main contractor,,,,,,No
The Royal Borough of Kensington and Chelsea,RBKC,,Capital,Capital,,Pders Key Lifts ,1231418,,,,13/10/2020,2200125674,522.50,,Payments to sub contractor,,,,,,No
The Royal Borough of Kensington and Chelsea,RBKC,,Capital,Capital,,Pders Key Lifts ,1231418,,,,13/10/2020,2200125676,659.40,,Payments to sub contractor,,,,,,No
The Royal Borough of Kensington and Chelsea,RBKC,,Capital,Capital,,Pders Key Lifts ,1231418,,,,13/10/2020,2200125679,522.50,,Payments to sub contractor,,,,,,No
The Royal Borough of Kensington and Chelsea,RBKC,,Capital,Capital,,Pders Key Lifts ,1231418,,,,13/10/2020,2200125680,522.50,,Payments to sub contractor,,,,,,No
The Royal Borough of Kensington and Chelsea,RBKC,,Capital,Capital,,Pders Key Lifts ,1231418,,,,13/10/2020,2200125681,562.50,,Payments to sub contractor,,,,,,No
The Royal Borough of Kensington and Chelsea,RBKC,,Capital,Capital,,Pders Key Lifts ,1231418,,,,21/10/2020,2200127314,725.00,,Payments to main contractor,,,,,,No
The Royal Borough of Kensington and Chelsea,RBKC,,Capital,Capital,,Pders Key Lifts ,1231418,,,,21/10/2020,2200127318,812.50,,Payments to main contractor,,,,,,No
The Royal Borough of Kensington and Chelsea,RBKC,,Capital,Capital,,Pders Key Lifts ,1231418,,,,21/10/2020,2200127319,758.97,,Payments to main contractor,,,,,,No
The Royal Borough of Kensington and Chelsea,RBKC,,Capital,Capital,,Pders Key Lifts ,1231418,,,,18/11/2020,2200133140,"1,088.40",,Payments to main contractor,,,,,,No
The Royal Borough of Kensington and Chelsea,RBKC,,Capital,Capital,,Pders Key Lifts ,1231418,,,,02/12/2020,2200136050,"1,640.77",,Payments to main contractor,,,,,,No
The Royal Borough of Kensington and Chelsea,RBKC,,Capital,Capital,,Pders Key Lifts ,1231418,,,,08/12/2020,2200137223,"2,572.70",,Payments to main contractor,,,,,,No
The Royal Borough of Kensington and Chelsea,RBKC,,Capital,Capital,,Peabody Trust ,1253387,,,,23/11/2020,2200133939,"2,595.47",,Payments to main contractor,,,,,,No
The Royal Borough of Kensington and Chelsea,RBKC,,Capital,Capital,,Peabody Trust ,1253387,,,,23/11/2020,2200133940,"2,508.07",,Payments to main contractor,,,,,,No
The Royal Borough of Kensington and Chelsea,RBKC,,Capital,Capital,,Peabody Trust ,1253387,,,,23/11/2020,2200133941,"2,645.00",,Payments to main contractor,,,,,,No
The Royal Borough of Kensington and Chelsea,RBKC,,Capital,Capital,,Pelliings LLP,1269041,,,,14/10/2020,2200125816,"3,590.00",,Professional Fees : Non Legal,,,,,,No
The Royal Borough of Kensington and Chelsea,RBKC,,Capital,Capital,,Pelliings LLP,1269041,,,,15/10/2020,2200126152,"6,921.60",,Professional Fees : Non Legal,,,,,,No
The Royal Borough of Kensington and Chelsea,RBKC,,Capital,Capital,,Pelliings LLP,1269041,,,,16/12/2020,2200138764,"5,188.00",,Professional Fees : Non Legal,,,,,,No
The Royal Borough of Kensington and Chelsea,RBKC,,Capital,Capital,,Perfect Circle JV Ltd ,1254748,,,,30/10/2020,2200129215,"159,500.00",,Professional Fees : Non Legal,,,,,,No
The Royal Borough of Kensington and Chelsea,RBKC,,Capital,Capital,,Perfect Circle JV Ltd ,1254748,,,,30/10/2020,2200129218,"52,626.47",,Professional Fees : Non Legal,,,,,,No
The Royal Borough of Kensington and Chelsea,RBKC,,Capital,Capital,,Perfect Circle JV Ltd ,1254748,,,,03/11/2020,2200129762,"149,240.00",,Professional Fees : Non Legal,,,,,,No
The Royal Borough of Kensington and Chelsea,RBKC,,Capital,Capital,,Perfect Circle JV Ltd ,1254748,,,,02/12/2020,2200136070,"146,400.00",,Professional Fees : Non Legal,,,,,,No
The Royal Borough of Kensington and Chelsea,RBKC,,Capital,Capital,,Perfect Circle JV Ltd ,1254748,,,,02/12/2020,2200136073,"39,061.47",,Professional Fees : Non Legal,,,,,,No
The Royal Borough of Kensington and Chelsea,RBKC,,Capital,Capital,,Perfect Circle JV Ltd ,1254748,,,,08/12/2020,2200137096,"110,976.00",,Professional Fees : Non Legal,,,,,,No
The Royal Borough of Kensington and Chelsea,RBKC,,Capital,Capital,,Perkins & Will UK Limited,1265496,,,,03/11/2020,2200129918,"12,559.00",,Payments to main contractor,,,,,,No
The Royal Borough of Kensington and Chelsea,RBKC,,Capital,Capital,,Perkins & Will UK Limited,1265496,,,,03/11/2020,2200129919,"24,939.00",,Payments to main contractor,,,,,,No
The Royal Borough of Kensington and Chelsea,RBKC,,Capital,Capital,,Perkins & Will UK Limited,1265496,,,,03/11/2020,2200129920,"23,229.00",,Payments to main contractor,,,,,,No
The Royal Borough of Kensington and Chelsea,RBKC,,Capital,Capital,,Perkins & Will UK Limited,1265496,,,,03/11/2020,2200129921,"6,772.00",,Payments to main contractor,,,,,,No
The Royal Borough of Kensington and Chelsea,RBKC,,Capital,Capital,,Perkins & Will UK Limited,1265496,,,,26/11/2020,2200134636,"32,670.00",,Payments to main contractor,,,,,,No
The Royal Borough of Kensington and Chelsea,RBKC,,Capital,Capital,,Perkins & Will UK Limited,1265496,,,,30/11/2020,2200135428,"17,567.00",,Payments to main contractor,,,,,,No
The Royal Borough of Kensington and Chelsea,RBKC,,Capital,Capital,,Perkins & Will UK Limited,1265496,,,,30/11/2020,2200135444,"2,728.00",,Payments to main contractor,,,,,,No
The Royal Borough of Kensington and Chelsea,RBKC,,Capital,Capital,,Perkins & Will UK Limited,1265496,,,,01/12/2020,2200135621,"3,552.00",,Payments to main contractor,,,,,,No
The Royal Borough of Kensington and Chelsea,RBKC,,Capital,Capital,,Perkins & Will UK Limited,1265496,,,,01/12/2020,2200135672,"5,662.00",,Payments to main contractor,,,,,,No
The Royal Borough of Kensington and Chelsea,RBKC,,Capital,Capital,,Perkins & Will UK Limited,1265496,,,,30/12/2020,2200140651,"32,670.00",,Payments to main contractor,,,,,,No
The Royal Borough of Kensington and Chelsea,RBKC,,Capital,Capital,,Peter Randall-Page Studio,1264908,,,,22/12/2020,2200139880,"5,190.00",,Creditors Control : AP GRIR,,,,,,No
The Royal Borough of Kensington and Chelsea,RBKC,,Capital,Capital,,Pierra Ltd,1273042,,,,03/12/2020,2200136310,"10,252.00",,Construction : enhancements,,,,,,No
The Royal Borough of Kensington and Chelsea,RBKC,,Capital,Capital,,Pierra Ltd,1273042,,,,22/12/2020,2200139698,"23,187.20",,Construction : enhancements,,,,,,No
The Royal Borough of Kensington and Chelsea,RBKC,,Capital,Capital,,Pinsent Masons LLP ,1235160,,,,23/11/2020,2200134038,"2,605.00",,Legal Fees & expenses,,,,,,No
The Royal Borough of Kensington and Chelsea,RBKC,,Capital,Capital,,Point 2 Surveyors,1235179,,,,29/10/2020,2200128859,"2,774.95",,Site Works,,,,,,No
The Royal Borough of Kensington and Chelsea,RBKC,,Capital,Capital,,Point 2 Surveyors,1235179,,,,16/11/2020,2200132557,"2,346.00",,Payments to main contractor,,,,,,No
The Royal Borough of Kensington and Chelsea,RBKC,,Capital,Capital,,Point 2 Surveyors,1235179,,,,19/11/2020,2200133444,"2,175.67",,Payments to main contractor,,,,,,No
The Royal Borough of Kensington and Chelsea,RBKC,,Capital,Capital,,Point 2 Surveyors,1235179,,,,16/12/2020,2200138660,"3,238.45",,Payments to main contractor,,,,,,No
The Royal Borough of Kensington and Chelsea,RBKC,,Capital,Capital,,Point 2 Surveyors,1235179,,,,16/12/2020,2200138661,"1,540.00",,Construction : enhancements,,,,,,No
The Royal Borough of Kensington and Chelsea,RBKC,,Capital,Capital,,Potter Raper Partnership,1235188,,,,27/11/2020,2200135042,"4,145.60",,Professional Fees : Non Legal,,,,,,No
The Royal Borough of Kensington and Chelsea,RBKC,,Capital,Capital,,Potter Raper Partnership,1235188,,,,27/11/2020,2200135043,"7,200.00",,Professional Fees : Non Legal,,,,,,No
The Royal Borough of Kensington and Chelsea,RBKC,,Capital,Capital,,Potter Raper Partnership,1235188,,,,27/11/2020,2200135044,772.80,,Professional Fees : Non Legal,,,,,,No
The Royal Borough of Kensington and Chelsea,RBKC,,Capital,Capital,,Project Centre ,1235205,,,,20/11/2020,2200133559,"2,958.78",,Engineering Consultancy Fees,,,,,,No
The Royal Borough of Kensington and Chelsea,RBKC,,Capital,Capital,,Project Centre ,1235205,,,,08/12/2020,2200137258,"2,196.67",,Engineering Consultancy Fees,,,,,,No
The Royal Borough of Kensington and Chelsea,RBKC,,Capital,Capital,,Project Centre ,1235205,,,,17/12/2020,2200138855,"2,325.00",,Payments to main contractor,,,,,,No
The Royal Borough of Kensington and Chelsea,RBKC,,Capital,Capital,,Proun Architects ,1235211,,,,05/11/2020,2200130463,"3,000.00",,Other Consultants,,,,,,No
The Royal Borough of Kensington and Chelsea,RBKC,,Capital,Capital,,Quadron Services Ltd T/A Idverde ,1231423,,,,23/12/2020,2200139987,776.08,,Construction : enhancements,,,,,,No
The Royal Borough of Kensington and Chelsea,RBKC,,Capital,Capital,,Quinn London Ltd,1235230,,,,13/10/2020,2200125687,"119,251.06",,Other Consultants,,,,,,No
The Royal Borough of Kensington and Chelsea,RBKC,,Capital,Capital,,Quinn London Ltd,1235230,,,,10/11/2020,2200131507,"173,838.06",,Other Consultants,,,,,,No
The Royal Borough of Kensington and Chelsea,RBKC,,Capital,Capital,,Quinn London Ltd,1235230,,,,14/12/2020,2200138151,"212,022.69",,Other Consultants,,,,,,No
The Royal Borough of Kensington and Chelsea,RBKC,,Capital,Capital,,Quinn London Ltd,1235230,,,,22/12/2020,2200139862,"6,607.96",,Payments to main contractor,,,,,,No
The Royal Borough of Kensington and Chelsea,RBKC,,Capital,Capital,,R & Ma Stewart Ltd ,1235232,,,,08/10/2020,2200124744,678.36,,Site Works,,,,,,No
The Royal Borough of Kensington and Chelsea,RBKC,,Capital,Capital,,R J Lift Services Ltd ,1257154,,,,27/10/2020,2200128337,"4,480.50",,Construction : enhancements,,,,,,No
The Royal Borough of Kensington and Chelsea,RBKC,,Capital,Capital,,R J Lift Services Ltd ,1257154,,,,28/10/2020,2200128697,"14,382.50",,Construction : enhancements,,,,,,No
The Royal Borough of Kensington and Chelsea,RBKC,,Capital,Capital,,R J Lift Services Ltd ,1257154,,,,29/10/2020,2200128877,"13,997.50",,Construction : enhancements,,,,,,No
The Royal Borough of Kensington and Chelsea,RBKC,,Capital,Capital,,R J Lift Services Ltd ,1257154,,,,04/11/2020,2200130270,"17,609.50",,Construction : enhancements,,,,,,No
The Royal Borough of Kensington and Chelsea,RBKC,,Capital,Capital,,Ram Building Consultancy Ltd,1270409,,,,25/11/2020,2200134545,"1,176.00",,Payments to sub contractor,,,,,,No
The Royal Borough of Kensington and Chelsea,RBKC,,Capital,Capital,,RNB ENGINEERING,1256083,,,,12/10/2020,2200125170,"1,595.00",,Payments to main contractor,,,,,,No
The Royal Borough of Kensington and Chelsea,RBKC,,Capital,Capital,,RNB ENGINEERING,1256083,,,,22/10/2020,2200127578,"22,996.00",,Payments to main contractor,,,,,,No
The Royal Borough of Kensington and Chelsea,RBKC,,Capital,Capital,,RNB ENGINEERING,1256083,,,,25/11/2020,2200134535,"40,626.59",,Payments to main contractor,,,,,,No
The Royal Borough of Kensington and Chelsea,RBKC,,Capital,Capital,,RUSSELL TREW LIMITED,1272150,,,,23/11/2020,2200133919,"24,753.00",,Planned Maintenance (CM),,,,,,No
The Royal Borough of Kensington and Chelsea,RBKC,,Capital,Capital,,Ramboll UK Ltd,1274051,,,,17/12/2020,2200138868,"3,950.00",,Professional Fees : Non Legal,,,,,,No
The Royal Borough of Kensington and Chelsea,RBKC,,Capital,Capital,,Rbkc Colville Primary School ,1236100,,,,07/10/2020,2200124326,"4,375.00",,Payments to main contractor,,,,,,No
The Royal Borough of Kensington and Chelsea,RBKC,,Capital,Capital,,Resourcing Group ,1235269,,,,27/11/2020,2200134794,853.56,,Capitalised salaries,,,,,,No
The Royal Borough of Kensington and Chelsea,RBKC,,Capital,Capital,,Resourcing Group ,1235269,,,,27/11/2020,2200134796,853.56,,Capitalised salaries,,,,,,No
The Royal Borough of Kensington and Chelsea,RBKC,,Capital,Capital,,Resourcing Group ,1235269,,,,27/11/2020,2200134797,853.56,,Capitalised salaries,,,,,,No
The Royal Borough of Kensington and Chelsea,RBKC,,Capital,Capital,,Resourcing Group ,1235269,,,,27/11/2020,2200134798,853.56,,Capitalised salaries,,,,,,No
The Royal Borough of Kensington and Chelsea,RBKC,,Capital,Capital,,Resourcing Group ,1235269,,,,27/11/2020,2200134800,853.56,,Capitalised salaries,,,,,,No
The Royal Borough of Kensington and Chelsea,RBKC,,Capital,Capital,,Resourcing Group ,1235269,,,,27/11/2020,2200134802,853.56,,Capitalised salaries,,,,,,No
The Royal Borough of Kensington and Chelsea,RBKC,,Capital,Capital,,Resourcing Group ,1235269,,,,02/12/2020,2200136006,687.59,,Capitalised salaries,,,,,,No
The Royal Borough of Kensington and Chelsea,RBKC,,Capital,Capital,,Resourcing Group ,1235269,,,,17/12/2020,2200138867,853.56,,Capitalised salaries,,,,,,No
The Royal Borough of Kensington and Chelsea,RBKC,,Capital,Capital,,Resourcing Group ,1235269,,,,17/12/2020,2200138869,853.56,,Capitalised salaries,,,,,,No
The Royal Borough of Kensington and Chelsea,RBKC,,Capital,Capital,,Resourcing Group ,1235269,,,,17/12/2020,2200138870,853.56,,Capitalised salaries,,,,,,No
The Royal Borough of Kensington and Chelsea,RBKC,,Capital,Capital,,Resourcing Group ,1235269,,,,22/12/2020,2200139677,"1,138.16",,Capitalised salaries,,,,,,No
The Royal Borough of Kensington and Chelsea,RBKC,,Capital,Capital,,Resourcing Group ,1235269,,,,22/12/2020,2200139678,"1,081.92",,Capitalised salaries,,,,,,No
The Royal Borough of Kensington and Chelsea,RBKC,,Capital,Capital,,Resourcing Group ,1235269,,,,22/12/2020,2200139679,"1,030.40",,Capitalised salaries,,,,,,No
The Royal Borough of Kensington and Chelsea,RBKC,,Capital,Capital,,Resourcing Group ,1235269,,,,22/12/2020,2200139680,"1,138.16",,Capitalised salaries,,,,,,No
The Royal Borough of Kensington and Chelsea,RBKC,,Capital,Capital,,Resourcing Group ,1235269,,,,22/12/2020,2200139681,"1,030.40",,Capitalised salaries,,,,,,No
The Royal Borough of Kensington and Chelsea,RBKC,,Capital,Capital,,Resourcing Group ,1235269,,,,22/12/2020,2200139682,"1,107.68",,Capitalised salaries,,,,,,No
The Royal Borough of Kensington and Chelsea,RBKC,,Capital,Capital,,Resourcing Group ,1235269,,,,22/12/2020,2200139684,"1,124.28",,Capitalised salaries,,,,,,No
The Royal Borough of Kensington and Chelsea,RBKC,,Capital,Capital,,Resourcing Group ,1235269,,,,22/12/2020,2200139710,"1,124.28",,Capitalised salaries,,,,,,No
The Royal Borough of Kensington and Chelsea,RBKC,,Capital,Capital,,Resourcing Group ,1235269,,,,22/12/2020,2200139711,"1,236.48",,Capitalised salaries,,,,,,No
The Royal Borough of Kensington and Chelsea,RBKC,,Capital,Capital,,Resourcing Group ,1235269,,,,22/12/2020,2200139712,"1,030.40",,Capitalised salaries,,,,,,No
The Royal Borough of Kensington and Chelsea,RBKC,,Capital,Capital,,Resourcing Group ,1235269,,,,22/12/2020,2200139713,"1,133.44",,Capitalised salaries,,,,,,No
The Royal Borough of Kensington and Chelsea,RBKC,,Capital,Capital,,Resourcing Group ,1235269,,,,22/12/2020,2200139715,"1,030.40",,Capitalised salaries,,,,,,No
The Royal Borough of Kensington and Chelsea,RBKC,,Capital,Capital,,Resourcing Group ,1235269,,,,22/12/2020,2200139716,"1,332.48",,Capitalised salaries,,,,,,No
The Royal Borough of Kensington and Chelsea,RBKC,,Capital,Capital,,Resourcing Group ,1235269,,,,22/12/2020,2200139723,"1,030.40",,Capitalised salaries,,,,,,No
The Royal Borough of Kensington and Chelsea,RBKC,,Capital,Capital,,Resourcing Group ,1235269,,,,22/12/2020,2200139728,"1,236.48",,Capitalised salaries,,,,,,No
The Royal Borough of Kensington and Chelsea,RBKC,,Capital,Capital,,Resourcing Group ,1235269,,,,22/12/2020,2200139730,"1,110.40",,Capitalised salaries,,,,,,No
The Royal Borough of Kensington and Chelsea,RBKC,,Capital,Capital,,Resourcing Group ,1235269,,,,22/12/2020,2200139731,"1,110.40",,Capitalised salaries,,,,,,No
The Royal Borough of Kensington and Chelsea,RBKC,,Capital,Capital,,Resourcing Group ,1235269,,,,22/12/2020,2200139733,"1,030.40",,Capitalised salaries,,,,,,No
The Royal Borough of Kensington and Chelsea,RBKC,,Capital,Capital,,Resourcing Group ,1235269,,,,22/12/2020,2200139735,"1,110.40",,Capitalised salaries,,,,,,No
The Royal Borough of Kensington and Chelsea,RBKC,,Capital,Capital,,Resourcing Group ,1235269,,,,22/12/2020,2200139738,"1,030.40",,Capitalised salaries,,,,,,No
The Royal Borough of Kensington and Chelsea,RBKC,,Capital,Capital,,Resourcing Group ,1235269,,,,22/12/2020,2200139741,"1,030.40",,Capitalised salaries,,,,,,No
The Royal Borough of Kensington and Chelsea,RBKC,,Capital,Capital,,Resourcing Group ,1235269,,,,22/12/2020,2200139747,"1,030.40",,Capitalised salaries,,,,,,No
The Royal Borough of Kensington and Chelsea,RBKC,,Capital,Capital,,Resourcing Group ,1235269,,,,23/12/2020,2200140030,"1,030.40",,Capitalised salaries,,,,,,No
The Royal Borough of Kensington and Chelsea,RBKC,,Capital,Capital,,Ricardo-AEA Ltd ,1231259,,,,01/12/2020,2200135641,"29,673.00",,Creditors Control : AP GRIR,,,,,,No
The Royal Borough of Kensington and Chelsea,RBKC,,Capital,Capital,,Ridge And Partners LLP ,1231273,,,,07/12/2020,2200136798,"1,000.00",,Payments to main contractor,,,,,,No
The Royal Borough of Kensington and Chelsea,RBKC,,Capital,Capital,,Ridge And Partners LLP ,1231273,,,,23/12/2020,2200140106,"1,500.00",,Payments to main contractor,,,,,,No
The Royal Borough of Kensington and Chelsea,RBKC,,Capital,Capital,,S W Security Ltd ,1235300,,,,19/10/2020,2200126765,"25,713.00",,Payments to main contractor,,,,,,No
The Royal Borough of Kensington and Chelsea,RBKC,,Capital,Capital,,S W Security Ltd ,1235300,,,,20/10/2020,2200127122,"2,166.00",,Payments to main contractor,,,,,,No
The Royal Borough of Kensington and Chelsea,RBKC,,Capital,Capital,,S W Security Ltd ,1235300,,,,20/10/2020,2200127126,"3,178.00",,Payments to main contractor,,,,,,No
The Royal Borough of Kensington and Chelsea,RBKC,,Capital,Capital,,S W Security Ltd ,1235300,,,,04/12/2020,2200136397,"9,613.00",,Payments to main contractor,,,,,,No
The Royal Borough of Kensington and Chelsea,RBKC,,Capital,Capital,,S W Security Ltd ,1235300,,,,07/12/2020,2200136730,"37,171.41",,Payments to main contractor,,,,,,No
The Royal Borough of Kensington and Chelsea,RBKC,,Capital,Capital,,SYTE Architectural Glazing,1271212,,,,12/10/2020,2200125356,"17,695.93",,Payments to main contractor,,,,,,No
The Royal Borough of Kensington and Chelsea,RBKC,,Capital,Capital,,Santia Asbestos Management Ltd ,1255345,,,,08/10/2020,2200124703,"96,358.05",,Planned Maintenance (CM),,,,,,No
The Royal Borough of Kensington and Chelsea,RBKC,,Capital,Capital,,Santia Asbestos Management Ltd ,1255345,,,,08/10/2020,2200124704,"57,117.50",,Planned Maintenance (CM),,,,,,No
The Royal Borough of Kensington and Chelsea,RBKC,,Capital,Capital,,Santia Asbestos Management Ltd ,1255345,,,,08/10/2020,2200124705,"48,772.00",,Planned Maintenance (CM),,,,,,No
The Royal Borough of Kensington and Chelsea,RBKC,,Capital,Capital,,Santia Asbestos Management Ltd ,1255345,,,,09/10/2020,2200124852,"58,744.90",,Planned Maintenance (CM),,,,,,No
The Royal Borough of Kensington and Chelsea,RBKC,,Capital,Capital,,Servite Rc Primary School ,1236107,,,,23/12/2020,2200140059,"80,000.00",,Payments to main contractor,,,,,,No
The Royal Borough of Kensington and Chelsea,RBKC,,Capital,Capital,,Sharpe Pritchard ,1235336,,,,12/10/2020,2200125323,938.00,,Construction : enhancements,,,,,,No
The Royal Borough of Kensington and Chelsea,RBKC,,Capital,Capital,,Siemens Plc,1256361,,,,07/10/2020,2200124364,"23,467.00",,Construction : enhancements,,,,,,No
The Royal Borough of Kensington and Chelsea,RBKC,,Capital,Capital,,Signway Supplies Datchet Ltd ,1231339,,,,12/10/2020,2200125165,"5,216.25",,Traffic sign & white lines,,,,,,No
The Royal Borough of Kensington and Chelsea,RBKC,,Capital,Capital,,Signway Supplies Datchet Ltd ,1231339,,,,12/10/2020,2200125166,"14,991.56",,Traffic sign & white lines,,,,,,No
The Royal Borough of Kensington and Chelsea,RBKC,,Capital,Capital,,Simon O�Rourke Ltd,1270065,,,,27/10/2020,2200128294,"2,500.00",,Construction : enhancements,,,,,,No
The Royal Borough of Kensington and Chelsea,RBKC,,Capital,Capital,,Skilled Careers Limited,1265647,,,,02/10/2020,2200123372,943.20,,Capitalised salaries,,,,,,No
The Royal Borough of Kensington and Chelsea,RBKC,,Capital,Capital,,Skilled Careers Limited,1265647,,,,02/10/2020,2200123376,943.20,,Capitalised salaries,,,,,,No
The Royal Borough of Kensington and Chelsea,RBKC,,Capital,Capital,,Skilled Careers Limited,1265647,,,,02/10/2020,2200123377,759.80,,Capitalised salaries,,,,,,No
The Royal Borough of Kensington and Chelsea,RBKC,,Capital,Capital,,Skilled Careers Limited,1265647,,,,02/10/2020,2200123378,943.20,,Capitalised salaries,,,,,,No
The Royal Borough of Kensington and Chelsea,RBKC,,Capital,Capital,,Skilled Careers Limited,1265647,,,,02/10/2020,2200123380,943.20,,Capitalised salaries,,,,,,No
The Royal Borough of Kensington and Chelsea,RBKC,,Capital,Capital,,Skilled Careers Limited,1265647,,,,02/10/2020,2200123388,"1,257.60",,Capitalised salaries,,,,,,No
The Royal Borough of Kensington and Chelsea,RBKC,,Capital,Capital,,Skilled Careers Limited,1265647,,,,02/10/2020,2200123390,"1,153.44",,Capitalised salaries,,,,,,No
The Royal Borough of Kensington and Chelsea,RBKC,,Capital,Capital,,Skilled Careers Limited,1265647,,,,02/10/2020,2200123393,"1,048.00",,Capitalised salaries,,,,,,No
The Royal Borough of Kensington and Chelsea,RBKC,,Capital,Capital,,Skilled Careers Limited,1265647,,,,02/10/2020,2200123405,"1,153.44",,Capitalised salaries,,,,,,No
The Royal Borough of Kensington and Chelsea,RBKC,,Capital,Capital,,Skilled Careers Limited,1265647,,,,02/10/2020,2200123408,"1,048.00",,Capitalised salaries,,,,,,No
The Royal Borough of Kensington and Chelsea,RBKC,,Capital,Capital,,Skilled Careers Limited,1265647,,,,08/10/2020,2200124520,943.20,,Capitalised salaries,,,,,,No
The Royal Borough of Kensington and Chelsea,RBKC,,Capital,Capital,,Skilled Careers Limited,1265647,,,,08/10/2020,2200124732,961.20,,Capitalised salaries,,,,,,No
The Royal Borough of Kensington and Chelsea,RBKC,,Capital,Capital,,Skilled Careers Limited,1265647,,,,08/10/2020,2200124736,"1,048.00",,Capitalised salaries,,,,,,No
The Royal Borough of Kensington and Chelsea,RBKC,,Capital,Capital,,Skilled Careers Limited,1265647,,,,08/10/2020,2200124737,"1,048.00",,Capitalised salaries,,,,,,No
The Royal Borough of Kensington and Chelsea,RBKC,,Capital,Capital,,Skilled Careers Limited,1265647,,,,08/10/2020,2200124738,865.08,,Capitalised salaries,,,,,,No
The Royal Borough of Kensington and Chelsea,RBKC,,Capital,Capital,,Skilled Careers Limited,1265647,,,,13/10/2020,2200125514,"1,048.00",,Capitalised salaries,,,,,,No
The Royal Borough of Kensington and Chelsea,RBKC,,Capital,Capital,,Skilled Careers Limited,1265647,,,,14/10/2020,2200125861,"1,257.60",,Capitalised salaries,,,,,,No
The Royal Borough of Kensington and Chelsea,RBKC,,Capital,Capital,,Skilled Careers Limited,1265647,,,,23/10/2020,2200127779,961.20,,Capitalised salaries,,,,,,No
The Royal Borough of Kensington and Chelsea,RBKC,,Capital,Capital,,Skilled Careers Limited,1265647,,,,23/10/2020,2200127780,"1,048.00",,Capitalised salaries,,,,,,No
The Royal Borough of Kensington and Chelsea,RBKC,,Capital,Capital,,Skilled Careers Limited,1265647,,,,23/10/2020,2200127781,961.20,,Capitalised salaries,,,,,,No
The Royal Borough of Kensington and Chelsea,RBKC,,Capital,Capital,,Skilled Careers Limited,1265647,,,,23/10/2020,2200127786,961.20,,Capitalised salaries,,,,,,No
The Royal Borough of Kensington and Chelsea,RBKC,,Capital,Capital,,Skilled Careers Limited,1265647,,,,23/10/2020,2200127787,961.20,,Capitalised salaries,,,,,,No
The Royal Borough of Kensington and Chelsea,RBKC,,Capital,Capital,,Skilled Careers Limited,1265647,,,,23/10/2020,2200127788,"1,048.00",,Capitalised salaries,,,,,,No
The Royal Borough of Kensington and Chelsea,RBKC,,Capital,Capital,,Skilled Careers Limited,1265647,,,,02/11/2020,2200129509,"1,257.60",,Capitalised salaries,,,,,,No
The Royal Borough of Kensington and Chelsea,RBKC,,Capital,Capital,,Skilled Careers Limited,1265647,,,,02/11/2020,2200129510,943.20,,Capitalised salaries,,,,,,No
The Royal Borough of Kensington and Chelsea,RBKC,,Capital,Capital,,Skilled Careers Limited,1265647,,,,02/11/2020,2200129522,961.20,,Capitalised salaries,,,,,,No
The Royal Borough of Kensington and Chelsea,RBKC,,Capital,Capital,,Skilled Careers Limited,1265647,,,,02/11/2020,2200129524,"1,048.00",,Capitalised salaries,,,,,,No
The Royal Borough of Kensington and Chelsea,RBKC,,Capital,Capital,,Skilled Careers Limited,1265647,,,,10/11/2020,2200131572,995.60,,Capitalised salaries,,,,,,No
The Royal Borough of Kensington and Chelsea,RBKC,,Capital,Capital,,Skilled Careers Limited,1265647,,,,10/11/2020,2200131573,961.20,,Capitalised salaries,,,,,,No
The Royal Borough of Kensington and Chelsea,RBKC,,Capital,Capital,,Skilled Careers Limited,1265647,,,,10/11/2020,2200131575,"1,048.00",,Capitalised salaries,,,,,,No
The Royal Borough of Kensington and Chelsea,RBKC,,Capital,Capital,,Skilled Careers Limited,1265647,,,,17/11/2020,2200132846,961.20,,Capitalised salaries,,,,,,No
The Royal Borough of Kensington and Chelsea,RBKC,,Capital,Capital,,Skilled Careers Limited,1265647,,,,17/11/2020,2200132854,"1,048.00",,Capitalised salaries,,,,,,No
The Royal Borough of Kensington and Chelsea,RBKC,,Capital,Capital,,Skilled Careers Limited,1265647,,,,17/11/2020,2200132866,"1,048.00",,Capitalised salaries,,,,,,No
The Royal Borough of Kensington and Chelsea,RBKC,,Capital,Capital,,Skilled Careers Limited,1265647,,,,25/11/2020,2200134492,961.20,,Capitalised salaries,,,,,,No
The Royal Borough of Kensington and Chelsea,RBKC,,Capital,Capital,,Skilled Careers Limited,1265647,,,,25/11/2020,2200134493,"1,048.00",,Capitalised salaries,,,,,,No
The Royal Borough of Kensington and Chelsea,RBKC,,Capital,Capital,,Skilled Careers Limited,1265647,,,,27/11/2020,2200135005,961.20,,Capitalised salaries,,,,,,No
The Royal Borough of Kensington and Chelsea,RBKC,,Capital,Capital,,Skilled Careers Limited,1265647,,,,27/11/2020,2200135006,"1,048.00",,Capitalised salaries,,,,,,No
The Royal Borough of Kensington and Chelsea,RBKC,,Capital,Capital,,Skilled Careers Limited,1265647,,,,03/12/2020,2200136247,961.20,,Capitalised salaries,,,,,,No
The Royal Borough of Kensington and Chelsea,RBKC,,Capital,Capital,,Skilled Careers Limited,1265647,,,,03/12/2020,2200136249,"1,048.00",,Capitalised salaries,,,,,,No
The Royal Borough of Kensington and Chelsea,RBKC,,Capital,Capital,,Skilled Careers Limited,1265647,,,,07/12/2020,2200136727,961.20,,Capitalised salaries,,,,,,No
The Royal Borough of Kensington and Chelsea,RBKC,,Capital,Capital,,Skilled Careers Limited,1265647,,,,11/12/2020,2200137965,961.20,,Capitalised salaries,,,,,,No
The Royal Borough of Kensington and Chelsea,RBKC,,Capital,Capital,,Skilled Careers Limited,1265647,,,,15/12/2020,2200138349,"1,048.00",,Capitalised salaries,,,,,,No
The Royal Borough of Kensington and Chelsea,RBKC,,Capital,Capital,,Skilled Careers Limited,1265647,,,,22/12/2020,2200139755,961.20,,Capitalised salaries,,,,,,No
The Royal Borough of Kensington and Chelsea,RBKC,,Capital,Capital,,Skilled Careers Limited,1265647,,,,22/12/2020,2200139883,"1,048.00",,Capitalised salaries,,,,,,No
The Royal Borough of Kensington and Chelsea,RBKC,,Capital,Capital,,Skilled Careers Limited,1265647,,,,23/12/2020,2200139989,961.20,,Capitalised salaries,,,,,,No
The Royal Borough of Kensington and Chelsea,RBKC,,Capital,Capital,,Stannah Lift Services Ltd ,1231434,,,,09/11/2020,2200131208,795.00,,Payments to sub contractor,,,,,,No
The Royal Borough of Kensington and Chelsea,RBKC,,Capital,Capital,,Stiff and Trevillion Architects Lim,1271978,,,,26/11/2020,2200134672,"7,500.00",,Payments to sub contractor,,,,,,No
The Royal Borough of Kensington and Chelsea,RBKC,,Capital,Capital,,Suez Recycling and Recovery UK Ltd ,1235441,,,,23/12/2020,2200140107,"172,808.00",,Creditors Control : AP GRIR,,,,,,No
The Royal Borough of Kensington and Chelsea,RBKC,,Capital,Capital,,Suez Recycling and Recovery UK Ltd ,1235441,,,,23/12/2020,2200140107,"172,808.00",,Creditors Control : AP GRIR,,,,,,No
The Royal Borough of Kensington and Chelsea,RBKC,,Capital,Capital,,Suez Recycling and Recovery UK Ltd ,1235441,,,,23/12/2020,2200140107,"172,808.00",,Creditors Control : AP GRIR,,,,,,No
The Royal Borough of Kensington and Chelsea,RBKC,,Capital,Capital,,Suez Recycling and Recovery UK Ltd ,1235441,,,,23/12/2020,2200140107,"172,808.00",,Creditors Control : AP GRIR,,,,,,No
The Royal Borough of Kensington and Chelsea,RBKC,,Capital,Capital,,Suez Recycling and Recovery UK Ltd ,1235441,,,,23/12/2020,2200140107,"172,808.00",,Creditors Control : AP GRIR,,,,,,No
The Royal Borough of Kensington and Chelsea,RBKC,,Capital,Capital,,Suez Recycling and Recovery UK Ltd ,1235441,,,,23/12/2020,2200140107,"172,808.00",,Creditors Control : AP GRIR,,,,,,No
The Royal Borough of Kensington and Chelsea,RBKC,,Capital,Capital,,Surefire Services Limited,1263781,,,,09/11/2020,2200131304,"18,720.00",,Payments to main contractor,,,,,,No
The Royal Borough of Kensington and Chelsea,RBKC,,Capital,Capital,,Allied Protection Ltd ,1231167,,,,05/10/2020,2200123860,"1,700.00",,Site Works,,,,,,No
The Royal Borough of Kensington and Chelsea,RBKC,,Capital,Capital,,Allied Protection Ltd ,1231167,,,,06/10/2020,2200124038,"2,095.42",,Site Works,,,,,,No
The Royal Borough of Kensington and Chelsea,RBKC,,Capital,Capital,,Allied Protection Ltd ,1231167,,,,29/10/2020,2200128822,"2,895.41",,Site Works,,,,,,No
The Royal Borough of Kensington and Chelsea,RBKC,,Capital,Capital,,Allied Protection Ltd ,1231167,,,,29/10/2020,2200128823,"4,184.14",,Site Works,,,,,,No
The Royal Borough of Kensington and Chelsea,RBKC,,Capital,Capital,,Allied Protection Ltd ,1231167,,,,03/12/2020,2200136286,"1,333.35",,Site Works,,,,,,No
The Royal Borough of Kensington and Chelsea,RBKC,,Capital,Capital,,Allied Protection Ltd ,1231167,,,,21/12/2020,2200139590,"3,381.49",,Payments to sub contractor,,,,,,No
The Royal Borough of Kensington and Chelsea,RBKC,,Capital,Capital,,Allied Protection Ltd ,1231167,,,,23/12/2020,2200140114,"1,213.33",,Payments to sub contractor,,,,,,No
The Royal Borough of Kensington and Chelsea,RBKC,,Capital,Capital,,Sustainable Homes Scotland Limited,1273271,,,,19/11/2020,2200133314,"2,596.46",,Special Maintenance,,,,,,No
The Royal Borough of Kensington and Chelsea,RBKC,,Capital,Capital,,Switchee Ltd,1265507,,,,27/10/2020,2200128269,"10,000.00",,Payments to main contractor,,,,,,No
The Royal Borough of Kensington and Chelsea,RBKC,,Capital,Capital,,T Loughman and Co Ltd,1260777,,,,07/12/2020,2200136816,"110,260.57",,Construction : enhancements,,,,,,No
The Royal Borough of Kensington and Chelsea,RBKC,,Capital,Capital,,Tace Manchester Limited,1270502,,,,11/11/2020,2200131823,"25,000.00",,Payments to main contractor,,,,,,No
The Royal Borough of Kensington and Chelsea,RBKC,,Capital,Capital,,TBRE Associates Ltd,1269736,,,,29/10/2020,2200128848,"1,690.00",,Surveyors,,,,,,No
The Royal Borough of Kensington and Chelsea,RBKC,,Capital,Capital,,TGA Consulting Engineers LLP,1258323,,,,11/12/2020,2200138011,"1,367.75",,Payments to main contractor,,,,,,No
The Royal Borough of Kensington and Chelsea,RBKC,,Capital,Capital,,Tate Fencing Ltd ,1231604,,,,07/12/2020,2200136865,"5,575.80",,Creditors Control : AP GRIR,,,,,,No
The Royal Borough of Kensington and Chelsea,RBKC,,Capital,Capital,,Tfl Surface Transport ,1235474,,,,18/11/2020,2200133150,"5,000.00",,Engineering Consultancy Fees,,,,,,No
The Royal Borough of Kensington and Chelsea,RBKC,,Capital,Capital,,Thermoserve,1271036,,,,16/11/2020,2200132544,770.00,,Payments to main contractor,,,,,,No
The Royal Borough of Kensington and Chelsea,RBKC,,Capital,Capital,,Thomas Jones Primary School ,1232848,,,,13/11/2020,2200132187,"3,313.73",,Other Consultants,,,,,,No
The Royal Borough of Kensington and Chelsea,RBKC,,Capital,Capital,,Thomas Jones Primary School ,1232848,,,,13/11/2020,2200132188,"8,900.00",,Payments to main contractor,,,,,,No
The Royal Borough of Kensington and Chelsea,RBKC,,Capital,Capital,,Trail Services Limited,1270872,,,,02/11/2020,2200129662,"11,508.71",,Payments to main contractor,,,,,,No
The Royal Borough of Kensington and Chelsea,RBKC,,Capital,Capital,,Trail Services Limited,1270872,,,,04/12/2020,2200136503,"26,090.03",,Payments to main contractor,,,,,,No
The Royal Borough of Kensington and Chelsea,RBKC,,Capital,Capital,,Tree Wise Men S.E. Ltd ,1231880,,,,18/12/2020,2200139120,"1,875.00",,Payments to main contractor,,,,,,No
The Royal Borough of Kensington and Chelsea,RBKC,,Capital,Capital,,Tree Wise Men S.E. Ltd ,1231880,,,,18/12/2020,2200139121,"3,279.00",,Payments to main contractor,,,,,,No
The Royal Borough of Kensington and Chelsea,RBKC,,Capital,Capital,,Tree Wise Men S.E. Ltd ,1231880,,,,18/12/2020,2200139123,"1,175.00",,Payments to main contractor,,,,,,No
The Royal Borough of Kensington and Chelsea,RBKC,,Capital,Capital,,Tree Wise Men S.E. Ltd ,1231880,,,,18/12/2020,2200139124,"2,497.00",,Payments to main contractor,,,,,,No
The Royal Borough of Kensington and Chelsea,RBKC,,Capital,Capital,,Trowers & Hamlins LLP,1235577,,,,09/11/2020,2200131224,"4,200.00",,Creditors Control : AP GRIR,,,,,,No
The Royal Borough of Kensington and Chelsea,RBKC,,Capital,Capital,,Trowers & Hamlins LLP,1235577,,,,30/11/2020,2200135233,723.00,,Professional Fees : Non Legal,,,,,,No
The Royal Borough of Kensington and Chelsea,RBKC,,Capital,Capital,,Trowers & Hamlins LLP,1235577,,,,30/11/2020,2200135235,744.80,,Professional Fees : Non Legal,,,,,,No
The Royal Borough of Kensington and Chelsea,RBKC,,Capital,Capital,,Trueform Engineering Ltd ,1231440,,,,06/10/2020,2200123935,"1,035.57",,Construction : enhancements,,,,,,No
The Royal Borough of Kensington and Chelsea,RBKC,,Capital,Capital,,Trueform Engineering Ltd ,1231440,,,,09/12/2020,2200137506,921.20,,Payments to main contractor,,,,,,No
The Royal Borough of Kensington and Chelsea,RBKC,,Capital,Capital,,VIKFIX LTD,1258701,,,,05/11/2020,2200130459,"3,562.20",,Special Maintenance,,,,,,No
The Royal Borough of Kensington and Chelsea,RBKC,,Capital,Capital,,VIKFIX LTD,1258701,,,,18/11/2020,2200133122,"1,048.85",,Special Maintenance,,,,,,No
The Royal Borough of Kensington and Chelsea,RBKC,,Capital,Capital,,VIKFIX LTD,1258701,,,,18/11/2020,2200133124,900.08,,Special Maintenance,,,,,,No
The Royal Borough of Kensington and Chelsea,RBKC,,Capital,Capital,,VIKFIX LTD,1258701,,,,18/11/2020,2200133127,"1,450.44",,Special Maintenance,,,,,,No
The Royal Borough of Kensington and Chelsea,RBKC,,Capital,Capital,,VIKFIX LTD,1258701,,,,18/11/2020,2200133128,"40,876.71",,Special Maintenance,,,,,,No
The Royal Borough of Kensington and Chelsea,RBKC,,Capital,Capital,,VIKFIX LTD,1258701,,,,18/11/2020,2200133130,"1,220.00",,Special Maintenance,,,,,,No
The Royal Borough of Kensington and Chelsea,RBKC,,Capital,Capital,,VIKFIX LTD,1258701,,,,18/11/2020,2200133131,941.20,,Special Maintenance,,,,,,No
The Royal Borough of Kensington and Chelsea,RBKC,,Capital,Capital,,VIKFIX LTD,1258701,,,,18/11/2020,2200133135,"49,311.62",,Special Maintenance,,,,,,No
The Royal Borough of Kensington and Chelsea,RBKC,,Capital,Capital,,VIKFIX LTD,1258701,,,,18/11/2020,2200133136,"58,990.99",,Special Maintenance,,,,,,No
The Royal Borough of Kensington and Chelsea,RBKC,,Capital,Capital,,VIKFIX LTD,1258701,,,,18/11/2020,2200133137,"6,640.03",,Special Maintenance,,,,,,No
The Royal Borough of Kensington and Chelsea,RBKC,,Capital,Capital,,VIKFIX LTD,1258701,,,,19/11/2020,2200133325,929.44,,Special Maintenance,,,,,,No
The Royal Borough of Kensington and Chelsea,RBKC,,Capital,Capital,,VIKFIX LTD,1258701,,,,19/11/2020,2200133327,979.44,,Special Maintenance,,,,,,No
The Royal Borough of Kensington and Chelsea,RBKC,,Capital,Capital,,VIKFIX LTD,1258701,,,,20/11/2020,2200133541,523.55,,Special Maintenance,,,,,,No
The Royal Borough of Kensington and Chelsea,RBKC,,Capital,Capital,,VIKFIX LTD,1258701,,,,25/11/2020,2200134494,"1,400.00",,Special Maintenance,,,,,,No
The Royal Borough of Kensington and Chelsea,RBKC,,Capital,Capital,,VIKFIX LTD,1258701,,,,14/12/2020,2200138184,"12,519.89",,Special Maintenance,,,,,,No
The Royal Borough of Kensington and Chelsea,RBKC,,Capital,Capital,,VIKFIX LTD,1258701,,,,14/12/2020,2200138185,"40,892.23",,Special Maintenance,,,,,,No
The Royal Borough of Kensington and Chelsea,RBKC,,Capital,Capital,,VIKFIX LTD,1258701,,,,14/12/2020,2200138186,"3,201.20",,Special Maintenance,,,,,,No
The Royal Borough of Kensington and Chelsea,RBKC,,Capital,Capital,,VIKFIX LTD,1258701,,,,22/12/2020,2200139758,"70,022.06",,Special Maintenance,,,,,,No
The Royal Borough of Kensington and Chelsea,RBKC,,Capital,Capital,,Venn Group Ltd ,1231925,,,,02/10/2020,2200123347,"1,265.00",,Capitalised salaries,,,,,,No
The Royal Borough of Kensington and Chelsea,RBKC,,Capital,Capital,,Venn Group Ltd ,1231925,,,,05/10/2020,2200123876,"2,090.00",,Capitalised salaries,,,,,,No
The Royal Borough of Kensington and Chelsea,RBKC,,Capital,Capital,,Venn Group Ltd ,1231925,,,,08/10/2020,2200124524,"2,090.00",,Capitalised salaries,,,,,,No
The Royal Borough of Kensington and Chelsea,RBKC,,Capital,Capital,,Venn Group Ltd ,1231925,,,,08/10/2020,2200124525,"2,090.00",,Capitalised salaries,,,,,,No
The Royal Borough of Kensington and Chelsea,RBKC,,Capital,Capital,,Venn Group Ltd ,1231925,,,,08/10/2020,2200124551,"1,265.00",,Capitalised salaries,,,,,,No
The Royal Borough of Kensington and Chelsea,RBKC,,Capital,Capital,,Venn Group Ltd ,1231925,,,,16/10/2020,2200126378,"1,265.00",,Capitalised salaries,,,,,,No
The Royal Borough of Kensington and Chelsea,RBKC,,Capital,Capital,,Venn Group Ltd ,1231925,,,,20/10/2020,2200126924,"1,265.00",,Capitalised salaries,,,,,,No
The Royal Borough of Kensington and Chelsea,RBKC,,Capital,Capital,,Venn Group Ltd ,1231925,,,,26/10/2020,2200128131,885.50,,Capitalised salaries,,,,,,No
The Royal Borough of Kensington and Chelsea,RBKC,,Capital,Capital,,Venn Group Ltd ,1231925,,,,28/10/2020,2200128587,"2,090.00",,Capitalised salaries,,,,,,No
The Royal Borough of Kensington and Chelsea,RBKC,,Capital,Capital,,Venn Group Ltd ,1231925,,,,03/11/2020,2200129849,"1,265.00",,Capitalised salaries,,,,,,No
The Royal Borough of Kensington and Chelsea,RBKC,,Capital,Capital,,Venn Group Ltd ,1231925,,,,12/11/2020,2200132049,"1,138.50",,Capitalised salaries,,,,,,No
The Royal Borough of Kensington and Chelsea,RBKC,,Capital,Capital,,Venn Group Ltd ,1231925,,,,17/11/2020,2200132806,"2,090.00",,Capitalised salaries,,,,,,No
The Royal Borough of Kensington and Chelsea,RBKC,,Capital,Capital,,Venn Group Ltd ,1231925,,,,17/11/2020,2200132851,"2,090.00",,Capitalised salaries,,,,,,No
The Royal Borough of Kensington and Chelsea,RBKC,,Capital,Capital,,Venn Group Ltd ,1231925,,,,17/11/2020,2200132852,"2,351.25",,Capitalised salaries,,,,,,No
The Royal Borough of Kensington and Chelsea,RBKC,,Capital,Capital,,Venn Group Ltd ,1231925,,,,17/11/2020,2200132864,"1,265.00",,Capitalised salaries,,,,,,No
The Royal Borough of Kensington and Chelsea,RBKC,,Capital,Capital,,Venn Group Ltd ,1231925,,,,23/11/2020,2200133935,"1,012.00",,Capitalised salaries,,,,,,No
The Royal Borough of Kensington and Chelsea,RBKC,,Capital,Capital,,Venn Group Ltd ,1231925,,,,03/12/2020,2200136167,"2,612.50",,Capitalised salaries,,,,,,No
The Royal Borough of Kensington and Chelsea,RBKC,,Capital,Capital,,Venn Group Ltd ,1231925,,,,03/12/2020,2200136168,"2,612.50",,Capitalised salaries,,,,,,No
The Royal Borough of Kensington and Chelsea,RBKC,,Capital,Capital,,Venn Group Ltd ,1231925,,,,04/12/2020,2200136495,"2,612.50",,Capitalised salaries,,,,,,No
The Royal Borough of Kensington and Chelsea,RBKC,,Capital,Capital,,Venn Group Ltd ,1231925,,,,04/12/2020,2200136496,"2,612.50",,Capitalised salaries,,,,,,No
The Royal Borough of Kensington and Chelsea,RBKC,,Capital,Capital,,Ventro Ltd,1269242,,,,27/10/2020,2200128495,"86,655.54",,Payments to main contractor,,,,,,No
The Royal Borough of Kensington and Chelsea,RBKC,,Capital,Capital,,Ventro Ltd,1269242,,,,05/11/2020,2200130445,"99,922.26",,Payments to main contractor,,,,,,No
The Royal Borough of Kensington and Chelsea,RBKC,,Capital,Capital,,Ventro Ltd,1269242,,,,21/12/2020,2200139571,"31,934.88",,Payments to main contractor,,,,,,No
The Royal Borough of Kensington and Chelsea,RBKC,,Capital,Capital,,Victorian Plumbing,1271256,,,,01/10/2020,2200123101,"5,795.71",,Special Maintenance,,,,,,No
The Royal Borough of Kensington and Chelsea,RBKC,,Capital,Capital,,Viewpoint Construction Software,1235622,,,,17/12/2020,2200138847,"2,250.00",,Professional Fees : Non Legal,,,,,,No
The Royal Borough of Kensington and Chelsea,RBKC,,Capital,Capital,,Vpodsolutions Uk Ltd,1271116,,,,09/10/2020,2200124943,"10,000.00",,Creditors Control : AP GRIR,,,,,,No
The Royal Borough of Kensington and Chelsea,RBKC,,Capital,Capital,,Redact Details,1269416,,,,17/11/2020,2200132763,"15,002.00",,Payments to main contractor,,,,,,No
The Royal Borough of Kensington and Chelsea,RBKC,,Capital,Capital,,Wates Construction Ltd ,1235637,,,,20/11/2020,2200133663,"135,603.49",,Payments to main contractor,,,,,,No
The Royal Borough of Kensington and Chelsea,RBKC,,Capital,Capital,,Willmott Dixon Construction Limited,1273037,,,,06/11/2020,2200130781,"25,654.10",,Payments to main contractor,,,,,,No
The Royal Borough of Kensington and Chelsea,RBKC,,Capital,Capital,,Willmott Dixon Construction Limited,1273037,,,,06/11/2020,2200130782,"59,092.01",,Payments to main contractor,,,,,,No
The Royal Borough of Kensington and Chelsea,RBKC,,Capital,Capital,,Willmott Dixon Construction Limited,1273037,,,,09/11/2020,2200131211,"53,322.00",,Payments to main contractor,,,,,,No
The Royal Borough of Kensington and Chelsea,RBKC,,Capital,Capital,,Willmott Dixon Construction Limited,1273037,,,,10/11/2020,2200131567,"51,992.12",,Payments to main contractor,,,,,,No
The Royal Borough of Kensington and Chelsea,RBKC,,Capital,Capital,,Willmott Dixon Construction Limited,1273037,,,,07/12/2020,2200136848,"161,772.00",,Payments to main contractor,,,,,,No
The Royal Borough of Kensington and Chelsea,RBKC,,Capital,Capital,,Willmott Dixon Construction Limited,1273037,,,,07/12/2020,2200136849,"82,343.14",,Payments to main contractor,,,,,,No
The Royal Borough of Kensington and Chelsea,RBKC,,Capital,Capital,,Willmott Dixon Construction Limited,1273037,,,,08/12/2020,2200137039,"180,903.86",,Payments to main contractor,,,,,,No
The Royal Borough of Kensington and Chelsea,RBKC,,Capital,Capital,,Willmott Dixon Construction Limited,1273037,,,,08/12/2020,2200137040,"137,598.22",,Payments to main contractor,,,,,,No
The Royal Borough of Kensington and Chelsea,RBKC,,Statutory and Corporate Items,External Funding,,London Councils ,1231827,,,,13/11/2020,2200132140,"51,821.00",,Levies,,,,,,No
The Royal Borough of Kensington and Chelsea,RBKC,,Statutory and Corporate Items,External Funding,,Transport For London ,1231875,,,,02/12/2020,3110245877,"2,094,070.00",,Payments to Voluntary bodies,,,,,,No
The Royal Borough of Kensington and Chelsea,RBKC,,Grenfell Recovery,Grenfell Recovery,,Basis Ltd ,1232709,,,,09/12/2020,2200137578,"3,485.00",,Creditors Control : AP GRIR,,,,,,No
The Royal Borough of Kensington and Chelsea,RBKC,,Grenfell Recovery,Grenfell Recovery,,Basis Ltd ,1232709,,,,29/12/2020,2200140410,850.00,,Training related expenditure,,,,,,No
The Royal Borough of Kensington and Chelsea,RBKC,,Grenfell Recovery,Grenfell Recovery,,London Borough Of Lewisham ,1231818,,,,13/10/2020,2200125682,"19,724.94",,Creditors Control : AP GRIR,,,,,,No
The Royal Borough of Kensington and Chelsea,RBKC,,Grenfell Recovery,Grenfell Recovery,,Netcall Telecom Ltd ,1230760,,,,08/12/2020,2200137244,995.00,,Creditors Control : AP GRIR,,,,,,No
The Royal Borough of Kensington and Chelsea,RBKC,,Grenfell Corporate,Grenfell Corporate Costs,,Penna Plc ,1231010,,,,06/10/2020,2200124000,"13,750.00",,Agency Staff,,,,,,No
The Royal Borough of Kensington and Chelsea,RBKC,,Grenfell Corporate,Grenfell Corporate Costs,,Penna Plc ,1231010,,,,06/10/2020,2200124002,"8,797.50",,Agency Staff,,,,,,No
The Royal Borough of Kensington and Chelsea,RBKC,,Grenfell Corporate,Grenfell Corporate Costs,,Penna Plc ,1231010,,,,06/10/2020,2200124003,"8,222.50",,Agency Staff,,,,,,No
The Royal Borough of Kensington and Chelsea,RBKC,,Grenfell Corporate,Grenfell Corporate Costs,,Penna Plc ,1231010,,,,05/11/2020,2200130387,"11,385.00",,Agency Staff,,,,,,No
The Royal Borough of Kensington and Chelsea,RBKC,,Grenfell Corporate,Grenfell Corporate Costs,,Penna Plc ,1231010,,,,05/11/2020,2200130388,"13,750.00",,Agency Staff,,,,,,No
The Royal Borough of Kensington and Chelsea,RBKC,,Grenfell Corporate,Grenfell Corporate Costs,,Penna Plc ,1231010,,,,05/11/2020,2200130390,"8,035.63",,Agency Staff,,,,,,No
The Royal Borough of Kensington and Chelsea,RBKC,,Grenfell Corporate,Grenfell Corporate Costs,,Penna Plc ,1231010,,,,16/12/2020,2200138532,"2,990.00",,Agency Staff,,,,,,No
The Royal Borough of Kensington and Chelsea,RBKC,,Grenfell Corporate,Grenfell Corporate Costs,,Penna Plc ,1231010,,,,21/12/2020,2200139620,"10,867.50",,Agency Staff,,,,,,No
The Royal Borough of Kensington and Chelsea,RBKC,,Grenfell Corporate,Grenfell Corporate Costs,,Penna Plc ,1231010,,,,21/12/2020,2200139621,"13,125.00",,Agency Staff,,,,,,No
The Royal Borough of Kensington and Chelsea,RBKC,,Grenfell Corporate,Grenfell Corporate Costs,,Prepaid Financial Services Ltd (Corporate Account),1231050,,,,13/11/2020,3110240778,"75,000.00",,Fees,,,,,,No
The Royal Borough of Kensington and Chelsea,RBKC,,Grenfell Recovery,Grenfell Recovery,,Redact Details,1265072,,,,19/10/2020,2200126720,"7,000.00",,Hired and Contracted Services,,,,,,No
The Royal Borough of Kensington and Chelsea,RBKC,,Grenfell Recovery,Grenfell Recovery,,Redact Details,1265072,,,,11/11/2020,2200131891,"4,900.00",,Hired and Contracted Services,,,,,,No
The Royal Borough of Kensington and Chelsea,RBKC,,Grenfell Recovery,Grenfell Recovery,,Redact Details,1265072,,,,01/12/2020,2200135544,"12,137.00",,Hired and Contracted Services,,,,,,No
The Royal Borough of Kensington and Chelsea,RBKC,,Grenfell Recovery,Grenfell Recovery,,Redact Details,1273257,,,,28/10/2020,2200128717,"6,489.00",,Hired and Contracted Services,,,,,,No
The Royal Borough of Kensington and Chelsea,RBKC,,Grenfell Recovery,Grenfell Recovery,,Community Accountancy Self Help ,1233638,,,,18/12/2020,2200139235,"10,000.00",,Hired and Contracted Services,,,,,,No
The Royal Borough of Kensington and Chelsea,RBKC,,Grenfell Recovery,Grenfell Recovery,,Foundation for Social Improvement,1273222,,,,04/12/2020,2200136501,"1,950.00",,Hired and Contracted Services,,,,,,No
The Royal Borough of Kensington and Chelsea,RBKC,,Grenfell Recovery,Grenfell Recovery,,Harrow Club W10 ,1230381,,,,13/10/2020,2200125639,"10,000.00",,Hired and Contracted Services,,,,,,No
The Royal Borough of Kensington and Chelsea,RBKC,,Grenfell Recovery,Grenfell Recovery,,Harrow Club W10 ,1230381,,,,19/10/2020,2200126719,"25,000.00",,Grant Aid and Donations,,,,,,No
The Royal Borough of Kensington and Chelsea,RBKC,,Grenfell Recovery,Grenfell Recovery,,Harrow Club W10 ,1230381,,,,20/10/2020,2200127098,"2,800.00",,Hired and Contracted Services,,,,,,No
The Royal Borough of Kensington and Chelsea,RBKC,,Grenfell Recovery,Grenfell Recovery,,JUST SOLUTIONS 123,1271505,,,,04/12/2020,2200136499,"20,000.00",,Grant Aid and Donations,,,,,,No
The Royal Borough of Kensington and Chelsea,RBKC,,Grenfell Recovery,Grenfell Recovery,,JUST SOLUTIONS 123,1271505,,,,04/12/2020,2200136500,"8,000.00",,Grant Aid and Donations,,,,,,No
The Royal Borough of Kensington and Chelsea,RBKC,,Grenfell Recovery,Grenfell Recovery,,Kensington And Chelsea Social Council,1231991,,,,01/12/2020,2200135538,"8,500.00",,Hired and Contracted Services,,,,,,No
The Royal Borough of Kensington and Chelsea,RBKC,,Grenfell Recovery,Grenfell Recovery,,Kensington Dragons FC,1271737,,,,24/11/2020,2200134205,"10,000.00",,Grant Aid and Donations,,,,,,No
The Royal Borough of Kensington and Chelsea,RBKC,,Grenfell Recovery,Grenfell Recovery,,Lancaster West Childrens Community,1272413,,,,13/10/2020,2200125628,"15,000.00",,Grant Aid and Donations,,,,,,No
The Royal Borough of Kensington and Chelsea,RBKC,,Grenfell Recovery,Grenfell Recovery,,Mind United F.C.,1265413,,,,23/11/2020,2200134042,"12,000.00",,Hired and Contracted Services,,,,,,No
The Royal Borough of Kensington and Chelsea,RBKC,,Grenfell Recovery,Grenfell Recovery,,MutualGain Ltd,1260929,,,,10/12/2020,2200137834,"1,625.00",,Hired and Contracted Services,,,,,,No
The Royal Borough of Kensington and Chelsea,RBKC,,Grenfell Recovery,Grenfell Recovery,,MutualGain Ltd,1260929,,,,11/12/2020,2200138014,"1,500.00",,Hired and Contracted Services,,,,,,No
The Royal Borough of Kensington and Chelsea,RBKC,,Grenfell Recovery,Grenfell Recovery,,Portobello Business Centre Ltd ,1231045,,,,04/11/2020,2200130138,"3,760.00",,Hired and Contracted Services,,,,,,No
The Royal Borough of Kensington and Chelsea,RBKC,,Grenfell Recovery,Grenfell Recovery,,Portobello Business Centre Ltd ,1231045,,,,23/11/2020,2200134043,"9,350.00",,Hired and Contracted Services,,,,,,No
The Royal Borough of Kensington and Chelsea,RBKC,,Grenfell Recovery,Grenfell Recovery,,Portobello Business Centre Ltd ,1231045,,,,01/12/2020,2200135539,"6,364.00",,Hired and Contracted Services,,,,,,No
The Royal Borough of Kensington and Chelsea,RBKC,,Grenfell Recovery,Grenfell Recovery,,Progressay Impact CIC,1274240,,,,16/11/2020,2200132590,"10,000.00",,Grant Aid and Donations,,,,,,No
The Royal Borough of Kensington and Chelsea,RBKC,,Grenfell Recovery,Grenfell Recovery,,Redact Details,1271417,,,,01/12/2020,2200135541,"5,000.00",,Hired and Contracted Services,,,,,,No
The Royal Borough of Kensington and Chelsea,RBKC,,Grenfell Recovery,Grenfell Recovery,,TAVISTOCK GARDEN CLUB,1271119,,,,28/10/2020,2200128716,"1,447.00",,Grant Aid and Donations,,,,,,No
The Royal Borough of Kensington and Chelsea,RBKC,,Grenfell Recovery,Grenfell Recovery,,TPAS,1260813,,,,07/12/2020,2200136951,"3,200.00",,Hired and Contracted Services,,,,,,No
The Royal Borough of Kensington and Chelsea,RBKC,,Grenfell Recovery,Grenfell Recovery,,Teit Ethiopian Supplementary School,1272485,,,,16/11/2020,2200132588,"21,168.00",,Grant Aid and Donations,,,,,,No
The Royal Borough of Kensington and Chelsea,RBKC,,Grenfell Recovery,Grenfell Recovery,,The Chicken Shed Theatre Trust (Kensington & Chelsea),1235486,,,,28/10/2020,2200128715,"10,000.00",,Grant Aid and Donations,,,,,,No
The Royal Borough of Kensington and Chelsea,RBKC,,Grenfell Recovery,Grenfell Recovery,,Venture Community Association ,1235609,,,,02/11/2020,2200129652,"30,000.00",,Grant Aid and Donations,,,,,,No
The Royal Borough of Kensington and Chelsea,RBKC,,Grenfell Recovery,Grenfell Recovery,,Walk And Cycle London CIC,1274184,,,,23/11/2020,2200133974,"20,000.00",,Grant Aid and Donations,,,,,,No
The Royal Borough of Kensington and Chelsea,RBKC,,Grenfell Recovery,Grenfell Recovery,,Youth Action Alliance ,1232142,,,,11/11/2020,2200131892,"12,697.00",,Grant Aid and Donations,,,,,,No
The Royal Borough of Kensington and Chelsea,RBKC,,Grenfell Recovery,Grenfell Recovery,,Youth Action Alliance ,1232142,,,,11/11/2020,2200131893,"19,980.00",,Grant Aid and Donations,,,,,,No
The Royal Borough of Kensington and Chelsea,RBKC,,Grenfell Corporate,Grenfell Corporate Costs,,Ark Consultancy Limited,1275605,,,,23/12/2020,2200140113,"2,600.00",,Audit Fees,,,,,,No
The Royal Borough of Kensington and Chelsea,RBKC,,Grenfell Recovery,Grenfell Recovery,,Redact Details,1270569,,,,17/11/2020,2200132808,770.00,,Hired and Contracted Services,,,,,,No
The Royal Borough of Kensington and Chelsea,RBKC,,Grenfell Recovery,Grenfell Recovery,,T/A Relaxology Massage,1234348,,,,28/10/2020,2200128686,500.00,,Creditors Control : AP GRIR,,,,,,No
The Royal Borough of Kensington and Chelsea,RBKC,,Grenfell Recovery,Grenfell Recovery,,Redact Details,1235814,,,,18/11/2020,2200133119,500.00,,Creditors Control : AP GRIR,,,,,,No
The Royal Borough of Kensington and Chelsea,RBKC,,Grenfell Recovery,Grenfell Recovery,,Greenwich Leisure Ltd (Gll) ,1234678,,,,16/12/2020,2200138718,"2,881.10",,Hired and Contracted Services,,,,,,No
The Royal Borough of Kensington and Chelsea,RBKC,,Grenfell Recovery,Grenfell Recovery,,Redact Details,1270655,,,,17/11/2020,2200132807,700.00,,Hired and Contracted Services,,,,,,No
The Royal Borough of Kensington and Chelsea,RBKC,,Grenfell Recovery,Grenfell Recovery,,Redact Details,1270655,,,,21/12/2020,2200139412,"1,400.00",,Hired and Contracted Services,,,,,,No
The Royal Borough of Kensington and Chelsea,RBKC,,Grenfell Recovery,Grenfell Recovery,,Kensington & Chelsea Citizens Advice Bureaux Service,1230530,,,,02/10/2020,2200123365,"15,000.00",,Hired and Contracted Services,,,,,,No
The Royal Borough of Kensington and Chelsea,RBKC,,Grenfell Recovery,Grenfell Recovery,,Prepaid Financial Services Ltd (Corporate Account),1231050,,,,22/10/2020,2200127552,724.61,,Hired and Contracted Services,,,,,,No
The Royal Borough of Kensington and Chelsea,RBKC,,Grenfell Recovery,Grenfell Recovery,,Prepaid Financial Services Ltd (Corporate Account),1231050,,,,22/10/2020,2200127555,620.27,,Hired and Contracted Services,,,,,,No
The Royal Borough of Kensington and Chelsea,RBKC,,Grenfell Recovery,Grenfell Recovery,,Prepaid Financial Services Ltd (Corporate Account),1231050,,,,22/10/2020,2200127556,590.19,,Hired and Contracted Services,,,,,,No
The Royal Borough of Kensington and Chelsea,RBKC,,Grenfell Recovery,Grenfell Recovery,,Prepaid Financial Services Ltd (Corporate Account),1231050,,,,05/11/2020,2200130493,804.10,,Hired and Contracted Services,,,,,,No
The Royal Borough of Kensington and Chelsea,RBKC,,Grenfell Recovery,Grenfell Recovery,,Prepaid Financial Services Ltd (Corporate Account),1231050,,,,07/12/2020,2200136722,814.15,,Hired and Contracted Services,,,,,,No
The Royal Borough of Kensington and Chelsea,RBKC,,Grenfell Recovery,Grenfell Recovery,,Redact Details,1272504,,,,02/10/2020,2200123363,"3,552.50",,Hired and Contracted Services,,,,,,No
The Royal Borough of Kensington and Chelsea,RBKC,,Grenfell Recovery,Grenfell Recovery,,Redact Details,1272504,,,,08/10/2020,2200124494,"1,515.00",,Hired and Contracted Services,,,,,,No
The Royal Borough of Kensington and Chelsea,RBKC,,Grenfell Recovery,Grenfell Recovery,,Redact Details,1272504,,,,21/10/2020,2200127255,"1,415.00",,Hired and Contracted Services,,,,,,No
The Royal Borough of Kensington and Chelsea,RBKC,,Grenfell Recovery,Grenfell Recovery,,Redact Details,1272504,,,,31/10/2020,2200129419,"2,730.00",,Hired and Contracted Services,,,,,,No
The Royal Borough of Kensington and Chelsea,RBKC,,Grenfell Recovery,Grenfell Recovery,,Redact Details,1272504,,,,05/11/2020,2200130566,"2,650.00",,Hired and Contracted Services,,,,,,No
The Royal Borough of Kensington and Chelsea,RBKC,,Grenfell Recovery,Grenfell Recovery,,Redact Details,1272504,,,,14/12/2020,2200138216,"1,104.00",,Hired and Contracted Services,,,,,,No
The Royal Borough of Kensington and Chelsea,RBKC,,Grenfell Recovery,Grenfell Recovery,,Redact Details,1272504,,,,23/12/2020,2200140001,"1,160.00",,Hired and Contracted Services,,,,,,No
The Royal Borough of Kensington and Chelsea,RBKC,,Grenfell Recovery,Grenfell Recovery,,The Clement James Centre ,1235487,,,,02/11/2020,2200129550,"10,000.00",,Hired and Contracted Services,,,,,,No
The Royal Borough of Kensington and Chelsea,RBKC,,Grenfell Recovery,Grenfell Recovery,,Prepaid Financial Services,D000000023,,,,05/10/2020,3110228746,"100,000.00",,Hired and Contracted Services,,,,,,No
The Royal Borough of Kensington and Chelsea,RBKC,,Grenfell Recovery,Grenfell Recovery,,Prepaid Financial Services,D000000023,,,,29/10/2020,3110236694,"200,000.00",,Hired and Contracted Services,,,,,,No
The Royal Borough of Kensington and Chelsea,RBKC,,Grenfell Recovery,Grenfell Recovery,,Prepaid Financial Services,D000000023,,,,17/12/2020,3110249949,"100,000.00",,Hired and Contracted Services,,,,,,No
The Royal Borough of Kensington and Chelsea,RBKC,,Grenfell Recovery,Grenfell Recovery,,Incorpore Limited,1262303,,,,07/10/2020,2200124329,"2,397.50",,Creditors Control : AP GRIR,,,,,,No
The Royal Borough of Kensington and Chelsea,RBKC,,Grenfell Recovery,Grenfell Recovery,,Incorpore Limited,1262303,,,,02/11/2020,2200129501,"2,357.50",,Creditors Control : AP GRIR,,,,,,No
The Royal Borough of Kensington and Chelsea,RBKC,,Grenfell Recovery,Grenfell Recovery,,Incorpore Limited,1262303,,,,31/12/2020,2200140814,"3,860.50",,Creditors Control : AP GRIR,,,,,,No
The Royal Borough of Kensington and Chelsea,RBKC,,Grenfell Recovery,Grenfell Recovery,,Notting Hill Therapy Clinic Outreac,1271390,,,,14/10/2020,2200125919,"24,120.00",,Hired and Contracted Services,,,,,,No
The Royal Borough of Kensington and Chelsea,RBKC,,Grenfell Recovery,Grenfell Recovery,,Action For Children Services Ltd,1232313,,,,02/10/2020,2200123427,"150,000.00",,Hired and Contracted Services,,,,,,No
The Royal Borough of Kensington and Chelsea,RBKC,,Grenfell Recovery,Grenfell Recovery,,BT Global Services ,1233001,,,,12/10/2020,2200125401,630.00,,Telephone : Rentals,,,,,,No
The Royal Borough of Kensington and Chelsea,RBKC,,Grenfell Recovery,Grenfell Recovery,,BT Global Services ,1233001,,,,11/11/2020,2200131842,630.00,,Telephone : Rentals,,,,,,No
The Royal Borough of Kensington and Chelsea,RBKC,,Grenfell Recovery,Grenfell Recovery,,BT Global Services ,1233001,,,,08/12/2020,2200137091,630.00,,Telephone : Rentals,,,,,,No
The Royal Borough of Kensington and Chelsea,RBKC,,Grenfell Recovery,Grenfell Recovery,,Khoo Teck Puat UK Foundation ,1230545,,,,01/10/2020,3110228646,"138,300.00",,Premises Rent,,,,,,No
The Royal Borough of Kensington and Chelsea,RBKC,,Grenfell Recovery,Grenfell Recovery,,Khoo Teck Puat UK Foundation ,1230545,,,,01/10/2020,3110228646,625.98,,Premises Rent,,,,,,No
The Royal Borough of Kensington and Chelsea,RBKC,,Grenfell Recovery,Grenfell Recovery,,Khoo Teck Puat UK Foundation ,1230545,,,,01/10/2020,3110228647,635.21,,Premises Rent,,,,,,No
The Royal Borough of Kensington and Chelsea,RBKC,,Grenfell Recovery,Grenfell Recovery,,Khoo Teck Puat UK Foundation ,1230545,,,,01/10/2020,3110228647,"140,340.00",,Premises Rent,,,,,,No
The Royal Borough of Kensington and Chelsea,RBKC,,Grenfell Recovery,Grenfell Recovery,,Khoo Teck Puat UK Foundation ,1230545,,,,23/12/2020,3110252837,"65,400.00",,Premises Rent,,,,,,No
The Royal Borough of Kensington and Chelsea,RBKC,,Grenfell Recovery,Grenfell Recovery,,Khoo Teck Puat UK Foundation ,1230545,,,,23/12/2020,3110252837,"6,611.10",,Service Charges : Premises,,,,,,No
The Royal Borough of Kensington and Chelsea,RBKC,,Grenfell Recovery,Grenfell Recovery,,Khoo Teck Puat UK Foundation ,1230545,,,,23/12/2020,3110252838,"6,764.10",,Service Charges : Premises,,,,,,No
The Royal Borough of Kensington and Chelsea,RBKC,,Grenfell Recovery,Grenfell Recovery,,Khoo Teck Puat UK Foundation ,1230545,,,,23/12/2020,3110252838,"67,290.00",,Premises Rent,,,,,,No
The Royal Borough of Kensington and Chelsea,RBKC,,Grenfell Recovery,Grenfell Recovery,,DA Languages Ltd ,1233749,,,,13/10/2020,2200125678,"4,103.51",,Interpreters Fees,,,,,,No
The Royal Borough of Kensington and Chelsea,RBKC,,Grenfell Recovery,Grenfell Recovery,,DA Languages Ltd ,1233749,,,,10/11/2020,2200131389,"1,258.50",,Interpreters Fees,,,,,,No
The Royal Borough of Kensington and Chelsea,RBKC,,Grenfell Recovery,Grenfell Recovery,,DA Languages Ltd ,1233749,,,,22/12/2020,2200139760,632.93,,Interpreters Fees,,,,,,No
The Royal Borough of Kensington and Chelsea,RBKC,,Grenfell Recovery,Grenfell Recovery,,Odgers Interim T/A Irg Advisors Llp,1235093,,,,02/10/2020,2200123579,"10,857.22",,Agency Staff,,,,,,No
The Royal Borough of Kensington and Chelsea,RBKC,,Grenfell Recovery,Grenfell Recovery,,Odgers Interim T/A Irg Advisors Llp,1235093,,,,20/11/2020,2200133778,"10,857.22",,Agency Staff,,,,,,No
The Royal Borough of Kensington and Chelsea,RBKC,,Grenfell Recovery,Grenfell Recovery,,Odgers Interim T/A Irg Advisors Llp,1235093,,,,11/12/2020,2200138013,"10,363.71",,Agency Staff,,,,,,No
The Royal Borough of Kensington and Chelsea,RBKC,,Grenfell Recovery,Grenfell Recovery,,The City Literature Insti,1263294,,,,19/10/2020,2200126736,847.00,,Hired and Contracted Services,,,,,,No
The Royal Borough of Kensington and Chelsea,RBKC,,Grenfell Recovery,Grenfell Recovery,,The City Literature Insti,1263294,,,,28/10/2020,2200128721,997.00,,Training related expenditure,,,,,,No
The Royal Borough of Kensington and Chelsea,RBKC,,Grenfell Recovery,Grenfell Recovery,,The Polera Ltd,1274371,,,,02/12/2020,2200135775,"2,000.00",,Fees,,,,,,No
The Royal Borough of Kensington and Chelsea,RBKC,,Grenfell Recovery,Grenfell Recovery,,We Are Digital Training L,1261383,,,,28/10/2020,2200128722,"20,000.00",,Hired and Contracted Services,,,,,,No
The Royal Borough of Kensington and Chelsea,RBKC,,Grenfell Corporate,Grenfell Corporate Costs,,AECOM Ltd,1271122,,,,01/10/2020,2200123238,"17,136.00",,Hired and Contracted Services,,,,,,No
The Royal Borough of Kensington and Chelsea,RBKC,,Grenfell Corporate,Grenfell Corporate Costs,,AECOM Ltd,1271122,,,,02/10/2020,2200123582,"26,316.00",,Hired and Contracted Services,,,,,,No
The Royal Borough of Kensington and Chelsea,RBKC,,Grenfell Corporate,Grenfell Corporate Costs,,AECOM Ltd,1271122,,,,12/10/2020,2200125182,"20,944.00",,Hired and Contracted Services,,,,,,No
The Royal Borough of Kensington and Chelsea,RBKC,,Grenfell Corporate,Grenfell Corporate Costs,,AECOM Ltd,1271122,,,,05/11/2020,2200130489,"50,795.00",,Hired and Contracted Services,,,,,,No
The Royal Borough of Kensington and Chelsea,RBKC,,Grenfell Corporate,Grenfell Corporate Costs,,AECOM Ltd,1271122,,,,17/11/2020,2200132922,"15,654.00",,Fees,,,,,,No
The Royal Borough of Kensington and Chelsea,RBKC,,Grenfell Corporate,Grenfell Corporate Costs,,AECOM Ltd,1271122,,,,07/12/2020,2200136964,"28,616.65",,Fees,,,,,,No
The Royal Borough of Kensington and Chelsea,RBKC,,Grenfell Corporate,Grenfell Corporate Costs,,AECOM Ltd,1271122,,,,08/12/2020,2200137312,"135,165.00",,Hired and Contracted Services,,,,,,No
The Royal Borough of Kensington and Chelsea,RBKC,,Grenfell Corporate,Grenfell Corporate Costs,,Kensington And Chelsea Social Council,1231991,,,,08/12/2020,2200137291,"13,500.00",,Creditors Control : AP GRIR,,,,,,No
The Royal Borough of Kensington and Chelsea,RBKC,,Grenfell Corporate,Grenfell Corporate Costs,,Public Health England ,1230815,,,,25/11/2020,2200134555,"19,869.88",,Creditors Control : AP GRIR,,,,,,No
The Royal Borough of Kensington and Chelsea,RBKC,,Grenfell Corporate,Grenfell Corporate Costs,,Public Intelligence Ltd,1263415,,,,22/12/2020,2200139901,"10,450.00",,Hired and Contracted Services,,,,,,No
The Royal Borough of Kensington and Chelsea,RBKC,,Grenfell Recovery,Grenfell Recovery,,Chime Properties Limited,1254100,,,,13/11/2020,2200132169,"11,492.01",,Creditors Control : AP GRIR,,,,,,No
The Royal Borough of Kensington and Chelsea,RBKC,,Grenfell Recovery,Grenfell Recovery,,Chime Properties Limited,1254100,,,,13/11/2020,2200132170,"11,836.89",,Creditors Control : AP GRIR,,,,,,No
The Royal Borough of Kensington and Chelsea,RBKC,,Grenfell Recovery,Grenfell Recovery,,A2Dominion Rent,D000000023,,,,13/10/2020,3110232317,"1,718.16",,Service Charges : Premises,,,,,,No
The Royal Borough of Kensington and Chelsea,RBKC,,Grenfell Recovery,Grenfell Recovery,,Redact Details,D000000023,,,,04/11/2020,3110237839,"1,036.70",,Service Charges : Premises,,,,,,No
The Royal Borough of Kensington and Chelsea,RBKC,,Grenfell Recovery,Grenfell Recovery,,Ladbroke Grove Apartment Mgmt Co Lt,D000000023,,,,19/11/2020,3110242092,715.17,,Service Charges : Premises,,,,,,No
The Royal Borough of Kensington and Chelsea,RBKC,,Grenfell Recovery,Grenfell Recovery,,Best Gapp,D000000023,,,,11/12/2020,3110249030,646.10,,Service Charges : Premises,,,,,,No
The Royal Borough of Kensington and Chelsea,RBKC,,Grenfell Recovery,Grenfell Recovery,,Space Management Ltd,D000000023,,,,11/12/2020,3110249033,894.56,,Service Charges : Premises,,,,,,No
The Royal Borough of Kensington and Chelsea,RBKC,,Grenfell Recovery,Grenfell Recovery,,Redact Details,D000000023,,,,11/12/2020,3110249034,"1,190.20",,Service Charges : Premises,,,,,,No
The Royal Borough of Kensington and Chelsea,RBKC,,Grenfell Recovery,Grenfell Recovery,,A2Dominion,D000000023,,,,17/12/2020,3110249944,"1,748.16",,Service Charges : Premises,,,,,,No
The Royal Borough of Kensington and Chelsea,RBKC,,Grenfell Recovery,Grenfell Recovery,,Redact Details,D000000023,,,,22/12/2020,3110252705,"2,263.89",,Service Charges : Premises,,,,,,No
The Royal Borough of Kensington and Chelsea,RBKC,,Grenfell Recovery,Grenfell Recovery,,JMW Barnard Property Management,D000000023,,,,24/12/2020,3110253100,"1,613.80",,Service Charges : Premises,,,,,,No
The Royal Borough of Kensington and Chelsea,RBKC,,Grenfell Recovery,Grenfell Recovery,,Warmans Asset Management,D000000023,,,,24/12/2020,3110253105,"2,415.00",,Service Charges : Premises,,,,,,No
The Royal Borough of Kensington and Chelsea,RBKC,,Grenfell Recovery,Grenfell Recovery,,Gas Contract Services Ltd ,1234618,,,,01/10/2020,2200123219,670.00,,Equipment,,,,,,No
The Royal Borough of Kensington and Chelsea,RBKC,,Grenfell Recovery,Grenfell Recovery,,Guarding UK Ltd ,1230372,,,,09/10/2020,2200124833,550.00,,Creditors Control : AP GRIR,,,,,,No
The Royal Borough of Kensington and Chelsea,RBKC,,Grenfell Recovery,Grenfell Recovery,,Hilton London Kensington ,1234729,,,,05/11/2020,2200130338,"1,070.00",,Creditors Control : AP GRIR,,,,,,No
The Royal Borough of Kensington and Chelsea,RBKC,,Grenfell Recovery,Grenfell Recovery,,JGP Resourcing Ltd ,1234816,,,,14/10/2020,2200125825,"6,230.00",,Creditors Control : AP GRIR,,,,,,No
The Royal Borough of Kensington and Chelsea,RBKC,,Capital,Capital,,London Fire Solutions LLP ,1231392,,,,27/11/2020,2200134792,"1,961.00",,Fixtures and Fittings,,,,,,No
The Royal Borough of Kensington and Chelsea,RBKC,,Grenfell Recovery,Grenfell Recovery,,Michael Page International Recruitment Ltd,1235002,,,,12/10/2020,2200125237,688.80,,Agency Staff,,,,,,No
The Royal Borough of Kensington and Chelsea,RBKC,,Grenfell Recovery,Grenfell Recovery,,Michael Page International Recruitment Ltd,1235002,,,,12/10/2020,2200125409,590.40,,Agency Staff,,,,,,No
The Royal Borough of Kensington and Chelsea,RBKC,,Grenfell Recovery,Grenfell Recovery,,Michael Page International Recruitment Ltd,1235002,,,,20/10/2020,2200126863,659.28,,Agency Staff,,,,,,No
The Royal Borough of Kensington and Chelsea,RBKC,,Grenfell Recovery,Grenfell Recovery,,Michael Page International Recruitment Ltd,1235002,,,,27/10/2020,2200128314,688.80,,Agency Staff,,,,,,No
The Royal Borough of Kensington and Chelsea,RBKC,,Grenfell Recovery,Grenfell Recovery,,Michael Page International Recruitment Ltd,1235002,,,,03/11/2020,2200129795,688.80,,Agency Staff,,,,,,No
The Royal Borough of Kensington and Chelsea,RBKC,,Grenfell Recovery,Grenfell Recovery,,Miles Commercial Ltd ,1235014,,,,15/10/2020,2200126113,540.82,,Creditors Control : AP GRIR,,,,,,No
The Royal Borough of Kensington and Chelsea,RBKC,,Grenfell Recovery,Grenfell Recovery,,Miles Commercial Ltd ,1235014,,,,15/10/2020,2200126114,626.63,,Creditors Control : AP GRIR,,,,,,No
The Royal Borough of Kensington and Chelsea,RBKC,,Grenfell Recovery,Grenfell Recovery,,Occupational Testing Ltd ,1230950,,,,04/12/2020,2200136382,"4,500.00",,Creditors Control : AP GRIR,,,,,,No
The Royal Borough of Kensington and Chelsea,RBKC,,Grenfell Recovery,Grenfell Recovery,,Occupational Testing Ltd ,1230950,,,,04/12/2020,2200136383,800.00,,Creditors Control : AP GRIR,,,,,,No
The Royal Borough of Kensington and Chelsea,RBKC,,Grenfell Recovery,Grenfell Recovery,,Orbiton Estates Ralph Court,1235114,,,,24/12/2020,3110253112,"2,279.70",,Service Charges : Premises,,,,,,No
The Royal Borough of Kensington and Chelsea,RBKC,,Grenfell Recovery,Grenfell Recovery,,Principia Estate & Asset Management,1231058,,,,24/12/2020,3110253114,880.13,,Service Charges : Premises,,,,,,No
The Royal Borough of Kensington and Chelsea,RBKC,,Housing & Social Investment,Housing Management,,R & Ma Stewart Ltd ,1235232,,,,10/11/2020,2200131382,"9,917.96",,Fixtures and Fittings,,,,,,No
The Royal Borough of Kensington and Chelsea,RBKC,,Grenfell Recovery,Grenfell Recovery,,Remus Management Ltd,1235262,,,,06/11/2020,2200130627,"1,422.54",,Creditors Control : AP GRIR,,,,,,No
The Royal Borough of Kensington and Chelsea,RBKC,,Grenfell Recovery,Grenfell Recovery,,Resourcing Group ,1235269,,,,22/12/2020,2200139924,826.50,,Agency Staff,,,,,,No
The Royal Borough of Kensington and Chelsea,RBKC,,Grenfell Recovery,Grenfell Recovery,,Resourcing Group ,1235269,,,,31/12/2020,2200140791,783.00,,Agency Staff,,,,,,No
The Royal Borough of Kensington and Chelsea,RBKC,,Grenfell Recovery,Grenfell Recovery,,Resourcing Group ,1235269,,,,31/12/2020,2200140792,652.50,,Agency Staff,,,,,,No
The Royal Borough of Kensington and Chelsea,RBKC,,Grenfell Recovery,Grenfell Recovery,,Resourcing Group ,1235269,,,,31/12/2020,2200140795,783.00,,Agency Staff,,,,,,No
The Royal Borough of Kensington and Chelsea,RBKC,,Grenfell Recovery,Grenfell Recovery,,Resourcing Group ,1235269,,,,31/12/2020,2200140796,783.00,,Agency Staff,,,,,,No
The Royal Borough of Kensington and Chelsea,RBKC,,Grenfell Recovery,Grenfell Recovery,,Resourcing Group ,1235269,,,,31/12/2020,2200140797,783.00,,Agency Staff,,,,,,No
The Royal Borough of Kensington and Chelsea,RBKC,,Grenfell Recovery,Grenfell Recovery,,Resourcing Group ,1235269,,,,31/12/2020,2200140798,783.00,,Agency Staff,,,,,,No
The Royal Borough of Kensington and Chelsea,RBKC,,Grenfell Recovery,Grenfell Recovery,,Resourcing Group ,1235269,,,,31/12/2020,2200140801,783.00,,Agency Staff,,,,,,No
The Royal Borough of Kensington and Chelsea,RBKC,,Grenfell Recovery,Grenfell Recovery,,Resourcing Group ,1235269,,,,31/12/2020,2200140802,783.00,,Agency Staff,,,,,,No
The Royal Borough of Kensington and Chelsea,RBKC,,Grenfell Recovery,Grenfell Recovery,,Resourcing Group ,1235269,,,,31/12/2020,2200140805,783.00,,Agency Staff,,,,,,No
The Royal Borough of Kensington and Chelsea,RBKC,,Grenfell Recovery,Grenfell Recovery,,Soundproofing R Us Limited,1270091,,,,12/11/2020,2200132061,"1,598.00",,Creditors Control : AP GRIR,,,,,,No
The Royal Borough of Kensington and Chelsea,RBKC,,Grenfell Recovery,Grenfell Recovery,,Tempus Facilities Management Ltd ,1235468,,,,01/10/2020,2200123223,"1,071.65",,Service Charges : Premises,,,,,,No
The Royal Borough of Kensington and Chelsea,RBKC,,Grenfell Recovery,Grenfell Recovery,,Tempus Facilities Management Ltd ,1235468,,,,08/10/2020,2200124594,867.00,,Service Charges : Premises,,,,,,No
The Royal Borough of Kensington and Chelsea,RBKC,,Grenfell Recovery,Grenfell Recovery,,Tempus Facilities Management Ltd ,1235468,,,,19/10/2020,2200126748,552.00,,Service Charges : Premises,,,,,,No
The Royal Borough of Kensington and Chelsea,RBKC,,Grenfell Recovery,Grenfell Recovery,,Tempus Facilities Management Ltd ,1235468,,,,19/10/2020,2200126749,"1,281.38",,Service Charges : Premises,,,,,,No
The Royal Borough of Kensington and Chelsea,RBKC,,Grenfell Recovery,Grenfell Recovery,,Tempus Facilities Management Ltd ,1235468,,,,20/10/2020,2200126901,551.66,,Building Maintenace and Improvement :E12,,,,,,No
The Royal Borough of Kensington and Chelsea,RBKC,,Grenfell Recovery,Grenfell Recovery,,Tempus Facilities Management Ltd ,1235468,,,,23/10/2020,2200127737,"1,012.50",,Building Maintenace and Improvement :E12,,,,,,No
The Royal Borough of Kensington and Chelsea,RBKC,,Grenfell Recovery,Grenfell Recovery,,Tempus Facilities Management Ltd ,1235468,,,,23/10/2020,2200127739,750.00,,Building Maintenace and Improvement :E12,,,,,,No
The Royal Borough of Kensington and Chelsea,RBKC,,Grenfell Recovery,Grenfell Recovery,,Tempus Facilities Management Ltd ,1235468,,,,23/10/2020,2200127744,"2,737.50",,Building Maintenace and Improvement :E12,,,,,,No
The Royal Borough of Kensington and Chelsea,RBKC,,Grenfell Recovery,Grenfell Recovery,,Tempus Facilities Management Ltd ,1235468,,,,23/10/2020,2200127770,"1,530.00",,Building Maintenace and Improvement :E12,,,,,,No
The Royal Borough of Kensington and Chelsea,RBKC,,Grenfell Recovery,Grenfell Recovery,,Tempus Facilities Management Ltd ,1235468,,,,02/11/2020,2200129608,"1,000.00",,Building Maintenace and Improvement :E12,,,,,,No
The Royal Borough of Kensington and Chelsea,RBKC,,Grenfell Recovery,Grenfell Recovery,,Tempus Facilities Management Ltd ,1235468,,,,02/11/2020,2200129613,562.50,,Building Maintenace and Improvement :E12,,,,,,No
The Royal Borough of Kensington and Chelsea,RBKC,,Grenfell Recovery,Grenfell Recovery,,Tempus Facilities Management Ltd ,1235468,,,,02/11/2020,2200129622,562.50,,Building Maintenace and Improvement :E12,,,,,,No
The Royal Borough of Kensington and Chelsea,RBKC,,Grenfell Recovery,Grenfell Recovery,,Tempus Facilities Management Ltd ,1235468,,,,05/11/2020,2200130535,"1,018.73",,Service Charges : Premises,,,,,,No
The Royal Borough of Kensington and Chelsea,RBKC,,Grenfell Recovery,Grenfell Recovery,,Tempus Facilities Management Ltd ,1235468,,,,05/11/2020,2200130538,698.06,,Service Charges : Premises,,,,,,No
The Royal Borough of Kensington and Chelsea,RBKC,,Grenfell Recovery,Grenfell Recovery,,Tempus Facilities Management Ltd ,1235468,,,,05/11/2020,2200130545,636.23,,Service Charges : Premises,,,,,,No
The Royal Borough of Kensington and Chelsea,RBKC,,Grenfell Recovery,Grenfell Recovery,,Tempus Facilities Management Ltd ,1235468,,,,05/11/2020,2200130546,518.70,,Service Charges : Premises,,,,,,No
The Royal Borough of Kensington and Chelsea,RBKC,,Grenfell Recovery,Grenfell Recovery,,Tempus Facilities Management Ltd ,1235468,,,,05/11/2020,2200130548,518.70,,Service Charges : Premises,,,,,,No
The Royal Borough of Kensington and Chelsea,RBKC,,Grenfell Recovery,Grenfell Recovery,,Tempus Facilities Management Ltd ,1235468,,,,05/11/2020,2200130549,748.75,,Service Charges : Premises,,,,,,No
The Royal Borough of Kensington and Chelsea,RBKC,,Grenfell Recovery,Grenfell Recovery,,Tempus Facilities Management Ltd ,1235468,,,,05/11/2020,2200130552,"8,100.00",,Service Charges : Premises,,,,,,No
The Royal Borough of Kensington and Chelsea,RBKC,,Grenfell Recovery,Grenfell Recovery,,Tempus Facilities Management Ltd ,1235468,,,,05/11/2020,2200130563,873.74,,Service Charges : Premises,,,,,,No
The Royal Borough of Kensington and Chelsea,RBKC,,Grenfell Recovery,Grenfell Recovery,,Tempus Facilities Management Ltd ,1235468,,,,26/11/2020,2200134710,529.20,,Service Charges : Premises,,,,,,No
The Royal Borough of Kensington and Chelsea,RBKC,,Grenfell Recovery,Grenfell Recovery,,Tempus Facilities Management Ltd ,1235468,,,,26/11/2020,2200134713,612.75,,Service Charges : Premises,,,,,,No
The Royal Borough of Kensington and Chelsea,RBKC,,Grenfell Recovery,Grenfell Recovery,,Tempus Facilities Management Ltd ,1235468,,,,26/11/2020,2200134714,"1,330.00",,Service Charges : Premises,,,,,,No
The Royal Borough of Kensington and Chelsea,RBKC,,Grenfell Recovery,Grenfell Recovery,,Tempus Facilities Management Ltd ,1235468,,,,26/11/2020,2200134715,735.00,,Service Charges : Premises,,,,,,No
The Royal Borough of Kensington and Chelsea,RBKC,,Grenfell Recovery,Grenfell Recovery,,Tempus Facilities Management Ltd ,1235468,,,,30/11/2020,2200135313,552.00,,Service Charges : Premises,,,,,,No
The Royal Borough of Kensington and Chelsea,RBKC,,Grenfell Recovery,Grenfell Recovery,,Tempus Facilities Management Ltd ,1235468,,,,03/12/2020,2200136319,778.70,,Service Charges : Premises,,,,,,No
The Royal Borough of Kensington and Chelsea,RBKC,,Grenfell Recovery,Grenfell Recovery,,Tempus Facilities Management Ltd ,1235468,,,,16/12/2020,2200138683,662.00,,Service Charges : Premises,,,,,,No
The Royal Borough of Kensington and Chelsea,RBKC,,Grenfell Recovery,Grenfell Recovery,,Tempus Facilities Management Ltd ,1235468,,,,16/12/2020,2200138688,650.03,,Service Charges : Premises,,,,,,No
The Royal Borough of Kensington and Chelsea,RBKC,,Grenfell Recovery,Grenfell Recovery,,Tempus Facilities Management Ltd ,1235468,,,,16/12/2020,2200138689,679.19,,Service Charges : Premises,,,,,,No
The Royal Borough of Kensington and Chelsea,RBKC,,Grenfell Recovery,Grenfell Recovery,,Tempus Facilities Management Ltd ,1235468,,,,16/12/2020,2200138692,785.00,,Service Charges : Premises,,,,,,No
The Royal Borough of Kensington and Chelsea,RBKC,,Grenfell Recovery,Grenfell Recovery,,Tempus Facilities Management Ltd ,1235468,,,,16/12/2020,2200138696,552.00,,Service Charges : Premises,,,,,,No
The Royal Borough of Kensington and Chelsea,RBKC,,Grenfell Recovery,Grenfell Recovery,,United Colleges Group,1235597,,,,12/11/2020,2200132004,"2,610.00",,Training related expenditure,,,,,,No
The Royal Borough of Kensington and Chelsea,RBKC,,Grenfell Corporate,Grenfell Corporate Costs,,Dwf Llp ,1234046,,,,08/10/2020,2200124673,"6,118.50",,Creditors Control : AP GRIR,,,,,,No
The Royal Borough of Kensington and Chelsea,RBKC,,Grenfell Corporate,Grenfell Corporate Costs,,Dwf Llp ,1234046,,,,06/11/2020,2200130793,"28,617.00",,Creditors Control : AP GRIR,,,,,,No
The Royal Borough of Kensington and Chelsea,RBKC,,Grenfell Corporate,Grenfell Corporate Costs,,Dwf Llp ,1234046,,,,10/11/2020,2200131513,"85,086.00",,Creditors Control : AP GRIR,,,,,,No
The Royal Borough of Kensington and Chelsea,RBKC,,Grenfell Corporate,Grenfell Corporate Costs,,Dwf Llp ,1234046,,,,03/12/2020,2200136299,"16,926.00",,Creditors Control : AP GRIR,,,,,,No
The Royal Borough of Kensington and Chelsea,RBKC,,Grenfell Corporate,Grenfell Corporate Costs,,Dwf Llp ,1234046,,,,04/12/2020,2200136392,"1,581.00",,Creditors Control : AP GRIR,,,,,,No
The Royal Borough of Kensington and Chelsea,RBKC,,Grenfell Corporate,Grenfell Corporate Costs,,Dwf Llp ,1234046,,,,04/12/2020,2200136502,"1,825.00",,Creditors Control : AP GRIR,,,,,,No
The Royal Borough of Kensington and Chelsea,RBKC,,Grenfell Corporate,Grenfell Corporate Costs,,Anglia Case Management,D000000023,,,,19/11/2020,3110242102,"1,147.71",,Fees,,,,,,No
The Royal Borough of Kensington and Chelsea,RBKC,,Grenfell Corporate,Grenfell Corporate Costs,,Anglia Case Management,D000000023,,,,21/12/2020,3110250417,562.52,,Fees,,,,,,No
The Royal Borough of Kensington and Chelsea,RBKC,,Grenfell Corporate,Grenfell Corporate Costs,,Redact Details,D000000026,,,,05/10/2020,3110228801,843.50,,Fees,,,,,,No
The Royal Borough of Kensington and Chelsea,RBKC,,Grenfell Corporate,Grenfell Corporate Costs,,Redact Details,D000000026,,,,05/10/2020,3110228802,"1,372.97",,Fees,,,,,,No
The Royal Borough of Kensington and Chelsea,RBKC,,Grenfell Corporate,Grenfell Corporate Costs,,Redact Details,D000000026,,,,05/10/2020,3110228803,937.56,,Fees,,,,,,No
The Royal Borough of Kensington and Chelsea,RBKC,,Grenfell Corporate,Grenfell Corporate Costs,,Redact Details,D000000026,,,,05/10/2020,3110228807,"1,012.55",,Fees,,,,,,No
The Royal Borough of Kensington and Chelsea,RBKC,,Grenfell Corporate,Grenfell Corporate Costs,,Redact Details,D000000026,,,,07/10/2020,3110229656,"5,000.00",,Fees,,,,,,No
The Royal Borough of Kensington and Chelsea,RBKC,,Grenfell Corporate,Grenfell Corporate Costs,,Redact Details,D000000026,,,,07/10/2020,3110229658,759.43,,Fees,,,,,,No
The Royal Borough of Kensington and Chelsea,RBKC,,Grenfell Corporate,Grenfell Corporate Costs,,Redact Details,D000000026,,,,07/10/2020,3110229659,590.65,,Fees,,,,,,No
The Royal Borough of Kensington and Chelsea,RBKC,,Grenfell Corporate,Grenfell Corporate Costs,,Redact Details,D000000026,,,,08/10/2020,3110229815,"1,331.26",,Fees,,,,,,No
The Royal Borough of Kensington and Chelsea,RBKC,,Grenfell Corporate,Grenfell Corporate Costs,,Redact Details,D000000026,,,,08/10/2020,3110229816,"3,750.00",,Fees,,,,,,No
The Royal Borough of Kensington and Chelsea,RBKC,,Grenfell Corporate,Grenfell Corporate Costs,,Redact Details,D000000026,,,,12/10/2020,3110229949,"3,240.00",,Fees,,,,,,No
The Royal Borough of Kensington and Chelsea,RBKC,,Grenfell Corporate,Grenfell Corporate Costs,,Redact Details,D000000026,,,,15/10/2020,3110232820,"1,008.36",,Fees,,,,,,No
The Royal Borough of Kensington and Chelsea,RBKC,,Grenfell Corporate,Grenfell Corporate Costs,,Redact Details,D000000026,,,,15/10/2020,3110232823,"1,871.16",,Fees,,,,,,No
The Royal Borough of Kensington and Chelsea,RBKC,,Grenfell Corporate,Grenfell Corporate Costs,,Redact Details,D000000026,,,,15/10/2020,3110232823,707.94,,Fees,,,,,,No
The Royal Borough of Kensington and Chelsea,RBKC,,Grenfell Corporate,Grenfell Corporate Costs,,Redact Details,D000000026,,,,16/10/2020,3110232900,891.08,,Fees,,,,,,No
The Royal Borough of Kensington and Chelsea,RBKC,,Grenfell Corporate,Grenfell Corporate Costs,,Redact Details,D000000026,,,,16/10/2020,3110232901,937.54,,Fees,,,,,,No
The Royal Borough of Kensington and Chelsea,RBKC,,Grenfell Corporate,Grenfell Corporate Costs,,Redact Details,D000000026,,,,16/10/2020,3110232903,975.21,,Fees,,,,,,No
